Workbook

Sheet Contents
C1: Go to Charts by Pressing Shift and Enter on Menu Item
C3: Sheet Tab | D3: Description | E3: Author
B4: 1 | C4: Contents
B5: 2 | C5: Risks
B6: 3 | C6: PPA and Data Table
B7: 4 | C7: LCOE
B8: 5 | C8: Solar Financial Model
B9: 6 | C9: Sensitivity and Tornado
B10: 7 | C10: Modelling
B11: 8 | C11: Variable Chart
B12: 9 | C12: Cost Benefit Analysis
B13: 10 | C13: Marginal Cost Base Case
B14: 11 | C14: Variable Costs-cc
B15: 12 | C15: Hourly Loads
B16: 13 | C16: Loads-Chart
B17: 14 | C17: Carrying Charg
B18: 15 | C18: Comparison
B19: 16 | C19: Raw Read
B20: 17 | C20: Read PDF
B21: 18 | C21: Index Chart
B22: 19 | C22: Waterfall Chart1
B23: 20 | C23: Waterfall Chartdata1

Sheet Risks
A2: Risk | B2: Risk Bearer | C2: Mechanism | D2: Comments/Mitigant | E2: My Comment
A3: Off-taker Risk - Market Risk | B3: IPP | C3: Political Risk of PPA Problems | D3: Price of power should be close to actual production cost (as low as possible). The higher the cost, the more likely the risk will crystallize
A4: Heat Rate/Effiency | B4: IPP | C4: Contract Heat in PPA fixed in Energy Charge/ Actual Heat Rate for Cost | D4: O&M contract with Guaranteed Heat Rate
A5: Fuel Price | B5: Off-Taker | C5: Energy Charge has Variable Fuel Price that is multiplied by Heat Rate | D5: N/A
A6: Plant Availability | B6: IPP | C6: Earn Capacity Charge on Availabile Capacity | D6: O&M Contract with Availability Incentive
A7: Contruction Cost | B7: IPP | C7: Capacity Charge is set at Financial Close | D7: EPC contact with Fixed Price - LSTK Contract (Lump Sum Turn Key)
A8: Construction Delay | B8: IPP | C8: LD in PPA | D8: LD in EPC Contract that shoukd Mirror the LD in PPA Contract
A9: Capacity Volumes - Renewable | B9: IPP | C9: Single Price FIT Tariff | D9: If produce less power earn lower profits
A10: Capacity Volumes - Dispatchable | B10: Off-Taker | C10: Four/Five Part Tariff | D10: If produce more or less, still earn the same revenues while variable costs compensated one for one in energy charge tariff | E10: 5-part tariff (the 5th part is the actual penalty charged to thte off-taker for more start and stops than allowed for in the contract.
A11: Starts and Stops | B11: Off-Taker | C11: Five Part Tariff with Compensation for Start Cost | D11: O&M Contract provisisions should match PPA | E11: when GE guarantees a HR, they give a minimum no. of start-ups. They charge a penalty for any increase in startups and shutdowns. NB that startup, shutdowns impact HR. this risk is transferred to the offtaker.
A12: Demand Forecast - PPA Model | B12: Off-Taker | C12: Capacity Charge Earned at any Level of Dispactch | D12: Capaicty Charge remains constant
A13: Demand Forecast - Merchant Model | B13: IPP | C13: Earnings Fall with Lower Prices from Lower Demand | D13: Marginal Costs Decline
A14: Surplus Capacity - PPA Model | B14: Off-Taker | C14: Capacity Charge Earned at any Level of Dispactch
A15: Surplus Capacity - Merchant Model | B15: IPP | C15: Earnings Fall with Lower Prices from Lower Demand
A16: Exchange Rate | B16: Off-Taker | C16: Capacity Charge Indexed to Exchange Rate | D16: NA
A17: Remittance Delay | B17: Off-Taker | C17: Should have Penalty if make late Payments | D17: PPA Contract pentalities match cost
A18: O&M Cost Risk | B18: IPP | C18: Forecast Cost in O&M components of PPA | D18: Fixed price O&M contract that mirrors PPA Contract

Sheet PPA and Data Table
A1: 4-PART TARIFF | C1: (fuel price x heat rate)
B2: Energy Charge | C2: USD/ MWh | D2: =D3*D4 -> 153
B3: Fuel Price | C3: USD/ MMBTU | D3: 15 | Q3: Open Cycle CT | R3: Combined Gas Cycle
B4: Contract Heat Rate | C4: MMBTU/MWh | D4: 10.2 | P4: BTUs in KWH | Q4: 3413 | R4: 3413
P5: Heat Rate | Q5: 10200 | R5: 6860
B6: Contract Capacity Charge | C6: USD/ KW-month | D6: =F6/10 -> 5.5 | F6: 55 | P6: Efficiency (Heat Rate) | Q6: =Q4/Q5 -> 0.3346078431 | R6: =R4/R5 -> 0.4975218659
B7: Contract Variable O+M Charge | C7: USD/MWh | D7: 10
B8: Contract Fixed O+M Charge | C8: =C6 -> USD/ KW-month | D8: 0.5
B9: Energy Charge | C9: =C2 -> USD/ MWh | D9: =D2 -> 153 | H9: Required Minimum Margin | K9: 0.2 | P9: cost of gas = cost of fuel/6
H10: Capacity Charge Variable | K10: =D6 -> 5.5 | P10: add cost of transporting the gas
F11: Two Way Table
A12: CAPACITY | C12: MW | D12: 110 | I12: Fuel Price Sensitivity | P12: ideally, IPPs should not mak profit on fuel. It is a pass-through cost.
A13: Monthly Capacity Factor | C13: % | D13: 0.6 | H13: =D32 -> 0.1073496252 | I13: 6 | J13: 7 | K13: 8 | L13: 9 | M13: 15
A14: MWH (for the month) | D14: =D13*D12*31*24 -> 49104 | G14: Actual HR | H14: 10.09 | I14: 0.284742619 | J14: 0.2552787919 | K14: 0.2315371386 | L14: 0.2119982458 | M14: 0.142205497
H15: 10.1 | I15: 0.2840337416 | J15: 0.2545407134 | K15: 0.2307755303 | L15: 0.2112172728 | M15: 0.1413553538 | P15: this data table is problematic because:
H16: 10.2 | I16: 0.2769449667 | J16: 0.2471599283 | K16: 0.2231594464 | L16: 0.2034075429 | M16: 0.1328539216 | P16: it has to be formated exactly like this
A17: REVENUES ASSUMING 100% AVAILABILITY | E17: Formulae | H17: 10.3 | I17: 0.2698561919 | J17: 0.2397791433 | K17: 0.2155433625 | L17: 0.1955978129 | M17: 0.1243524895 | P17: it has to be on this sheet, etc
B18: Energy Charge Revenue | D18: =D14*D9 -> 7512912 | E18: =_xlfn.FORMULATEXT(D18) -> =D14*D9 | H18: 10.4 | I18: 0.262767417 | J18: 0.2323983583 | K18: 0.2079272787 | L18: 0.1877880829 | M18: 0.1158510573
B19: Capacity Charge Revenue | D19: =D6*1000*D12 -> 605000 | E19: =_xlfn.FORMULATEXT(D19) -> =D6*1000*D12 | H19: 10.5 | I19: 0.2556786422 | J19: 0.2250175733 | K19: 0.2003111948 | L19: 0.179978353 | M19: 0.1073496252 | P19: For sensitivity analysis
B20: Variable Charge Revenue | D20: =D7*D14 -> 491040 | E20: =_xlfn.FORMULATEXT(D20) -> =D7*D14 | H20: 10.6 | I20: 0.2485898674 | J20: 0.2176367883 | K20: 0.192695111 | L20: 0.172168623 | M20: 0.09884819306 | P20: after inputting the variables (fuel + HR), link cell 'i13' to the margin %
B21: Fixed O+M Revenue | D21: =D8*1000*D12 -> 55000 | E21: =_xlfn.FORMULATEXT(D21) -> =D8*1000*D12 | H21: 10.7 | I21: 0.2415010925 | J21: 0.2102560033 | K21: 0.1850790271 | L21: 0.164358893 | M21: 0.09034676092 | P21: select the table (actual HR and fuel price sensitvity)
A22: TOTAL CONTRACT REVENUES | D22: =SUM(D18:D21) -> 8663952 | H22: 10.8 | I22: 0.2344123177 | J22: 0.2028752182 | K22: 0.1774629432 | L22: 0.156549163 | M22: 0.08184532878 | P22: go to 'data' tab
H23: 10.9 | I23: 0.2273235429 | J23: 0.1954944332 | K23: 0.1698468594 | L23: 0.1487394331 | M23: 0.07334389664 | P23: under 'what if analysis', select 'data table'
A24: RISKS in PPA for IPP | H24: 11 | I24: 0.220234768 | J24: 0.1881136482 | K24: 0.1622307755 | L24: 0.1409297031 | M24: 0.0648424645 | P24: link the row imput to the 'contract fuel price' and column to 'actual HR'
B26: Actual Heat Rate | C26: MMBTU/MWh | D26: 10.5
B27: Actual Fuel Cost | C27: =C3 -> USD/ MMBTU | D27: =D3 -> 15
A28: Total Rate for Fuel Expense | C28: USD/ MWh | D28: =D27*D26 -> 157.5
B30: Actual Fuel Expense | D30: =D28*D14 -> 7733880 | F30: Copied for Graph
B31: Margin after Fuel Expense | D31: =D22-D30 -> 930072 | I31: =I13 -> 6 | J31: 7 | K31: 8 | L31: 9 | M31: 15
B32: Margin % | D32: =D31/D22 -> 0.1073496252 | H32: 10.09 | I32: 0.284742619 | J32: 0.2552787919 | K32: 0.2315371386 | L32: 0.2119982458 | M32: 0.142205497
H33: 10.1 | I33: 0.2840337416 | J33: 0.2545407134 | K33: 0.2307755303 | L33: 0.2112172728 | M33: 0.1413553538
H34: 10.2 | I34: 0.2769449667 | J34: 0.2471599283 | K34: 0.2231594464 | L34: 0.2034075429 | M34: 0.1328539216
H35: 10.3 | I35: 0.2698561919 | J35: 0.2397791433 | K35: 0.2155433625 | L35: 0.1955978129 | M35: 0.1243524895
H36: 10.4 | I36: 0.262767417 | J36: 0.2323983583 | K36: 0.2079272787 | L36: 0.1877880829 | M36: 0.1158510573
H37: 10.5 | I37: 0.2556786422 | J37: 0.2250175733 | K37: 0.2003111948 | L37: 0.179978353 | M37: 0.1073496252
H38: 10.6 | I38: 0.2485898674 | J38: 0.2176367883 | K38: 0.192695111 | L38: 0.172168623 | M38: 0.09884819306
H39: 10.7 | I39: 0.2415010925 | J39: 0.2102560033 | K39: 0.1850790271 | L39: 0.164358893 | M39: 0.09034676092
H40: 10.8 | I40: 0.2344123177 | J40: 0.2028752182 | K40: 0.1774629432 | L40: 0.156549163 | M40: 0.08184532878
H41: 10.9 | I41: 0.2273235429 | J41: 0.1954944332 | K41: 0.1698468594 | L41: 0.1487394331 | M41: 0.07334389664
H42: 11 | I42: 0.220234768 | J42: 0.1881136482 | K42: 0.1622307755 | L42: 0.1409297031 | M42: 0.0648424645
F44: One Way Table
I45: =D32 -> 0.1073496252
H46: =H14 -> 10.09 | I46: 0.142205497
H47: 10.1 | I47: 0.1413553538
H48: 10.2 | I48: 0.1328539216
H49: 10.3 | I49: 0.1243524895
H50: 10.4 | I50: 0.1158510573
H51: 10.5 | I51: 0.1073496252
H52: 10.6 | I52: 0.09884819306
H53: 10.7 | I53: 0.09034676092
H54: 10.8 | I54: 0.08184532878
H55: 10.9 | I55: 0.07334389664
H56: 11 | I56: 0.0648424645

Sheet 8 LCOE Drivers
B2: Waterfall Chart
B4: Conversions
B5: KW to MW | C5: 1000
B6: Years to Hours | C6: =24*365 -> 8760
B8: SOLAR LCOE | D8: Africa | E8: Dubai | F8: Lagos | G8: Benchmark | H8: Benchmark
D9: Solar | E9: Solar | F9: Barge | G9: Barge | H9: NGCC (Combined Cycle)
A10: 1 | B10: EPC Cost | C10: USD/ KW | D10: 1200 | E10: 900 | F10: =C50/C49/1000 -> 833.3333333 | G10: 400 | H10: 750
A11: 2 | B11: Fixed O+M Cost | C11: USD/ KW-Year | D11: 12 | E11: 8 | F11: 0 | G11: 5 | H11: 10 | I11: check websites for this info, or the EIA
A12: 3 | B12: Variable O+M Cost | C12: USD/ MWH | F12: 10 | G12: 10 | H12: 5
A13: 4 | B13: Capacity Factor | C13: % | D13: 0.2 | E13: 0.2 | F13: 0.7 | G13: 0.7 | H13: 0.7
A14: 5 | B14: Carrying Charge Rate | C14: % | D14: 0.14 | E14: 0.08 | F14: =C53 -> 0.27864 | G14: =C76 -> 0.1097036129 | H14: =G14 -> 0.1097036129 | I14: carrying charge is the annual revenue divided by the capital expense.
A15: 6 | B15: HR | C15: mmBTU/ MW-Hour | F15: 11 | G15: 11 | H15: 6.8
A16: 7 | B16: Fuel Price (FP) | C16: USD/ mmBTU | F16: 3.5 | G16: 3.5 | H16: 3.5
A17: 8 | B17: Availability
B20: Capacity Charge | C20: USD/ KW-Year | D20: =D14*D10 -> 168 | E20: 72 | F20: =F14*F10 -> 232.2 | G20: =G14*G10 -> 43.88144516 | H20: 82.27770967
B21: Capacity Charge | C21: USD/ MW-Hour | D21: =D20*1000/($C$6*D13) -> 95.89041096 | E21: 41.09589041 | F21: 37.86692759 | G21: =G20*1000/($C$6*G13) -> 7.156139132 | H21: =H20*1000/($C$6*H13) -> 13.41776087
B22: Fixed O+M | C22: USD/ MW-Hour | D22: =D11*1000/(8760*D13) -> 6.849315068 | E22: 4.566210046 | F22: 0 | G22: =G11*1000/(8760*G13) -> 0.815394651 | H22: =H11*1000/(8760*H13) -> 1.630789302
B23: Variable O+M | C23: USD/ MW-Hour | D23: =D12 -> 0 | E23: 0 | F23: =F12 -> 10 | G23: =G12 -> 10 | H23: 5
B24: Energy Charge (HRxFP) | C24: USD/ MW-Hour | D24: =D15*D16 -> 0 | E24: =E15*E16 -> 0 | F24: =F15*F16 -> 38.5 | G24: =G15*G16 -> 38.5 | H24: =H15*H16 -> 23.8
B26: LCOE | C26: USD/ MWH | D26: =SUM(D21:D24) -> 102.739726 | E26: =SUM(E21:E24) -> 45.66210046 | F26: 86.36692759 | G26: 56.47153378 | H26: 43.84855017
B27: Plant Size | C27: MW | D27: 270 | E27: 270 | F27: 270 | G27: 270 | H27: 270
B28: Annual Generation | C28: MWH | D28: =D27*D13*$C$6 -> 473040 | E28: 473040 | F28: =F27*F13*$C$6 -> 1655640 | G28: =G27*G13*$C$6 -> 1655640 | H28: 1655640
B29: Total Annual Cost | C29: USD | D29: =D28*D26 -> 48600000 | E29: 21600000 | F29: =F28*F26 -> 142992540 | G29: =G28*G26 -> 93496530.19 | H29: 72597413.61
B31: CAPITAL COST | E31: =((E$10*1000*E$14)/(8760*E$13))+(E$11/(8760*E$13)*1000) -> 45.66210046
B32: Higher EPC Cost | E32: =((D$10*1000*E$14)/(8760*E$13))+(E$11/(8760*E$13)*1000) -> 59.36073059
B33: Higher Fixed O+M Cost | E33: =((E$10*1000*E$14)/(8760*E$13))+(D$11/(8760*E$13)*1000) -> 47.94520548
B34: Higher Variable O+M Cost
B35: Higher Carrying Charge | E35: =((E$10*1000*D$14)/(8760*E$13))+(E$11/(8760*E$13)*1000) -> 76.48401826
B36: Final Number
B39: Factors for Waterfall Chart
B41: BASE | C41: =E26 -> 45.66210046
B42: Higher EPC Cost | C42: =E32-C$41 -> 13.69863014
B43: Higher O+M Cost | C43: =E33-C$41 -> 2.283105023
B44: Higher Carrying Charge | C44: =E35-C$41 -> 30.82191781
B45: Final Number
B48: AES Nigeria-Actual IRR
B49: MW | C49: 270
B50: Investment (USD) | C50: 225000000
B51: Capacity Charge (USD/KW-Month) | C51: 19.35
B52: Project IRR | C52: =C61 -> 0.2710045066
B53: Carrying Charge | C53: =D56/C50 -> 0.27864
B55: Year | C55: 1 | D55: 2 | E55: 3 | F55: 4 | G55: 5 | H55: 6 | I55: 7 | J55: 8 | K55: 9 | L55: 10 | M55: 11 | N55: 12 | O55: 13 | P55: 14 | Q55: 15 | R55: 16
B56: Capacity Revenues | D56: =$C49*1000*12*$C51 -> 62694000 | E56: =$C49*1000*12*$C51 -> 62694000 | F56: 62694000 | G56: 62694000 | H56: 62694000 | I56: 62694000 | J56: 62694000 | K56: 62694000 | L56: 62694000 | M56: 62694000 | N56: 62694000 | O56: 62694000 | P56: 62694000 | Q56: 62694000 | R56: 62694000
B57: Investment (USD) | C57: =-C50 -> -225000000
B58: Accumulated Cash-Flow | C58: =SUM(C57) -> -225000000 | D58: =C58+SUM(D56:D57) -> -162306000 | E58: =D58+SUM(E56:E57) -> -99612000 | F58: =E58+SUM(F56:F57) -> -36918000 | G58: =F58+SUM(G56:G57) -> 25776000 | H58: =G58+SUM(H56:H57) -> 88470000 | I58: =H58+SUM(I56:I57) -> 151164000 | J58: =I58+SUM(J56:J57) -> 213858000 | K58: =J58+SUM(K56:K57) -> 276552000 | L58: =K58+SUM(L56:L57) -> 339246000 | M58: =L58+SUM(M56:M57) -> 401940000 | N58: =M58+SUM(N56:N57) -> 464634000 | O58: =N58+SUM(O56:O57) -> 527328000 | P58: =O58+SUM(P56:P57) -> 590022000 | Q58: =P58+SUM(Q56:Q57) -> 652716000 | R58: =Q58+SUM(R56:R57) -> 715410000
B59: Pay-back Period (Post Construction) | C59: =MATCH(0,58:58)-3 -> 3
B60: Project Cash-Flow | C60: =C57+C56 -> -225000000 | D60: =D57+D56 -> 62694000 | E60: =E57+E56 -> 62694000 | F60: 62694000 | G60: 62694000 | H60: 62694000 | I60: 62694000 | J60: 62694000 | K60: 62694000 | L60: 62694000 | M60: 62694000 | N60: 62694000 | O60: 62694000 | P60: 62694000 | Q60: 62694000 | R60: 62694000
B61: Project IRR | C61: =IRR(60:60) -> 0.2710045066
B62: Project Investment Growth | C62: =-C60 -> 225000000 | D62: =C62*(1+$C61) -> 285976014 | E62: =D62*(1+$C61) -> 363476802.6 | F62: =E62*(1+$C61) -> 461980654.1 | G62: =F62*(1+$C61) -> 587179493.4 | H62: =G62*(1+$C61) -> 746307782.2 | I62: =H62*(1+$C61) -> 948560554.6 | J62: =I62*(1+$C61) -> 1205624740 | K62: =J62*(1+$C61) -> 1532354477 | L62: =K62*(1+$C61) -> 1947629447 | M62: =L62*(1+$C61) -> 2475445804 | N62: =M62*(1+$C61) -> 3146302772 | O62: =N62*(1+$C61) -> 3998965003 | P62: =O62*(1+$C61) -> 5082702541 | Q62: =P62*(1+$C61) -> 6460137835 | R62: =Q62*(1+$C61) -> 8210864302
C63: =C60 -> -225000000 | D63: 0 | E63: 0 | F63: 0 | G63: 0 | H63: 0 | I63: 0 | J63: 0 | K63: 0 | L63: 0 | M63: 0 | N63: 0 | O63: 0 | P63: 0 | Q63: 0 | R63: =R62 -> 8210864302
B64: Check | C64: =IRR(63:63) -> 0.2710045066
B66: GOAL SEEK | C66: 7
B67: Target Project IRR | C67: =C66/100 -> 0.07
B68: Difference | C68: =C67-C85 -> 0.00013126436
B70: nb: to enable goal seek macro, ctrl+L
B72: AES Alternative-Target IRR
B73: MW | C73: 270
B74: Investment (USD) | C74: 225000000
B75: Capacity Charge (USD/KW-Month) | C75: 7.618306451
B76: Carrying Charge | C76: =D80/C74 -> 0.1097036129
B79: Year | C79: 1 | D79: 2 | E79: 3 | F79: 4 | G79: 5 | H79: 6 | I79: 7 | J79: 8 | K79: 9 | L79: 10 | M79: 11 | N79: 12 | O79: 13 | P79: 14 | Q79: 15 | R79: 16
B80: Capacity Revenues | D80: =$C73*1000*12*$C75 -> 24683312.9 | E80: 24683312.9 | F80: 24683312.9 | G80: 24683312.9 | H80: 24683312.9 | I80: 24683312.9 | J80: 24683312.9 | K80: 24683312.9 | L80: 24683312.9 | M80: 24683312.9 | N80: 24683312.9 | O80: 24683312.9 | P80: 24683312.9 | Q80: 24683312.9 | R80: 24683312.9
B81: Investment (USD) | C81: =-C74 -> -225000000
B82: Accumulated Cash-Flow | C82: =SUM(C81) -> -225000000 | D82: =C82+SUM(D80:D81) -> -200316687.1 | E82: =D82+SUM(E80:E81) -> -175633374.2 | F82: -150950061.3 | G82: -126266748.4 | H82: -101583435.5 | I82: -76900122.6 | J82: -52216809.7 | K82: -27533496.8 | L82: -2850183.898 | M82: 21833129 | N82: 46516441.9 | O82: 71199754.8 | P82: 95883067.7 | Q82: 120566380.6 | R82: 145249693.5
B83: Pay-back Period (Post Construction) | C83: =MATCH(0,82:82)-3 -> 9
B84: Project Cash-Flow | C84: =C81+C80 -> -225000000 | D84: =D81+D80 -> 24683312.9 | E84: 24683312.9 | F84: 24683312.9 | G84: 24683312.9 | H84: 24683312.9 | I84: 24683312.9 | J84: 24683312.9 | K84: 24683312.9 | L84: 24683312.9 | M84: 24683312.9 | N84: 24683312.9 | O84: 24683312.9 | P84: 24683312.9 | Q84: 24683312.9 | R84: 24683312.9
B85: Project IRR | C85: =IRR(84:84) -> 0.06986873564
B86: Project Investment Growth | C86: =-C84 -> 225000000 | D86: =C86*(1+$C85) -> 240720465.5 | E86: =D86*(1+$C85) -> 257539300.1 | F86: 275533245.4 | G86: 294784404.8 | H86: 315380618.5 | I86: 337415863.6 | J86: 360990683.3 | K86: 386212645.9 | L86: 413196835.2 | M86: 442066375.7 | N86: 472952994.4 | O86: 505997622.1 | P86: 541351036.2 | Q86: 579174548.7 | R86: 619640742.1
C87: =C84 -> -225000000 | D87: 0 | E87: 0 | F87: 0 | G87: 0 | H87: 0 | I87: 0 | J87: 0 | K87: 0 | L87: 0 | M87: 0 | N87: 0 | O87: 0 | P87: 0 | Q87: 0 | R87: =R86 -> 619640742.1
B88: Check | C88: =IRR(87:87) -> 0.06986873564
B92: Actual Cost | C92: =F29 -> 142992540
B93: Benchmark CT | C93: =G29-F29 -> -49496009.81
B94: Subtotol CT | C94: =SUM(C92:C93) -> 93496530.19
B96: Benchmark NGCC | C96: =H29-G29 -> -20899116.58
B97: Cost of NGCC

Sheet Solar Financial Model
A2: TIMING | F2: Drivers of Formula
B3: Period | H3: =E16 -> 2016 | I3: =H3+1 -> 2017 | J3: =I3+1 -> 2018 | K3: 2019 | L3: 2020 | M3: 2021 | N3: 2022 | O3: 2023 | P3: 2024 | Q3: 2025 | R3: 2026 | S3: 2027 | T3: 2028 | U3: 2029 | V3: 2030 | W3: 2031 | X3: 2032 | Y3: 2033 | Z3: 2034 | AA3: 2035 | AB3: 2036 | AC3: 2037 | AD3: 2038 | AE3: 2039 | AF3: 2040 | AG3: 2041 | AH3: 2042 | AI3: 2043 | AJ3: 2044 | AK3: 2045 | AL3: 2046 | AM3: 2047 | AN3: 2048 | AO3: 2049 | AP3: 2050 | AQ3: 2051
B4: Construction Period | F4: =E16 -> 2016 | G4: =E17 -> 2017 | H4: =AND(H$3>=$F4,H$3<$G4) -> TRUE | I4: =AND(I$3>=$F4,I$3<$G4) -> FALSE | J4: FALSE | K4: FALSE | L4: FALSE | M4: FALSE | N4: FALSE | O4: FALSE | P4: FALSE | Q4: FALSE | R4: FALSE | S4: FALSE | T4: FALSE | U4: FALSE | V4: FALSE | W4: FALSE | X4: FALSE | Y4: FALSE | Z4: FALSE | AA4: FALSE | AB4: FALSE | AC4: FALSE | AD4: FALSE | AE4: FALSE | AF4: FALSE | AG4: FALSE | AH4: FALSE | AI4: FALSE | AJ4: FALSE | AK4: FALSE | AL4: FALSE | AM4: FALSE | AN4: FALSE | AO4: FALSE | AP4: FALSE | AQ4: FALSE
B5: Operation Period | F5: =E17 -> 2017 | G5: =E19 -> 2037 | H5: =AND(H$3>=$F5,H$3<$G5) -> FALSE | I5: TRUE | J5: TRUE | K5: TRUE | L5: TRUE | M5: TRUE | N5: TRUE | O5: TRUE | P5: TRUE | Q5: TRUE | R5: TRUE | S5: TRUE | T5: TRUE | U5: TRUE | V5: TRUE | W5: TRUE | X5: TRUE | Y5: TRUE | Z5: TRUE | AA5: TRUE | AB5: TRUE | AC5: FALSE | AD5: FALSE | AE5: FALSE | AF5: FALSE | AG5: FALSE | AH5: FALSE | AI5: FALSE | AJ5: FALSE | AK5: FALSE | AL5: FALSE | AM5: FALSE | AN5: FALSE | AO5: FALSE | AP5: FALSE | AQ5: FALSE
A7: ASSUMPTIONS
B8: General
D9: In Thousands | F9: 1000
D10: MW to KW | F10: 1000
D11: Hours/ Annum | F11: =24*365 -> 8760
C12: EXCHANGE RATES
D13: Currency Rates | E13: Pes (GHP)/ Cedis (GHS) | F13: 100
D14: Exchange Rate | E14: Cedis (GHS)/ Dollar | F14: ='Sensitivity and Tornado'!K12 -> 4.5
B15: Timing
C16: Start Date | E16: 2016
C17: Commercial Operation Date (COD) | E17: 2017
C18: Life Time | E18: ='Sensitivity and Tornado'!D12 -> 20
C19: End Date (Decommissioning Date) | E19: =SUM(E17:E18) -> 2037
B20: Operations
C21: Capacity (MWP - Mega Watt Peak) | E21: MWP | F21: 20
C22: Annual Capacity Factor | E22: % | F22: ='Sensitivity and Tornado'!E12 -> 0.18
C23: Degradation Rate | E23: % | F23: ='Sensitivity and Tornado'!F12 -> 0.15
C24: Degradation Period | E24: Years | F24: 20
C25: Annual Degradation Factor | E25: % | F25: =(1+F23)^(1/F24)-1 -> 0.007012570844
B26: EPC Contract
C27: Panel (Equipment) Cost/ KW | E27: USD/ KW | F27: ='Sensitivity and Tornado'!G12 -> 600
C28: Balance of System Cost/ KW | E28: USD/ KW | F28: ='Sensitivity and Tornado'!H12 -> 550
C29: TOTAL EPC COST | E29: USD/ KW | F29: =SUM(F27:F28) -> 1150
B30: Feed-in Tariff | E30: Year | F30: 2016 | G30: 2018 | H30: 2021 | I30: 2028
C31: Code Number | E31: 1
C32: Base Case | E32: GHP (Pes.)/ KW | F32: 58.3249 | G32: 62 | H32: 65 | I32: 70
C33: Downside Case | E33: GHP (Pes.)/ KW | F33: =F32 -> 58.3249 | G33: 50 | H33: 45 | I33: 40
C34: Flat Case | E34: GHP (Pes.)/ KW | F34: =F32 -> 58.3249 | G34: =F34 -> 58.3249 | H34: =G34 -> 58.3249 | I34: =H34 -> 58.3249
C35: Upside Case | E35: GHP (Pes.)/ KW | F35: =F32 -> 58.3249 | G35: 65 | H35: 70 | I35: 75
C37: =INDEX(C32:C35,$E$31) -> Base Case | E37: =INDEX(E32:E35,$E$31) -> GHP (Pes.)/ KW | F37: =INDEX(F32:F35,$E$31) -> 58.3249 | G37: =INDEX(G32:G35,$E$31) -> 62 | H37: =INDEX(H32:H35,$E$31) -> 65 | I37: =INDEX(I32:I35,$E$31) -> 70
B38: Inflation | F38: 2016 | G38: 2018 | H38: 2021 | I38: 2028
C39: Ghana Inflation
D40: Base Case | F40: 0.1 | G40: 0.1 | H40: 0.1 | I40: 0.1
D41: Low Case
D42: High Case
C44: US Inflation | F44: 0.01 | G44: 0.015 | H44: 0.02 | I44: 0.02
B46: O+M Contract | E46: USD/KW-YEAR | F46: ='Sensitivity and Tornado'!I12 -> 15
A48: FINANCING ASSUMPTIONS
B49: Bank Loan | E49: USD'000 | F49: =70%*F65 -> 16100
B50: Tenor | E50: Years | F50: 8
B51: Interest Rate | E51: % | F51: 0.15
A57: OPERATIONS
B58: Capacity | E58: MW | F58: =F21 -> 20 | H58: =$F$58*H5 -> 0 | I58: 20 | J58: 20 | K58: 20 | L58: 20 | M58: 20 | N58: 20 | O58: 20 | P58: 20 | Q58: 20 | R58: 20 | S58: 20 | T58: 20 | U58: 20 | V58: 20 | W58: 20 | X58: 20 | Y58: 20 | Z58: 20 | AA58: 20 | AB58: 20 | AC58: 0 | AD58: 0 | AE58: 0 | AF58: 0 | AG58: 0 | AH58: 0 | AI58: 0 | AJ58: 0 | AK58: 0 | AL58: 0 | AM58: 0 | AN58: 0 | AO58: 0 | AP58: 0 | AQ58: 0
B59: Generation before Degradation | E59: MWH | F59: =F22 -> 0.18 | H59: =H58*$F$11*$F$59 -> 0 | I59: 31536 | J59: 31536 | K59: 31536 | L59: 31536 | M59: 31536 | N59: 31536 | O59: 31536 | P59: 31536 | Q59: 31536 | R59: 31536 | S59: 31536 | T59: 31536 | U59: 31536 | V59: 31536 | W59: 31536 | X59: 31536 | Y59: 31536 | Z59: 31536 | AA59: 31536 | AB59: 31536 | AC59: 0 | AD59: 0 | AE59: 0 | AF59: 0 | AG59: 0 | AH59: 0 | AI59: 0 | AJ59: 0 | AK59: 0 | AL59: 0 | AM59: 0 | AN59: 0 | AO59: 0 | AP59: 0 | AQ59: 0
B60: Degradation Factor | E60: Index | F60: =F25 -> 0.007012570844 | H60: 1 | I60: =H60*(1-$F$60*I5) -> 0.9929874292 | J60: 0.9860240345 | K60: 0.9791094711 | L60: 0.9722433965 | M60: 0.9654254708 | N60: 0.9586553563 | O60: 0.9519327177 | P60: 0.9452572221 | Q60: 0.9386285389 | R60: 0.9320463397 | S60: 0.9255102988 | T60: 0.9190200922 | U60: 0.9125753987 | V60: 0.9061758991 | W60: 0.8998212764 | X60: 0.8935112159 | Y60: 0.8872454052 | Z60: 0.881023534 | AA60: 0.874845294 | AB60: 0.8687103794 | AC60: 0.8687103794 | AD60: 0.8687103794 | AE60: 0.8687103794 | AF60: 0.8687103794 | AG60: 0.8687103794 | AH60: 0.8687103794 | AI60: 0.8687103794 | AJ60: 0.8687103794 | AK60: 0.8687103794 | AL60: 0.8687103794 | AM60: 0.8687103794 | AN60: 0.8687103794 | AO60: 0.8687103794 | AP60: 0.8687103794 | AQ60: 0.8687103794
B61: Generation after/ with Degradation | E61: MWH | H61: =H59*H60 -> 0 | I61: =I59*I60 -> 31314.85157 | J61: =J59*J60 -> 31095.25395 | K61: 30877.19628 | L61: 30660.66775 | M61: 30445.65765 | N61: 30232.15532 | O61: 30020.15019 | P61: 29809.63176 | Q61: 29600.5896 | R61: 29393.01337 | S61: 29186.89278 | T61: 28982.21763 | U61: 28778.97777 | V61: 28577.16315 | W61: 28376.76377 | X61: 28177.76971 | Y61: 27980.1711 | Z61: 27783.95817 | AA61: 27589.12119 | AB61: 27395.65053 | AC61: 0 | AD61: 0 | AE61: 0 | AF61: 0 | AG61: 0 | AH61: 0 | AI61: 0 | AJ61: 0 | AK61: 0 | AL61: 0 | AM61: 0 | AN61: 0 | AO61: 0 | AP61: 0 | AQ61: 0
A64: CAPEX
B65: EPC | E65: USD'000 | F65: =F58*F10*F29/F9 -> 23000 | G65: =E17-E16 -> 1 | H65: =$F$65/$G$65*H4 -> 23000 | I65: 0 | J65: 0 | K65: 0 | L65: 0 | M65: 0 | N65: 0 | O65: 0 | P65: 0 | Q65: 0 | R65: 0 | S65: 0 | T65: 0 | U65: 0 | V65: 0 | W65: 0 | X65: 0 | Y65: 0 | Z65: 0 | AA65: 0 | AB65: 0 | AC65: 0 | AD65: 0 | AE65: 0 | AF65: 0 | AG65: 0 | AH65: 0 | AI65: 0 | AJ65: 0 | AK65: 0 | AL65: 0 | AM65: 0 | AN65: 0 | AO65: 0 | AP65: 0 | AQ65: 0
A67: REVENUES
B68: Feed-in Tariff | E68: GHP/ KWH | H68: =LOOKUP(H3,30:30,37:37) -> 58.3249 | I68: 58.3249 | J68: 62 | K68: 62 | L68: 62 | M68: 65 | N68: 65 | O68: 65 | P68: 65 | Q68: 65 | R68: 65 | S68: 65 | T68: 70 | U68: 70 | V68: 70 | W68: 70 | X68: 70 | Y68: 70 | Z68: 70 | AA68: 70 | AB68: 70 | AC68: 70 | AD68: 70 | AE68: 70 | AF68: 70 | AG68: 70 | AH68: 70 | AI68: 70 | AJ68: 70 | AK68: 70 | AL68: 70 | AM68: 70 | AN68: 70 | AO68: 70 | AP68: 70 | AQ68: 70
B69: Exchange Rate | E69: Cedis (GHS)/ Dollar | F69: =F14 -> 4.5 | H69: =$F$69 -> 4.5 | I69: =$F$69 -> 4.5 | J69: 4.5 | K69: 4.5 | L69: 4.5 | M69: 4.5 | N69: 4.5 | O69: 4.5 | P69: 4.5 | Q69: 4.5 | R69: 4.5 | S69: 4.5 | T69: 4.5 | U69: 4.5 | V69: 4.5 | W69: 4.5 | X69: 4.5 | Y69: 4.5 | Z69: 4.5 | AA69: 4.5 | AB69: 4.5 | AC69: 4.5 | AD69: 4.5 | AE69: 4.5 | AF69: 4.5 | AG69: 4.5 | AH69: 4.5 | AI69: 4.5 | AJ69: 4.5 | AK69: 4.5 | AL69: 4.5 | AM69: 4.5 | AN69: 4.5 | AO69: 4.5 | AP69: 4.5 | AQ69: 4.5
B70: Feed-in Tariff | E70: USD/ MWH | H70: =H68/H69*10 -> 129.6108889 | I70: =I68/I69*10 -> 129.6108889 | J70: 137.7777778 | K70: 137.7777778 | L70: 137.7777778 | M70: 144.4444444 | N70: 144.4444444 | O70: 144.4444444 | P70: 144.4444444 | Q70: 144.4444444 | R70: 144.4444444 | S70: 144.4444444 | T70: 155.5555556 | U70: 155.5555556 | V70: 155.5555556 | W70: 155.5555556 | X70: 155.5555556 | Y70: 155.5555556 | Z70: 155.5555556 | AA70: 155.5555556 | AB70: 155.5555556 | AC70: 155.5555556 | AD70: 155.5555556 | AE70: 155.5555556 | AF70: 155.5555556 | AG70: 155.5555556 | AH70: 155.5555556 | AI70: 155.5555556 | AJ70: 155.5555556 | AK70: 155.5555556 | AL70: 155.5555556 | AM70: 155.5555556 | AN70: 155.5555556 | AO70: 155.5555556 | AP70: 155.5555556 | AQ70: 155.5555556
B71: Actual Revenue | E71: USD'000 | H71: =H70*H61/$F$9 -> 0 | I71: 4058.745747 | J71: =J70*J61/$F$9 -> 4284.234989 | K71: 4254.191487 | L71: 4224.358668 | M71: 4397.706105 | N71: 4366.866879 | O71: 4336.243916 | P71: 4305.835698 | Q71: 4275.64072 | R71: 4245.657487 | S71: 4215.884513 | T71: 4508.344964 | U71: 4476.729876 | V71: 4445.336491 | W71: 4414.163253 | X71: 4383.208621 | Y71: 4352.47106 | Z71: 4321.949048 | AA71: 4291.641074 | AB71: 4261.545637 | AC71: 0 | AD71: 0 | AE71: 0 | AF71: 0 | AG71: 0 | AH71: 0 | AI71: 0 | AJ71: 0 | AK71: 0 | AL71: 0 | AM71: 0 | AN71: 0 | AO71: 0 | AP71: 0 | AQ71: 0
A73: OPERATING EXPENSES
B74: Annual OPEX | E74: USD/ MWH | F74: =F46/F11/F22*F10/F9 -> 0.009512937595
B75: Actual OPEX | E75: USD'000 | H75: =H61*$F$74 -> 0 | I75: 297.8962287 | J75: =J61*$F$74 -> 295.8072103 | K75: 293.7328413 | L75: 291.673019 | M75: 289.6276413 | N75: 287.5966069 | O75: 285.5798153 | P75: 283.5771666 | Q75: 281.5885617 | R75: 279.6139019 | S75: 277.6530896 | T75: 275.7060277 | U75: 273.7726196 | V75: 271.8527697 | W75: 269.9463829 | X75: 268.0533648 | Y75: 266.1736216 | Z75: 264.3070602 | AA75: 262.4535882 | AB75: 260.6131138 | AC75: 0 | AD75: 0 | AE75: 0 | AF75: 0 | AG75: 0 | AH75: 0 | AI75: 0 | AJ75: 0 | AK75: 0 | AL75: 0 | AM75: 0 | AN75: 0 | AO75: 0 | AP75: 0 | AQ75: 0
A77: EBIDTA | E77: Revenue - OPEX | H77: =H71-H75 -> 0 | I77: =I71-I75 -> 3760.849518 | J77: 3988.427778 | K77: 3960.458646 | L77: 3932.685649 | M77: 4108.078464 | N77: 4079.270272 | O77: 4050.6641 | P77: 4022.258532 | Q77: 3994.052159 | R77: 3966.043585 | S77: 3938.231423 | T77: 4232.638937 | U77: 4202.957256 | V77: 4173.483721 | W77: 4144.216871 | X77: 4115.155256 | Y77: 4086.297438 | Z77: 4057.641988 | AA77: 4029.187486 | AB77: 4000.932523 | AC77: 0 | AD77: 0 | AE77: 0 | AF77: 0 | AG77: 0 | AH77: 0 | AI77: 0 | AJ77: 0 | AK77: 0 | AL77: 0 | AM77: 0 | AN77: 0 | AO77: 0 | AP77: 0 | AQ77: 0
A79: PRE-TAX CASH-FLOW | E79: EBIDTA-CAPEX | H79: =H77-H65 -> -23000 | I79: =I77-I65 -> 3760.849518 | J79: 3988.427778 | K79: 3960.458646 | L79: 3932.685649 | M79: 4108.078464 | N79: 4079.270272 | O79: 4050.6641 | P79: 4022.258532 | Q79: 3994.052159 | R79: 3966.043585 | S79: 3938.231423 | T79: 4232.638937 | U79: 4202.957256 | V79: 4173.483721 | W79: 4144.216871 | X79: 4115.155256 | Y79: 4086.297438 | Z79: 4057.641988 | AA79: 4029.187486 | AB79: 4000.932523 | AC79: 0 | AD79: 0 | AE79: 0 | AF79: 0 | AG79: 0 | AH79: 0 | AI79: 0 | AJ79: 0 | AK79: 0 | AL79: 0 | AM79: 0 | AN79: 0 | AO79: 0 | AP79: 0 | AQ79: 0
A81: PROJECT IRR | H81: =IRR(H79:AQ79) -> 0.1652596014
A83: PROJECT FINANCING
B84: Sources + Uses of Funds
C85: Uses of Funds | H85: =H65 -> 23000
C87: Sources of Funds
D88: Debt | H88: =F49 -> 16100
D89: Equity | H89: =H85-H88 -> 6900
B92: Debt Schedule
C93: Opening Balance | I93: =H96 -> 16100 | J93: =I96 -> 14087.5 | K93: 12075 | L93: 10062.5 | M93: 8050 | N93: 6037.5 | O93: 4025 | P93: 2012.5 | Q93: 0 | R93: 0 | S93: 0 | T93: 0 | U93: 0 | V93: 0 | W93: 0 | X93: 0 | Y93: 0 | Z93: 0 | AA93: 0 | AB93: 0 | AC93: 0 | AD93: 0 | AE93: 0 | AF93: 0 | AG93: 0 | AH93: 0 | AI93: 0 | AJ93: 0 | AK93: 0 | AL93: 0 | AM93: 0 | AN93: 0 | AO93: 0 | AP93: 0 | AQ93: 0
C94: Add: New Debt | H94: =H88 -> 16100
C95: Less: Debt Repaid | F95: =F50 -> 8 | H95: =MIN($H$88/$F$95*H5,H93) -> 0 | I95: =MIN($H$88/$F$95*I5,I93) -> 2012.5 | J95: 2012.5 | K95: 2012.5 | L95: 2012.5 | M95: 2012.5 | N95: 2012.5 | O95: 2012.5 | P95: 2012.5 | Q95: 0 | R95: 0 | S95: 0 | T95: 0 | U95: 0 | V95: 0 | W95: 0 | X95: 0 | Y95: 0 | Z95: 0 | AA95: 0 | AB95: 0 | AC95: 0 | AD95: 0 | AE95: 0 | AF95: 0 | AG95: 0 | AH95: 0 | AI95: 0 | AJ95: 0 | AK95: 0 | AL95: 0 | AM95: 0 | AN95: 0 | AO95: 0 | AP95: 0 | AQ95: 0
C96: Closing Balance | H96: =H93+H94-H95 -> 16100 | I96: =I93+I94-I95 -> 14087.5 | J96: 12075 | K96: 10062.5 | L96: 8050 | M96: 6037.5 | N96: 4025 | O96: 2012.5 | P96: 0 | Q96: 0 | R96: 0 | S96: 0 | T96: 0 | U96: 0 | V96: 0 | W96: 0 | X96: 0 | Y96: 0 | Z96: 0 | AA96: 0 | AB96: 0 | AC96: 0 | AD96: 0 | AE96: 0 | AF96: 0 | AG96: 0 | AH96: 0 | AI96: 0 | AJ96: 0 | AK96: 0 | AL96: 0 | AM96: 0 | AN96: 0 | AO96: 0 | AP96: 0 | AQ96: 0
C98: Interest Charges | F98: =F51 -> 0.15 | H98: =$F$98*H93 -> 0 | I98: =$F$98*I93 -> 2415 | J98: 2113.125 | K98: 1811.25 | L98: 1509.375 | M98: 1207.5 | N98: 905.625 | O98: 603.75 | P98: 301.875 | Q98: 0 | R98: 0 | S98: 0 | T98: 0 | U98: 0 | V98: 0 | W98: 0 | X98: 0 | Y98: 0 | Z98: 0 | AA98: 0 | AB98: 0 | AC98: 0 | AD98: 0 | AE98: 0 | AF98: 0 | AG98: 0 | AH98: 0 | AI98: 0 | AJ98: 0 | AK98: 0 | AL98: 0 | AM98: 0 | AN98: 0 | AO98: 0 | AP98: 0 | AQ98: 0
C100: Debt Service | H100: =H98+H95 -> 0 | I100: =I98+I95 -> 4427.5 | J100: 4125.625 | K100: 3823.75 | L100: 3521.875 | M100: 3220 | N100: 2918.125 | O100: 2616.25 | P100: 2314.375 | Q100: 0 | R100: 0 | S100: 0 | T100: 0 | U100: 0 | V100: 0 | W100: 0 | X100: 0 | Y100: 0 | Z100: 0 | AA100: 0 | AB100: 0 | AC100: 0 | AD100: 0 | AE100: 0 | AF100: 0 | AG100: 0 | AH100: 0 | AI100: 0 | AJ100: 0 | AK100: 0 | AL100: 0 | AM100: 0 | AN100: 0 | AO100: 0 | AP100: 0 | AQ100: 0
A102: CASHFLOW
B103: EBIDTA | H103: =H77 -> 0 | I103: =I77 -> 3760.849518 | J103: 3988.427778 | K103: 3960.458646 | L103: 3932.685649 | M103: 4108.078464 | N103: 4079.270272 | O103: 4050.6641 | P103: 4022.258532 | Q103: 3994.052159 | R103: 3966.043585 | S103: 3938.231423 | T103: 4232.638937 | U103: 4202.957256 | V103: 4173.483721 | W103: 4144.216871 | X103: 4115.155256 | Y103: 4086.297438 | Z103: 4057.641988 | AA103: 4029.187486 | AB103: 4000.932523 | AC103: 0 | AD103: 0 | AE103: 0 | AF103: 0 | AG103: 0 | AH103: 0 | AI103: 0 | AJ103: 0 | AK103: 0 | AL103: 0 | AM103: 0 | AN103: 0 | AO103: 0 | AP103: 0 | AQ103: 0
B104: Less Debt Service | H104: =-H100 -> 0 | I104: =I100 -> 4427.5 | J104: =J100 -> 4125.625 | K104: 3823.75 | L104: 3521.875 | M104: 3220 | N104: 2918.125 | O104: 2616.25 | P104: 2314.375 | Q104: 0 | R104: 0 | S104: 0 | T104: 0 | U104: 0 | V104: 0 | W104: 0 | X104: 0 | Y104: 0 | Z104: 0 | AA104: 0 | AB104: 0 | AC104: 0 | AD104: 0 | AE104: 0 | AF104: 0 | AG104: 0 | AH104: 0 | AI104: 0 | AJ104: 0 | AK104: 0 | AL104: 0 | AM104: 0 | AN104: 0 | AO104: 0 | AP104: 0 | AQ104: 0
B105: Equity Cashflow | H105: =SUM(H103:H104) -> 0 | I105: =I103-I104 -> -666.6504819 | J105: =J103-J104 -> -137.1972216 | K105: 136.7086461 | L105: 410.8106492 | M105: 888.0784635 | N105: 1161.145272 | O105: 1434.4141 | P105: 1707.883532 | Q105: 3994.052159 | R105: 3966.043585 | S105: 3938.231423 | T105: 4232.638937 | U105: 4202.957256 | V105: 4173.483721 | W105: 4144.216871 | X105: 4115.155256 | Y105: 4086.297438 | Z105: 4057.641988 | AA105: 4029.187486 | AB105: 4000.932523 | AC105: 0 | AD105: 0 | AE105: 0 | AF105: 0 | AG105: 0 | AH105: 0 | AI105: 0 | AJ105: 0 | AK105: 0 | AL105: 0 | AM105: 0 | AN105: 0 | AO105: 0 | AP105: 0 | AQ105: 0
D107: DSCR | H107: =IFERROR(H103/-H104,0) -> 0 | I107: =IFERROR(I103/-I104,0) -> -0.8494295919 | J107: -0.9667451061 | K107: -1.035752506 | L107: -1.116645437 | M107: -1.275800765 | N107: -1.397907996 | O107: -1.548271037 | P107: -1.737945895 | Q107: 0 | R107: 0 | S107: 0 | T107: 0 | U107: 0 | V107: 0 | W107: 0 | X107: 0 | Y107: 0 | Z107: 0 | AA107: 0 | AB107: 0 | AC107: 0 | AD107: 0 | AE107: 0 | AF107: 0 | AG107: 0 | AH107: 0 | AI107: 0 | AJ107: 0 | AK107: 0 | AL107: 0 | AM107: 0 | AN107: 0 | AO107: 0 | AP107: 0 | AQ107: 0
D109: Net Equity Cash-flows | H109: =-H89 -> -6900 | I109: =I105 -> -666.6504819 | J109: =J105 -> -137.1972216 | K109: 136.7086461 | L109: 410.8106492 | M109: 888.0784635 | N109: 1161.145272 | O109: 1434.4141 | P109: 1707.883532 | Q109: 3994.052159 | R109: 3966.043585 | S109: 3938.231423 | T109: 4232.638937 | U109: 4202.957256 | V109: 4173.483721 | W109: 4144.216871 | X109: 4115.155256 | Y109: 4086.297438 | Z109: 4057.641988 | AA109: 4029.187486 | AB109: 4000.932523 | AC109: 0 | AD109: 0 | AE109: 0 | AF109: 0 | AG109: 0 | AH109: 0 | AI109: 0 | AJ109: 0 | AK109: 0 | AL109: 0 | AM109: 0 | AN109: 0 | AO109: 0 | AP109: 0 | AQ109: 0
D110: EQUITY IRR | H110: =IRR(109:109) -> 0.1746705464

Sheet Sensitivity and Tornado
C1: Off-taker Risk
C3: LCOE (Levelized Cost of Electricity)
C6: IRR (equivalent to growth rate), important to investors
C7: Project IRR | D7: ='Solar Financial Model'!H81 -> 0.1652596014
C8: Debt IRR
C9: Equity IRR | N9: The tornado diagram lets me know which portion of the sensitivity matrix that is giving the most problems.
C11: Scenario Code Number | D11: 2
C12: =INDEX(C19:C23,$D$11) -> Low Case | D12: =INDEX(D19:D37,$D$11) -> 20 | E12: =INDEX(E19:E37,$D$11) -> 0.18 | F12: 0.15 | G12: 600 | H12: 550 | I12: 15 | J12: 0 | K12: 4.5
D15: RISK ANALYSIS
D16: 1 | E16: 2 | F16: 3 | G16: 4 | H16: 5 | I16: 6 | J16: 7 | K16: 8
D17: Life of Plant | E17: Capacity Factor | F17: Degradation | G17: Panel (Capital) Cost | H17: Other Cost | I17: Fixed O+M Cost | J17: Variable O+M Cost | K17: Exchange Rate | N17: Project IRR | O17: Equity IRR | P17: DSCR | Q17: Debt IRR
N18: =D7 -> 0.1652596014
C19: Base Case | D19: 23 | E19: 0.2 | F19: 0.1 | G19: 500 | H19: 450 | I19: 10 | J19: 0 | K19: 3.96 | M19: 1 | N19: 0.2740183031
C20: Low Case | D20: 20 | E20: 0.18 | F20: 0.15 | G20: 600 | H20: 550 | I20: 15 | J20: 0 | K20: 4.5 | M20: 2 | N20: 0.1652596014
C21: High Case | D21: 25 | E21: 0.22 | F21: 0.08 | G21: 480 | H21: 400 | I21: 8 | J21: 0 | K21: 3.2 | M21: 3 | N21: 0.4082291748
B22: 1 | C22: =TRANSPOSE(D17:K17&C20) -> Life of PlantLow Case | D22: =IF($B22=D$16,D$20,D$19) -> 20 | E22: =IF($B22=E$16,E$20,E$19) -> 0.2 | F22: 0.1 | G22: 500 | H22: 450 | I22: 10 | J22: 0 | K22: 3.96 | M22: 4 | N22: 0.2728471269
B23: 2 | C23: Capacity FactorLow Case | D23: =IF($B23=D$16,D$20,D$19) -> 23 | E23: =IF($B23=E$16,E$20,E$19) -> 0.18 | F23: 0.1 | G23: 500 | H23: 450 | I23: 10 | J23: 0 | K23: 3.96 | M23: 5 | N23: 0.2455435326
B24: 3 | C24: DegradationLow Case | D24: 23 | E24: 0.2 | F24: 0.15 | G24: 500 | H24: 450 | I24: 10 | J24: 0 | K24: 3.96 | M24: 6 | N24: 0.2711563234
B25: 4 | C25: Panel (Capital) CostLow Case | D25: 23 | E25: 0.2 | F25: 0.1 | G25: 600 | H25: 450 | I25: 10 | J25: 0 | K25: 3.96 | M25: 7 | N25: 0.2478861778
B26: 5 | C26: Other CostLow Case | D26: 23 | E26: 0.2 | F26: 0.1 | G26: 500 | H26: 550 | I26: 10 | J26: 0 | K26: 3.96 | M26: 8 | N26: 0.2478861778
B27: 6 | C27: Fixed O+M CostLow Case | D27: 23 | E27: 0.2 | F27: 0.1 | G27: 500 | H27: 450 | I27: 15 | J27: 0 | K27: 3.96 | M27: 9 | N27: 0.2689029615
B28: 7 | C28: Variable O+M CostLow Case | D28: 23 | E28: 0.2 | F28: 0.1 | G28: 500 | H28: 450 | I28: 10 | J28: 0 | K28: 3.96 | M28: 10 | N28: 0.2740183031
B29: 8 | C29: Exchange RateLow Case | D29: 23 | E29: 0.2 | F29: 0.1 | G29: 500 | H29: 450 | I29: 10 | J29: 0 | K29: =IF($B29=K$16,K$20,K$19) -> 4.5 | M29: 11 | N29: 0.2398109218
B30: 1 | C30: =TRANSPOSE(D17:K17)&" "&C21 -> Life of Plant High Case | D30: =IF($B30=D$16,D$21,D$19) -> 25 | E30: =IF($B30=E$16,E$21,E$19) -> 0.2 | F30: 0.1 | G30: 500 | H30: 450 | I30: 10 | J30: 0 | K30: 3.96 | M30: 12 | N30: 0.2744249417
B31: 2 | C31: Capacity Factor High Case | D31: =IF($B31=D$16,D$21,D$19) -> 23 | E31: 0.22 | F31: 0.1 | G31: 500 | H31: 450 | I31: 10 | J31: 0 | K31: 3.96 | M31: 13 | N31: 0.3022535383
B32: 3 | C32: Degradation High Case | D32: 23 | E32: 0.2 | F32: 0.08 | G32: 500 | H32: 450 | I32: 10 | J32: 0 | K32: 3.96 | M32: 14 | N32: 0.2751978395
B33: 4 | C33: Panel (Capital) Cost High Case | D33: 23 | E33: 0.2 | F33: 0.1 | G33: 480 | H33: 450 | I33: 10 | J33: 0 | K33: 3.96 | M33: 15 | N33: 0.279887872
B34: 5 | C34: Other Cost High Case | D34: 23 | E34: 0.2 | F34: 0.1 | G34: 500 | H34: 400 | I34: 10 | J34: 0 | K34: 3.96 | M34: 16 | N34: 0.2891617182
B35: 6 | C35: Fixed O+M Cost High Case | D35: 23 | E35: 0.2 | F35: 0.1 | G35: 500 | H35: 450 | I35: 8 | J35: 0 | K35: 3.96 | M35: 17 | N35: 0.2760641846
B36: 7 | C36: Variable O+M Cost High Case | D36: 23 | E36: 0.2 | F36: 0.1 | G36: 500 | H36: 450 | I36: 10 | J36: 0 | K36: 3.96 | M36: 18 | N36: 0.2740183031
B37: 8 | C37: Exchange Rate High Case | D37: 23 | E37: 0.2 | F37: 0.1 | G37: 500 | H37: 450 | I37: 10 | J37: 0 | K37: 3.2 | M37: 19 | N37: 0.340814335
D40: High vs Base | E40: Low vs Base
C41: Life of Plant | D41: =N30-$N$19 -> 0.0004066385187 | E41: =N22-$N$19 -> -0.001171176239
C42: Capacity Factor | D42: =N31-$N$19 -> 0.02823523514 | E42: =N23-$N$19 -> -0.02847477053
C43: Degradation | D43: 0.001179536339 | E43: -0.002861979737
C44: Panel (Capital) Cost | D44: 0.005869568897 | E44: -0.02613212537
C45: Other Cost | D45: 0.01514341506 | E45: -0.02613212537
C46: Fixed O+M Cost | D46: 0.002045881507 | E46: -0.005115341628
C47: Variable O+M Cost | D47: 0 | E47: 0
C48: Exchange Rate | D48: 0.06679603186 | E48: -0.03420738138

Sheet Modelling
B2: F | C2: Flexible | E2: Timing Switch
B3: A | C3: Accurate | E3: Balance Sheet
B4: S | C4: Structuring | E4: EBIDTA/Simple
B5: T | C5: Transparent | E5: Formulas Simple
E8: FINANCIALS
E9: Source of Funds
E10: Debt
E11: Equity
E12: Repayment Plan (Cash Waterfall Plan) | F12: debt service first, balance to the equity

Sheet Cost Benefit Analysis
A1: Assumptions
C2: Fuel Price Year | D2: 2018
C3: Availability | D3: 0.85
A5: COAL PLANT ANALYSIS
D6: Cost for Week | E6: Cost for Year | G6: Coal Plant | H6: USD/ KW | I6: 1900 | K6: Cost in Pakistan | M6: 1200
C7: Base Variable Cost | D7: =SUM('Marginal Cost Base Case'!$D$69:$D$236) -> 11479605.69 | E7: =D7*52 -> 596939495.9 | G7: Capacity | H7: MW | I7: 700
C8: Cost with Coal Plant | D8: =SUM('Marginal Cost with Coal'!D69:D236) -> 7104048.938 | E8: =D8*52 -> 369410544.8 | G8: Capital Cost | I8: =I7*1000*I6 -> 1330000000
C9: Savings | D9: =D7-D8 -> 4375556.753 | E9: =E7-E8 -> 227528951.2 | G9: Carrying Charge | I9: 0.15
G11: Fixed O+M | H11: USD/ KW-Year | I11: 25
C12: Annual Capacity Charge | E12: =I8*I9 -> 199500000 | G12: Fixed O+M | H12: USD/ MW-Year | I12: =I11*1000 -> 25000
C13: Fixed Charge | E13: =I12*I7 -> 17500000 | G13: Fixed O+M | H13: USD | I13: =I12*I7 -> 17500000
C14: Net Savings | E14: =E9-E12-E13 -> 10528951.16
A17: CC for Cenit
D18: Cost for Week | E18: Cost for Year | G18: CC Plant | H18: USD/ KW | I18: =270000000/110/1000 -> 2454.545455
C19: Base Variable Cost | D19: =D7 -> 11479605.69 | E19: =D19*52 -> 596939495.9 | G19: Capacity - CC for Cenit | H19: MW | I19: 110
C20: CC for Cenit | D20: =SUM('Marginal Cost with CENIT CC'!D69:D236) -> 10538180.88 | E20: =D20*52 -> 547985405.9 | G20: Capital Cost | I20: =I19*1000*I18 -> 270000000
C21: Savings | D21: =D19-D20 -> 941424.8081 | E21: =E19-E20 -> 48954090.02 | G21: Carrying Charge | I21: 0.15
C24: Annual Capacity Charge | E24: =I20*I21 -> 40500000 | G24: Fixed O+M | H24: USD/ KW-Month | I24: 10
C25: Fixed Charge | E25: =I26*I19 -> 13200000 | G25: Fixed O+M | H25: USD/ MW-Month | I25: =I24*1000 -> 10000
C26: Net Savings | E26: =E21-E24-E25 -> -4745909.978 | G26: Fixed O+M | H26: USD/ MW-Year | I26: =I25*12 -> 120000
A30: Value of Coal Plant
A31: What's the value of converting from CT (combustion turbine (simple cycle) to CC (combined cycle)
A32: What's the value of availability?
A33: What is the Liquidated Damage for Delays?

Sheet Marginal Cost Base Case
A1: FUEL COST ASSUMPTIONS | I1: NB
I2: CC = steam + simple turbine
D3: FUEL YEAR | E3: ='Cost Benefit Analysis'!D2 -> 2018 | F3: =MATCH(E3,E5:G5) -> 3
C5: Row | D5: USD/ MMBTU | E5: 2014 | F5: 2016 | G5: 2018
C6: 1 | D6: Heavy Oil | E6: =100/5.5 -> 18.18181818 | F6: =28/5.5 -> 5.090909091 | G6: =AVERAGE(E6:F6) -> 11.63636364 | O6: Demand | Q6: =H67 -> 1151.369345 | T6: Marginal Cost | U6: =INDEX(Q16:Q29,$S$13) -> 86.995 | V6: Total Cost/ Hour | W6: =SUM($U$16:$U$29) -> 48402.02617 | X6: Fuel Year | Y6: =E3 -> 2018
C7: 2 | D7: Natural Gas | E7: 8.6 | F7: 9.1 | G7: =AVERAGE(E7:F7) -> 8.85 | O7: Hydro Release | Q7: 520
C8: 3 | D8: Diesel Oil | E8: =140/5.5 -> 25.45454545 | F8: =120/5.5 -> 21.81818182 | G8: 23.63636364 | O8: Solar | Q8: 5
C9: 4 | D9: Coal | E9: 4 | F9: 4 | G9: =AVERAGE(E9:F9) -> 4 | O9: Net Demand for Thermal | Q9: =Q6-SUM(Q7:Q8) -> 626.369345
C10: 5 | D10: Option | E10: =MIN(E6,E7) -> 8.6 | F10: =MIN(F6,F7) -> 5.090909091 | G10: 8.85
A13: SUPPLY CURVE | S13: =IFERROR(MATCH(Q9,P16:P29)+1,1) -> 5
B14: PLANTS | C14: Capacity | D14: Availability | E14: Net Capacity | F14: Fuel Code | G14: Fuel Cost | H14: Heat Rate | I14: Variable O+M | J14: Total Marginal Cost | K14: Plant Code | L14: Sorted Costs | M14: Plant Code | N14: Plant Name | O14: Capacity | P14: Accumlated Capacity (MW) | Q14: Duplicate Sorted Costs | R14: Full Dispatch | S14: Partial Dispatch | T14: Total Cost (Full Dispatch) | U14: Total Cost (Full+Partial)
B15: Units | C15: MW | D15: % | E15: MW | G15: USD/ mmBTU | H15: mmBTU/MW | I15: USD/MWh | J15: USD/MWh | L15: USD/MWh | O15: MW | Q15: =L15 -> USD/MWh
B16: TICO | C16: 330 | D16: ='Cost Benefit Analysis'!D3 -> 0.85 | E16: =D16*C16 -> 280.5 | F16: 1 | G16: =INDEX($E$6:$G$10,F16,$F$3) -> 11.63636364 | H16: 7.6 | I16: 5 | J16: =(G16*H16)+I16 -> 93.43636364 | K16: 1 | L16: =SMALL($J$16:$J$29,K16) -> 40.2 | M16: =MATCH(L16,$J$16:$J$29,0) -> 13 | N16: =INDEX($B$16:$B$29,M16) -> New Coal Plant | O16: =INDEX($E$16:$E$29,M16) -> 0 | P16: =O16 -> 0 | Q16: =L16 -> 40.2 | R16: =P16<$Q$9 -> TRUE | S16: =K16=$S$13 -> FALSE | T16: =Q16*R16*O16 -> 0 | U16: =(O16*Q16*R16)+(S16*($Q$9-P15)*Q16) -> 0
B17: TAPCo | C17: 330 | D17: =D16 -> 0.85 | E17: =D17*C17 -> 280.5 | F17: 2 | G17: 8.85 | H17: 7.7 | I17: 5 | J17: =(G17*H17)+I17 -> 73.145 | K17: 2 | L17: =SMALL($J$16:$J$29,K17) -> 73.145 | M17: =MATCH(L17,$J$16:$J$29,0) -> 2 | N17: =INDEX($B$16:$B$29,M17) -> TAPCo | O17: =INDEX($E$16:$E$29,M17) -> 280.5 | P17: =P16+O17 -> 280.5 | Q17: =L17 -> 73.145 | R17: TRUE | S17: =K17=$S$13 -> FALSE | T17: =Q17*R17*O17 -> 20517.1725 | U17: 20517.1725
B18: CENIT | C18: 110 | D18: =D17 -> 0.85 | E18: 93.5 | F18: 5 | G18: 8.85 | H18: 10.2 | I18: 10 | J18: 100.27 | K18: 3 | L18: 74.03 | M18: 4 | N18: SAP | O18: 170 | P18: =P17+O18 -> 450.5 | Q18: 74.03 | R18: TRUE | S18: FALSE | T18: 12585.1 | U18: 12585.1
B19: SAP | C19: 200 | D19: 0.85 | E19: 170 | F19: 2 | G19: 8.85 | H19: 7.8 | I19: 5 | J19: 74.03 | K19: 4 | L19: 84.12727273 | M19: 14 | N19: New Combined Cycle Plant | O19: 0 | P19: 450.5 | Q19: 84.12727273 | R19: TRUE | S19: FALSE | T19: 0 | U19: 0
B20: KTPP | C20: 220 | D20: 0.85 | E20: 187 | F20: 2 | G20: 8.85 | H20: 10.2 | I20: 9.95 | J20: 100.22 | K20: 5 | L20: 86.995 | M20: 8 | N20: AMERI | O20: 212.5 | P20: 663 | Q20: 86.995 | R20: FALSE | S20: TRUE | T20: 0 | U20: 15299.75367
B21: TT1PP | C21: 110 | D21: 0.85 | E21: 93.5 | F21: 1 | G21: 11.63636364 | H21: 10.2 | I21: 9.9 | J21: 128.5909091 | K21: 6 | L21: 88.965 | M21: 7 | N21: TT2PP | O21: 71.4 | P21: 734.4 | Q21: 88.965 | R21: FALSE | S21: FALSE | T21: 0 | U21: 0
B22: TT2PP | C22: 84 | D22: 0.85 | E22: 71.4 | F22: 2 | G22: 8.85 | H22: 8.9 | I22: 10.2 | J22: 88.965 | K22: 7 | L22: 93.43636364 | M22: 1 | N22: TICO | O22: 280.5 | P22: 1014.9 | Q22: 93.43636364 | R22: FALSE | S22: FALSE | T22: 0 | U22: 0
B23: AMERI | C23: 250 | D23: 0.85 | E23: 212.5 | F23: 2 | G23: 8.85 | H23: 8.7 | I23: 10 | J23: 86.995 | K23: 8 | L23: 100.22 | M23: 5 | N23: KTPP | O23: 187 | P23: 1201.9 | Q23: 100.22 | R23: FALSE | S23: FALSE | T23: 0 | U23: 0
B24: Kaypower | C24: 250 | D24: 0.85 | E24: 212.5 | F24: 1 | G24: 11.63636364 | H24: 9 | I24: 12 | J24: 116.7272727 | K24: 9 | L24: 100.27 | M24: 3 | N24: CENIT | O24: 93.5 | P24: 1295.4 | Q24: 100.27 | R24: FALSE | S24: FALSE | T24: 0 | U24: 0
B25: Trojan | C25: 23 | D25: 0.85 | E25: 19.55 | F25: 3 | G25: 23.63636364 | H25: 11 | I25: 15 | J25: 275 | K25: 10 | L25: 116.7272727 | M25: 9 | N25: Kaypower | O25: 212.5 | P25: 1507.9 | Q25: 116.7272727 | R25: FALSE | S25: FALSE | T25: 0 | U25: 0
B26: Consumer Diesel Plant | C26: 2000 | D26: 0.85 | E26: 1700 | F26: 3 | G26: 23.63636364 | H26: 13.5 | I26: 15 | J26: 334.0909091 | K26: 11 | L26: 120.625 | M26: 12 | N26: MRP | O26: 68 | P26: 1575.9 | Q26: 120.625 | R26: FALSE | S26: FALSE | T26: 0 | U26: 0
B27: MRP | C27: 80 | D27: 0.85 | E27: 68 | F27: 2 | G27: 8.85 | H27: 12.5 | I27: 10 | J27: 120.625 | K27: 12 | L27: 128.5909091 | M27: 6 | N27: TT1PP | O27: 93.5 | P27: 1669.4 | Q27: 128.5909091 | R27: FALSE | S27: FALSE | T27: 0 | U27: 0
B28: New Coal Plant | C28: 0 | D28: 0.85 | E28: 0 | F28: 4 | G28: 4 | H28: 8.8 | I28: 5 | J28: 40.2 | K28: 13 | L28: 275 | M28: 10 | N28: Trojan | O28: 19.55 | P28: 1688.95 | Q28: 275 | R28: FALSE | S28: FALSE | T28: 0 | U28: 0
B29: New Combined Cycle Plant | C29: 0 | D29: 0.85 | E29: 0 | F29: 1 | G29: 11.63636364 | H29: 6.8 | I29: 5 | J29: 84.12727273 | K29: 14 | L29: 334.0909091 | M29: 11 | N29: Consumer Diesel Plant | O29: 1700 | P29: 3388.95 | Q29: 334.0909091 | R29: FALSE | S29: FALSE | T29: 0 | U29: 0
C32: SUPPLY CURVE GRAPH INFO
C33: no. of plants x 2 | D33: logical argument to get stepped graph | E33: Variable Cost Code | F33: Capacity Code | G33: Capacity | H33: =Q14 -> Duplicate Sorted Costs | I33: Demand
H34: =Q15 -> USD/MWh
C35: 1 | D35: TRUE | E35: 1 | G35: 0 | H35: =INDEX($Q$16:$Q$29,E35) -> 40.2 | I35: =Q6 -> 1151.369345
C36: 2 | D36: =NOT(D35) -> FALSE | E36: =E35+D36 -> 1 | F36: =E35 -> 1 | G36: =INDEX($P$16:$P$29,F36) -> 0 | H36: =INDEX($Q$16:$Q$29,E36) -> 40.2 | I36: =I35 -> 1151.369345
C37: 3 | D37: =NOT(D36) -> TRUE | E37: =E36+D37 -> 2 | F37: =E36 -> 1 | G37: =INDEX($P$16:$P$29,F37) -> 0 | H37: 73.145 | I37: =I36 -> 1151.369345
C38: 4 | D38: FALSE | E38: 2 | F38: 2 | G38: 280.5 | H38: 73.145 | I38: 1151.369345
C39: 5 | D39: TRUE | E39: 3 | F39: 2 | G39: 280.5 | H39: 74.03 | I39: 1151.369345
C40: 6 | D40: FALSE | E40: 3 | F40: 3 | G40: 450.5 | H40: 74.03 | I40: 1151.369345
C41: 7 | D41: TRUE | E41: 4 | F41: 3 | G41: 450.5 | H41: 84.12727273 | I41: 1151.369345
C42: 8 | D42: FALSE | E42: 4 | F42: 4 | G42: 450.5 | H42: 84.12727273 | I42: 1151.369345
C43: 9 | D43: TRUE | E43: 5 | F43: 4 | G43: 450.5 | H43: 86.995 | I43: 1151.369345
C44: 10 | D44: FALSE | E44: 5 | F44: 5 | G44: 663 | H44: 86.995 | I44: 1151.369345
C45: 11 | D45: TRUE | E45: 6 | F45: 5 | G45: 663 | H45: 88.965 | I45: 1151.369345
C46: 12 | D46: FALSE | E46: 6 | F46: 6 | G46: 734.4 | H46: 88.965 | I46: 1151.369345
C47: 13 | D47: TRUE | E47: 7 | F47: 6 | G47: 734.4 | H47: 93.43636364 | I47: 1151.369345
C48: 14 | D48: FALSE | E48: 7 | F48: 7 | G48: 1014.9 | H48: 93.43636364 | I48: 1151.369345
C49: 15 | D49: TRUE | E49: 8 | F49: 7 | G49: 1014.9 | H49: 100.22 | I49: 1151.369345
C50: 16 | D50: FALSE | E50: 8 | F50: 8 | G50: 1201.9 | H50: 100.22 | I50: 1151.369345
C51: 17 | D51: TRUE | E51: 9 | F51: 8 | G51: 1201.9 | H51: 100.27 | I51: 1151.369345
C52: 18 | D52: FALSE | E52: 9 | F52: 9 | G52: 1295.4 | H52: 100.27 | I52: 1151.369345
C53: 19 | D53: TRUE | E53: 10 | F53: 9 | G53: 1295.4 | H53: 116.7272727 | I53: 1151.369345
C54: 20 | D54: FALSE | E54: 10 | F54: 10 | G54: 1507.9 | H54: 116.7272727 | I54: 1151.369345
C55: 21 | D55: TRUE | E55: 11 | F55: 10 | G55: 1507.9 | H55: 120.625 | I55: 1151.369345
C56: 22 | D56: FALSE | E56: 11 | F56: 11 | G56: 1575.9 | H56: 120.625 | I56: 1151.369345
C57: 23 | D57: TRUE | E57: 12 | F57: 11 | G57: 1575.9 | H57: 128.5909091 | I57: 1151.369345
C58: 24 | D58: FALSE | E58: 12 | F58: 12 | G58: 1669.4 | H58: 128.5909091 | I58: 1151.369345
C59: 25 | D59: TRUE | E59: 13 | F59: 12 | G59: 1669.4 | H59: 275 | I59: 1151.369345
C60: 26 | D60: FALSE | E60: 13 | F60: 13 | G60: 1688.95 | H60: 275 | I60: 1151.369345
C61: 27 | D61: TRUE | E61: 14 | F61: 13 | G61: 1688.95 | H61: 334.0909091 | I61: 1151.369345
C62: 28 | D62: FALSE | E62: 14 | F62: 14 | G62: 3388.95 | H62: 334.0909091 | I62: 1151.369345
A66: DEMAND AND SUPPLY
C67: ='Hourly Loads'!C1 -> GHANA CONSUMPTION | G67: 30 | H67: =INDEX(C69:C236,G67) -> 1151.369345
C68: ='Hourly Loads'!C2 -> HOURLY_AVERAGE(MW) | D68: =W6 -> 48402.02617
C69: ='Hourly Loads'!C3 -> 1323.357341 | D69: 63916.75233 | E69: ='Hourly Loads'!E3 -> 1
C70: ='Hourly Loads'!C4 -> 1325.932964 | D70: 64157.40921 | E70: ='Hourly Loads'!E4 -> 2
C71: ='Hourly Loads'!C5 -> 1322.826543 | D71: 63867.15651 | E71: ='Hourly Loads'!E5 -> 3
C72: ='Hourly Loads'!C6 -> 1286.293522 | D72: 60453.64391 | E72: ='Hourly Loads'!E6 -> 4
C73: ='Hourly Loads'!C7 -> 1306.365008 | D73: 62329.05061 | E73: ='Hourly Loads'!E7 -> 5
C74: ='Hourly Loads'!C8 -> 1302.636851 | D74: 61980.70512 | E74: ='Hourly Loads'!E8 -> 6
C75: ='Hourly Loads'!C9 -> 1210.816174 | D75: 53618.5509 | E75: ='Hourly Loads'!E9 -> 7
C76: ='Hourly Loads'!C10 -> 1194.151857 | D76: 52136.00994 | E76: ='Hourly Loads'!E10 -> 8
C77: ='Hourly Loads'!C11 -> 1215.502005 | D77: 54035.42583 | E77: ='Hourly Loads'!E11 -> 9
C78: ='Hourly Loads'!C12 -> 1209.783964 | D78: 53526.72034 | E78: ='Hourly Loads'!E12 -> 10
C79: ='Hourly Loads'!C13 -> 1290.064538 | D79: 60805.99395 | E79: ='Hourly Loads'!E13 -> 11
C80: ='Hourly Loads'!C14 -> 1230.760514 | D80: 55392.89909 | E80: ='Hourly Loads'!E14 -> 12
C81: ='Hourly Loads'!C15 -> 1156.456818 | D81: 48844.61085 | E81: ='Hourly Loads'!E15 -> 13
C82: ='Hourly Loads'!C16 -> 1203.149232 | D82: 52936.46139 | E82: ='Hourly Loads'!E16 -> 14
C83: ='Hourly Loads'!C17 -> 1256.534844 | D83: 57685.91236 | E83: ='Hourly Loads'!E17 -> 15
C84: ='Hourly Loads'!C18 -> 1240.441469 | D84: 56254.16533 | E84: ='Hourly Loads'!E18 -> 16
C85: ='Hourly Loads'!C19 -> 1153.767267 | D85: 48610.63335 | E85: ='Hourly Loads'!E19 -> 17
C86: ='Hourly Loads'!C20 -> 1128.458281 | D86: 46408.87813 | E86: ='Hourly Loads'!E20 -> 18
C87: ='Hourly Loads'!C21 -> 1361.270261 | D87: 67459.19776 | E87: ='Hourly Loads'!E21 -> 19
C88: ='Hourly Loads'!C22 -> 1495.083605 | D88: 79962.22998 | E88: ='Hourly Loads'!E22 -> 20
C89: ='Hourly Loads'!C23 -> 1515.449243 | D89: 81865.12116 | E89: ='Hourly Loads'!E23 -> 21
C90: ='Hourly Loads'!C24 -> 1499.591607 | D90: 80383.44133 | E90: ='Hourly Loads'!E24 -> 22
C91: ='Hourly Loads'!C25 -> 1413.025111 | D91: 72294.98273 | E91: ='Hourly Loads'!E25 -> 23
C92: ='Hourly Loads'!C26 -> 1384.225023 | D92: 69604.00721 | E92: ='Hourly Loads'!E26 -> 24
C93: ='Hourly Loads'!C27 -> 1290.33632 | D93: 60831.38824 | E93: ='Hourly Loads'!E27 -> 25
C94: ='Hourly Loads'!C28 -> 1199.231653 | D94: 52587.93403 | E94: ='Hourly Loads'!E28 -> 26
C95: ='Hourly Loads'!C29 -> 1158.344211 | D95: 49008.80461 | E95: ='Hourly Loads'!E29 -> 27
C96: ='Hourly Loads'!C30 -> 1110.595583 | D96: 44854.91273 | E96: ='Hourly Loads'!E30 -> 28
C97: ='Hourly Loads'!C31 -> 1125.810885 | D97: 46178.56796 | E97: ='Hourly Loads'!E31 -> 29
C98: ='Hourly Loads'!C32 -> 1151.369345 | D98: 48402.02617 | E98: ='Hourly Loads'!E32 -> 30
C99: ='Hourly Loads'!C33 -> 1103.010865 | D99: 44195.0802 | E99: ='Hourly Loads'!E33 -> 31
C100: ='Hourly Loads'!C34 -> 1161.887241 | D100: 49317.03052 | E100: ='Hourly Loads'!E34 -> 32
C101: ='Hourly Loads'!C35 -> 1185.90838 | D101: 51406.7495 | E101: ='Hourly Loads'!E35 -> 33
C102: ='Hourly Loads'!C36 -> 1242.049966 | D102: 56397.26522 | E102: ='Hourly Loads'!E36 -> 34
C103: ='Hourly Loads'!C37 -> 1235.078761 | D103: 55777.07196 | E103: ='Hourly Loads'!E37 -> 35
C104: ='Hourly Loads'!C38 -> 1234.263135 | D104: 55704.50981 | E104: ='Hourly Loads'!E38 -> 36
C105: ='Hourly Loads'!C39 -> 1277.840663 | D105: 59663.83952 | E105: ='Hourly Loads'!E39 -> 37
C106: ='Hourly Loads'!C40 -> 1261.890152 | D106: 58173.48179 | E106: ='Hourly Loads'!E40 -> 38
C107: ='Hourly Loads'!C41 -> 1169.888301 | D107: 50013.08277 | E107: ='Hourly Loads'!E41 -> 39
C108: ='Hourly Loads'!C42 -> 1148.041192 | D108: 48112.49352 | E108: ='Hourly Loads'!E42 -> 40
C109: ='Hourly Loads'!C43 -> 1244.208369 | D109: 56589.2875 | E109: ='Hourly Loads'!E43 -> 41
C110: ='Hourly Loads'!C44 -> 1202.507255 | D110: 52879.34793 | E110: ='Hourly Loads'!E44 -> 42
C111: ='Hourly Loads'!C45 -> 1451.472847 | D111: 75887.39941 | E111: ='Hourly Loads'!E45 -> 43
C112: ='Hourly Loads'!C46 -> 1562.875167 | D112: 86452.28222 | E112: ='Hourly Loads'!E46 -> 44
C113: ='Hourly Loads'!C47 -> 1588.275977 | D113: 88997.95143 | E113: ='Hourly Loads'!E47 -> 45
C114: ='Hourly Loads'!C48 -> 1579.920998 | D114: 88160.61544 | E114: ='Hourly Loads'!E48 -> 46
C115: ='Hourly Loads'!C49 -> 1508.131334 | D115: 81181.36241 | E115: ='Hourly Loads'!E49 -> 47
C116: ='Hourly Loads'!C50 -> 1418.610195 | D116: 72816.83265 | E116: ='Hourly Loads'!E50 -> 48
C117: ='Hourly Loads'!C51 -> 1397.714652 | D117: 70864.42917 | E117: ='Hourly Loads'!E51 -> 49
C118: ='Hourly Loads'!C52 -> 1360.531826 | D118: 67390.20107 | E118: ='Hourly Loads'!E52 -> 50
C119: ='Hourly Loads'!C53 -> 1348.847732 | D119: 66298.48178 | E119: ='Hourly Loads'!E53 -> 51
C120: ='Hourly Loads'!C54 -> 1291.913155 | D120: 60978.72199 | E120: ='Hourly Loads'!E54 -> 52
C121: ='Hourly Loads'!C55 -> 1296.081965 | D121: 61368.24044 | E121: ='Hourly Loads'!E55 -> 53
C122: ='Hourly Loads'!C56 -> 1331.443974 | D122: 64672.33792 | E122: ='Hourly Loads'!E56 -> 54
C123: ='Hourly Loads'!C57 -> 1290.253883 | D123: 60823.68565 | E123: ='Hourly Loads'!E57 -> 55
C124: ='Hourly Loads'!C58 -> 1283.039342 | D124: 60149.5852 | E124: ='Hourly Loads'!E58 -> 56
C125: ='Hourly Loads'!C59 -> 1290.431564 | D125: 60840.28751 | E125: ='Hourly Loads'!E59 -> 57
C126: ='Hourly Loads'!C60 -> 1308.710734 | D126: 62548.22667 | E126: ='Hourly Loads'!E60 -> 58
C127: ='Hourly Loads'!C61 -> 1277.962588 | D127: 59675.23168 | E127: ='Hourly Loads'!E61 -> 59
C128: ='Hourly Loads'!C62 -> 1280.736697 | D128: 59934.43442 | E128: ='Hourly Loads'!E62 -> 60
C129: ='Hourly Loads'!C63 -> 1290.31516 | D129: 60829.41109 | E129: ='Hourly Loads'!E63 -> 61
C130: ='Hourly Loads'!C64 -> 1284.194419 | D130: 60257.51134 | E130: ='Hourly Loads'!E64 -> 62
C131: ='Hourly Loads'!C65 -> 1324.889639 | D131: 64059.92468 | E131: ='Hourly Loads'!E65 -> 63
C132: ='Hourly Loads'!C66 -> 1279.592231 | D132: 59827.49966 | E132: ='Hourly Loads'!E66 -> 64
C133: ='Hourly Loads'!C67 -> 1285.345096 | D133: 60365.02639 | E133: ='Hourly Loads'!E67 -> 65
C134: ='Hourly Loads'!C68 -> 1273.955595 | D134: 59300.83288 | E134: ='Hourly Loads'!E68 -> 66
C135: ='Hourly Loads'!C69 -> 1432.475114 | D135: 74112.32027 | E135: ='Hourly Loads'!E69 -> 67
C136: ='Hourly Loads'!C70 -> 1570.331619 | D136: 87199.56788 | E136: ='Hourly Loads'!E70 -> 68
C137: ='Hourly Loads'!C71 -> 1623.057381 | D137: 92483.74369 | E137: ='Hourly Loads'!E71 -> 69
C138: ='Hourly Loads'!C72 -> 1588.206718 | D138: 88991.01027 | E138: ='Hourly Loads'!E72 -> 70
C139: ='Hourly Loads'!C73 -> 1497.897892 | D139: 80225.1868 | E139: ='Hourly Loads'!E73 -> 71
C140: ='Hourly Loads'!C74 -> 1400.830819 | D140: 71155.59243 | E140: ='Hourly Loads'!E74 -> 72
C141: ='Hourly Loads'!C75 -> 1378.833962 | D141: 69100.28608 | E141: ='Hourly Loads'!E75 -> 73
C142: ='Hourly Loads'!C76 -> 1358.684347 | D142: 67217.57934 | E142: ='Hourly Loads'!E76 -> 74
C143: ='Hourly Loads'!C77 -> 1266.104491 | D143: 58567.25427 | E143: ='Hourly Loads'!E77 -> 75
C144: ='Hourly Loads'!C78 -> 1243.941303 | D144: 56565.528 | E144: ='Hourly Loads'!E78 -> 76
C145: ='Hourly Loads'!C79 -> 1263.130763 | D145: 58289.39996 | E145: ='Hourly Loads'!E79 -> 77
C146: ='Hourly Loads'!C80 -> 1343.930329 | D146: 65839.01754 | E146: ='Hourly Loads'!E80 -> 78
C147: ='Hourly Loads'!C81 -> 1299.1248 | D147: 61652.55186 | E147: ='Hourly Loads'!E81 -> 79
C148: ='Hourly Loads'!C82 -> 1350.756607 | D148: 66476.84017 | E148: ='Hourly Loads'!E82 -> 80
C149: ='Hourly Loads'!C83 -> 1387.700061 | D149: 69928.70219 | E149: ='Hourly Loads'!E83 -> 81
C150: ='Hourly Loads'!C84 -> 1379.796615 | D150: 69190.23286 | E150: ='Hourly Loads'!E84 -> 82
C151: ='Hourly Loads'!C85 -> 1420.617495 | D151: 73004.38747 | E151: ='Hourly Loads'!E85 -> 83
C152: ='Hourly Loads'!C86 -> 1466.194343 | D152: 77262.9224 | E152: ='Hourly Loads'!E86 -> 84
C153: ='Hourly Loads'!C87 -> 1442.831764 | D153: 75080.00798 | E153: ='Hourly Loads'!E87 -> 85
C154: ='Hourly Loads'!C88 -> 1454.678792 | D154: 76186.95123 | E154: ='Hourly Loads'!E88 -> 86
C155: ='Hourly Loads'!C89 -> 1465.389401 | D155: 77187.7116 | E155: ='Hourly Loads'!E89 -> 87
C156: ='Hourly Loads'!C90 -> 1451.706361 | D156: 75909.21804 | E156: ='Hourly Loads'!E90 -> 88
C157: ='Hourly Loads'!C91 -> 1423.518087 | D157: 73275.40826 | E157: ='Hourly Loads'!E91 -> 89
C158: ='Hourly Loads'!C92 -> 1385.280108 | D158: 69702.59054 | E158: ='Hourly Loads'!E92 -> 90
C159: ='Hourly Loads'!C93 -> 1607.892612 | D159: 90963.93062 | E159: ='Hourly Loads'!E93 -> 91
C160: ='Hourly Loads'!C94 -> 1718.399783 | D160: 102038.9592 | E160: ='Hourly Loads'!E94 -> 92
C161: ='Hourly Loads'!C95 -> 1761.563961 | D161: 106366.6064 | E161: ='Hourly Loads'!E95 -> 93
C162: ='Hourly Loads'!C96 -> 1672.9432 | D162: 97483.30052 | E162: ='Hourly Loads'!E96 -> 94
C163: ='Hourly Loads'!C97 -> 1590.57856 | D163: 89228.71632 | E163: ='Hourly Loads'!E97 -> 95
C164: ='Hourly Loads'!C98 -> 1461.281301 | D164: 76803.86565 | E164: ='Hourly Loads'!E98 -> 96
C165: ='Hourly Loads'!C99 -> 1460.23668 | D165: 76706.26007 | E165: ='Hourly Loads'!E99 -> 97
C166: ='Hourly Loads'!C100 -> 1399.546117 | D166: 71035.55453 | E166: ='Hourly Loads'!E100 -> 98
C167: ='Hourly Loads'!C101 -> 1437.65635 | D167: 74596.43618 | E167: ='Hourly Loads'!E101 -> 99
C168: ='Hourly Loads'!C102 -> 1411.54679 | D168: 72156.85381 | E168: ='Hourly Loads'!E102 -> 100
C169: ='Hourly Loads'!C103 -> 1381.586259 | D169: 69357.45071 | E169: ='Hourly Loads'!E103 -> 101
C170: ='Hourly Loads'!C104 -> 1431.57192 | D170: 74027.92911 | E170: ='Hourly Loads'!E104 -> 102
C171: ='Hourly Loads'!C105 -> 1402.955716 | D171: 71354.13504 | E171: ='Hourly Loads'!E105 -> 103
C172: ='Hourly Loads'!C106 -> 1380.108658 | D172: 69219.38904 | E172: ='Hourly Loads'!E106 -> 104
C173: ='Hourly Loads'!C107 -> 1339.702433 | D173: 65443.97834 | E173: ='Hourly Loads'!E107 -> 105
C174: ='Hourly Loads'!C108 -> 1434.12996 | D174: 74266.94312 | E174: ='Hourly Loads'!E108 -> 106
C175: ='Hourly Loads'!C109 -> 1466.521434 | D175: 77293.48458 | E175: ='Hourly Loads'!E109 -> 107
C176: ='Hourly Loads'!C110 -> 1466.471174 | D176: 77288.78852 | E176: ='Hourly Loads'!E110 -> 108
C177: ='Hourly Loads'!C111 -> 1485.928646 | D177: 79106.82391 | E177: ='Hourly Loads'!E111 -> 109
C178: ='Hourly Loads'!C112 -> 1471.734518 | D178: 77780.57621 | E178: ='Hourly Loads'!E112 -> 110
C179: ='Hourly Loads'!C113 -> 1487.657064 | D179: 79268.32105 | E179: ='Hourly Loads'!E113 -> 111
C180: ='Hourly Loads'!C114 -> 1484.726979 | D180: 78994.54454 | E180: ='Hourly Loads'!E114 -> 112
C181: ='Hourly Loads'!C115 -> 1497.119849 | D181: 80152.48922 | E181: ='Hourly Loads'!E115 -> 113
C182: ='Hourly Loads'!C116 -> 1466.692679 | D182: 77309.48511 | E182: ='Hourly Loads'!E116 -> 114
C183: ='Hourly Loads'!C117 -> 1638.211774 | D183: 94002.51695 | E183: ='Hourly Loads'!E117 -> 115
C184: ='Hourly Loads'!C118 -> 1739.203271 | D184: 104124.5 | E184: ='Hourly Loads'!E118 -> 116
C185: ='Hourly Loads'!C119 -> 1763.9152 | D185: 106602.3651 | E185: ='Hourly Loads'!E119 -> 117
C186: ='Hourly Loads'!C120 -> 1704.152343 | D186: 100611.0809 | E186: ='Hourly Loads'!E120 -> 118
C187: ='Hourly Loads'!C121 -> 1646.704143 | D187: 94853.62223 | E187: ='Hourly Loads'!E121 -> 119
C188: ='Hourly Loads'!C122 -> 1554.257076 | D188: 85588.57711 | E188: ='Hourly Loads'!E122 -> 120
C189: ='Hourly Loads'!C123 -> 1456.776792 | D189: 76382.98068 | E189: ='Hourly Loads'!E123 -> 121
C190: ='Hourly Loads'!C124 -> 1401.155581 | D190: 71185.93702 | E190: ='Hourly Loads'!E124 -> 122
C191: ='Hourly Loads'!C125 -> 1401.349372 | D191: 71204.04418 | E191: ='Hourly Loads'!E125 -> 123
C192: ='Hourly Loads'!C126 -> 1362.103143 | D192: 67537.01923 | E192: ='Hourly Loads'!E126 -> 124
C193: ='Hourly Loads'!C127 -> 1355.910738 | D193: 66958.42342 | E193: ='Hourly Loads'!E127 -> 125
C194: ='Hourly Loads'!C128 -> 1389.415108 | D194: 70088.94993 | E194: ='Hourly Loads'!E128 -> 126
C195: ='Hourly Loads'!C129 -> 1333.897553 | D195: 64901.59148 | E195: ='Hourly Loads'!E129 -> 127
C196: ='Hourly Loads'!C130 -> 1331.166951 | D196: 64646.45395 | E196: ='Hourly Loads'!E130 -> 128
C197: ='Hourly Loads'!C131 -> 1297.136984 | D197: 61466.8176 | E197: ='Hourly Loads'!E131 -> 129
C198: ='Hourly Loads'!C132 -> 1232.487988 | D198: 55546.5839 | E198: ='Hourly Loads'!E132 -> 130
C199: ='Hourly Loads'!C133 -> 1187.48404 | D199: 51543.82402 | E199: ='Hourly Loads'!E133 -> 131
C200: ='Hourly Loads'!C134 -> 1278.686116 | D200: 59742.83552 | E200: ='Hourly Loads'!E134 -> 132
C201: ='Hourly Loads'!C135 -> 1292.819768 | D201: 61063.43262 | E201: ='Hourly Loads'!E135 -> 133
C202: ='Hourly Loads'!C136 -> 1312.564799 | D202: 62908.33649 | E202: ='Hourly Loads'!E136 -> 134
C203: ='Hourly Loads'!C137 -> 1315.213177 | D203: 63155.79127 | E203: ='Hourly Loads'!E137 -> 135
C204: ='Hourly Loads'!C138 -> 1241.252516 | D204: 56326.32006 | E204: ='Hourly Loads'!E138 -> 136
C205: ='Hourly Loads'!C139 -> 1310.812755 | D205: 62744.63184 | E205: ='Hourly Loads'!E139 -> 137
C206: ='Hourly Loads'!C140 -> 1281.229666 | D206: 59980.49562 | E206: ='Hourly Loads'!E140 -> 138
C207: ='Hourly Loads'!C141 -> 1518.830075 | D207: 82181.01379 | E207: ='Hourly Loads'!E141 -> 139
C208: ='Hourly Loads'!C142 -> 1603.693024 | D208: 90543.0479 | E208: ='Hourly Loads'!E142 -> 140
... 28 more rows

Sheet Marginal Cost with CENIT CC
A1: FUEL COST ASSUMPTIONS | I1: NB
I2: CC = steam + simple turbine
D3: FUEL YEAR | E3: ='Cost Benefit Analysis'!D2 -> 2018 | F3: =MATCH(E3,E5:G5) -> 3
C5: Row | D5: USD/ MMBTU | E5: 2014 | F5: 2016 | G5: 2018
C6: 1 | D6: Heavy Oil | E6: =100/5.5 -> 18.18181818 | F6: =28/5.5 -> 5.090909091 | G6: =AVERAGE(E6:F6) -> 11.63636364 | O6: Demand | Q6: =H67 -> 1151.369345 | T6: Marginal Cost | U6: =INDEX(Q16:Q29,$S$13) -> 74.03 | V6: Total Cost/ Hour | W6: =SUM($U$16:$U$29) -> 44293.13011 | X6: Fuel Year | Y6: =E3 -> 2018
C7: 2 | D7: Natural Gas | E7: 8.6 | F7: 9.1 | G7: =AVERAGE(E7:F7) -> 8.85 | O7: Hydro Release | Q7: 520
C8: 3 | D8: Diesel Oil | E8: =140/5.5 -> 25.45454545 | F8: =120/5.5 -> 21.81818182 | G8: 23.63636364 | O8: Solar | Q8: 5
C9: 4 | D9: Coal | E9: 4 | F9: 4 | G9: =AVERAGE(E9:F9) -> 4 | O9: Net Demand for Thermal | Q9: =Q6-SUM(Q7:Q8) -> 626.369345
C10: 5 | D10: Option | E10: =MIN(E6,E7) -> 8.6 | F10: =MIN(F6,F7) -> 5.090909091 | G10: 8.85
A13: SUPPLY CURVE | S13: =IFERROR(MATCH(Q9,P16:P29)+1,1) -> 4
B14: PLANTS | C14: Capacity | D14: Availability | E14: Net Capacity | F14: Fuel Code | G14: Fuel Cost | H14: Heat Rate | I14: Variable O+M | J14: Total Marginal Cost | K14: Plant Code | L14: Sorted Costs | M14: Plant Code | N14: Plant Name | O14: Capacity | P14: Accumlated Capacity (MW) | Q14: Duplicate Sorted Costs | R14: Full Dispatch | S14: Partial Dispatch | T14: Total Cost (Full Dispatch) | U14: Total Cost (Full+Partial)
B15: Units | C15: MW | D15: % | E15: MW | G15: USD/ mmBTU | H15: mmBTU/MW | I15: USD/MWh | J15: USD/MWh | L15: USD/MWh | O15: MW | Q15: =L15 -> USD/MWh
B16: TICO | C16: 330 | D16: ='Cost Benefit Analysis'!D3 -> 0.85 | E16: =D16*C16 -> 280.5 | F16: 1 | G16: =INDEX($E$6:$G$10,F16,$F$3) -> 11.63636364 | H16: 7.6 | I16: 5 | J16: =(G16*H16)+I16 -> 93.43636364 | K16: 1 | L16: =SMALL($J$16:$J$29,K16) -> 40.2 | M16: =MATCH(L16,$J$16:$J$29,0) -> 13 | N16: =INDEX($B$16:$B$29,M16) -> New Coal Plant | O16: =INDEX($E$16:$E$29,M16) -> 0 | P16: =O16 -> 0 | Q16: =L16 -> 40.2 | R16: =P16<$Q$9 -> TRUE | S16: =K16=$S$13 -> FALSE | T16: =Q16*R16*O16 -> 0 | U16: =(O16*Q16*R16)+(S16*($Q$9-P15)*Q16) -> 0
B17: TAPCo | C17: 330 | D17: =D16 -> 0.85 | E17: =D17*C17 -> 280.5 | F17: 2 | G17: 8.85 | H17: 7.7 | I17: 5 | J17: =(G17*H17)+I17 -> 73.145 | K17: 2 | L17: =SMALL($J$16:$J$29,K17) -> 65.28 | M17: =MATCH(L17,$J$16:$J$29,0) -> 3 | N17: =INDEX($B$16:$B$29,M17) -> CENIT | O17: =INDEX($E$16:$E$29,M17) -> 209 | P17: =P16+O17 -> 209 | Q17: =L17 -> 65.28 | R17: TRUE | S17: =K17=$S$13 -> FALSE | T17: =Q17*R17*O17 -> 13643.52 | U17: 13643.52
B18: CENIT | C18: 220 | D18: 0.95 | E18: 209 | F18: 5 | G18: 8.85 | H18: 6.8 | I18: 5.1 | J18: 65.28 | K18: 3 | L18: 73.145 | M18: 2 | N18: TAPCo | O18: 280.5 | P18: =P17+O18 -> 489.5 | Q18: 73.145 | R18: TRUE | S18: FALSE | T18: 20517.1725 | U18: 20517.1725
B19: SAP | C19: 200 | D19: =D18 -> 0.95 | E19: 190 | F19: 2 | G19: 8.85 | H19: 7.8 | I19: 5 | J19: 74.03 | K19: 4 | L19: 74.03 | M19: 4 | N19: SAP | O19: 190 | P19: 679.5 | Q19: 74.03 | R19: FALSE | S19: TRUE | T19: 0 | U19: 10132.43761
B20: KTPP | C20: 220 | D20: 0.95 | E20: 209 | F20: 2 | G20: 8.85 | H20: 10.2 | I20: 9.95 | J20: 100.22 | K20: 5 | L20: 84.12727273 | M20: 14 | N20: New Combined Cycle Plant | O20: 0 | P20: 679.5 | Q20: 84.12727273 | R20: FALSE | S20: FALSE | T20: 0 | U20: 0
B21: TT1PP | C21: 110 | D21: 0.95 | E21: 104.5 | F21: 1 | G21: 11.63636364 | H21: 10.2 | I21: 9.9 | J21: 128.5909091 | K21: 6 | L21: 86.995 | M21: 8 | N21: AMERI | O21: 237.5 | P21: 917 | Q21: 86.995 | R21: FALSE | S21: FALSE | T21: 0 | U21: 0
B22: TT2PP | C22: 84 | D22: 0.95 | E22: 79.8 | F22: 2 | G22: 8.85 | H22: 8.9 | I22: 10.2 | J22: 88.965 | K22: 7 | L22: 88.965 | M22: 7 | N22: TT2PP | O22: 79.8 | P22: 996.8 | Q22: 88.965 | R22: FALSE | S22: FALSE | T22: 0 | U22: 0
B23: AMERI | C23: 250 | D23: 0.95 | E23: 237.5 | F23: 2 | G23: 8.85 | H23: 8.7 | I23: 10 | J23: 86.995 | K23: 8 | L23: 93.43636364 | M23: 1 | N23: TICO | O23: 280.5 | P23: 1277.3 | Q23: 93.43636364 | R23: FALSE | S23: FALSE | T23: 0 | U23: 0
B24: Kaypower | C24: 250 | D24: 0.95 | E24: 237.5 | F24: 1 | G24: 11.63636364 | H24: 9 | I24: 12 | J24: 116.7272727 | K24: 9 | L24: 100.22 | M24: 5 | N24: KTPP | O24: 209 | P24: 1486.3 | Q24: 100.22 | R24: FALSE | S24: FALSE | T24: 0 | U24: 0
B25: Trojan | C25: 23 | D25: 0.95 | E25: 21.85 | F25: 3 | G25: 23.63636364 | H25: 11 | I25: 15 | J25: 275 | K25: 10 | L25: 116.7272727 | M25: 9 | N25: Kaypower | O25: 237.5 | P25: 1723.8 | Q25: 116.7272727 | R25: FALSE | S25: FALSE | T25: 0 | U25: 0
B26: Consumer Diesel Plant | C26: 2000 | D26: 0.95 | E26: 1900 | F26: 3 | G26: 23.63636364 | H26: 13.5 | I26: 15 | J26: 334.0909091 | K26: 11 | L26: 120.625 | M26: 12 | N26: MRP | O26: 76 | P26: 1799.8 | Q26: 120.625 | R26: FALSE | S26: FALSE | T26: 0 | U26: 0
B27: MRP | C27: 80 | D27: 0.95 | E27: 76 | F27: 2 | G27: 8.85 | H27: 12.5 | I27: 10 | J27: 120.625 | K27: 12 | L27: 128.5909091 | M27: 6 | N27: TT1PP | O27: 104.5 | P27: 1904.3 | Q27: 128.5909091 | R27: FALSE | S27: FALSE | T27: 0 | U27: 0
B28: New Coal Plant | C28: 0 | D28: 0.95 | E28: 0 | F28: 4 | G28: 4 | H28: 8.8 | I28: 5 | J28: 40.2 | K28: 13 | L28: 275 | M28: 10 | N28: Trojan | O28: 21.85 | P28: 1926.15 | Q28: 275 | R28: FALSE | S28: FALSE | T28: 0 | U28: 0
B29: New Combined Cycle Plant | C29: 0 | D29: 0.95 | E29: 0 | F29: 1 | G29: 11.63636364 | H29: 6.8 | I29: 5 | J29: 84.12727273 | K29: 14 | L29: 334.0909091 | M29: 11 | N29: Consumer Diesel Plant | O29: 1900 | P29: 3826.15 | Q29: 334.0909091 | R29: FALSE | S29: FALSE | T29: 0 | U29: 0
C32: SUPPLY CURVE GRAPH INFO
C33: no. of plants x 2 | D33: logical argument to get stepped graph | E33: Variable Cost Code | F33: Capacity Code | G33: Capacity | H33: =Q14 -> Duplicate Sorted Costs | I33: Demand
H34: =Q15 -> USD/MWh
C35: 1 | D35: TRUE | E35: 1 | G35: 0 | H35: =INDEX($Q$16:$Q$29,E35) -> 40.2 | I35: =Q6 -> 1151.369345
C36: 2 | D36: =NOT(D35) -> FALSE | E36: =E35+D36 -> 1 | F36: =E35 -> 1 | G36: =INDEX($P$16:$P$29,F36) -> 0 | H36: =INDEX($Q$16:$Q$29,E36) -> 40.2 | I36: =I35 -> 1151.369345
C37: 3 | D37: =NOT(D36) -> TRUE | E37: =E36+D37 -> 2 | F37: =E36 -> 1 | G37: =INDEX($P$16:$P$29,F37) -> 0 | H37: 65.28 | I37: =I36 -> 1151.369345
C38: 4 | D38: FALSE | E38: 2 | F38: 2 | G38: 209 | H38: 65.28 | I38: 1151.369345
C39: 5 | D39: TRUE | E39: 3 | F39: 2 | G39: 209 | H39: 73.145 | I39: 1151.369345
C40: 6 | D40: FALSE | E40: 3 | F40: 3 | G40: 489.5 | H40: 73.145 | I40: 1151.369345
C41: 7 | D41: TRUE | E41: 4 | F41: 3 | G41: 489.5 | H41: 74.03 | I41: 1151.369345
C42: 8 | D42: FALSE | E42: 4 | F42: 4 | G42: 679.5 | H42: 74.03 | I42: 1151.369345
C43: 9 | D43: TRUE | E43: 5 | F43: 4 | G43: 679.5 | H43: 84.12727273 | I43: 1151.369345
C44: 10 | D44: FALSE | E44: 5 | F44: 5 | G44: 679.5 | H44: 84.12727273 | I44: 1151.369345
C45: 11 | D45: TRUE | E45: 6 | F45: 5 | G45: 679.5 | H45: 86.995 | I45: 1151.369345
C46: 12 | D46: FALSE | E46: 6 | F46: 6 | G46: 917 | H46: 86.995 | I46: 1151.369345
C47: 13 | D47: TRUE | E47: 7 | F47: 6 | G47: 917 | H47: 88.965 | I47: 1151.369345
C48: 14 | D48: FALSE | E48: 7 | F48: 7 | G48: 996.8 | H48: 88.965 | I48: 1151.369345
C49: 15 | D49: TRUE | E49: 8 | F49: 7 | G49: 996.8 | H49: 93.43636364 | I49: 1151.369345
C50: 16 | D50: FALSE | E50: 8 | F50: 8 | G50: 1277.3 | H50: 93.43636364 | I50: 1151.369345
C51: 17 | D51: TRUE | E51: 9 | F51: 8 | G51: 1277.3 | H51: 100.22 | I51: 1151.369345
C52: 18 | D52: FALSE | E52: 9 | F52: 9 | G52: 1486.3 | H52: 100.22 | I52: 1151.369345
C53: 19 | D53: TRUE | E53: 10 | F53: 9 | G53: 1486.3 | H53: 116.7272727 | I53: 1151.369345
C54: 20 | D54: FALSE | E54: 10 | F54: 10 | G54: 1723.8 | H54: 116.7272727 | I54: 1151.369345
C55: 21 | D55: TRUE | E55: 11 | F55: 10 | G55: 1723.8 | H55: 120.625 | I55: 1151.369345
C56: 22 | D56: FALSE | E56: 11 | F56: 11 | G56: 1799.8 | H56: 120.625 | I56: 1151.369345
C57: 23 | D57: TRUE | E57: 12 | F57: 11 | G57: 1799.8 | H57: 128.5909091 | I57: 1151.369345
C58: 24 | D58: FALSE | E58: 12 | F58: 12 | G58: 1904.3 | H58: 128.5909091 | I58: 1151.369345
C59: 25 | D59: TRUE | E59: 13 | F59: 12 | G59: 1904.3 | H59: 275 | I59: 1151.369345
C60: 26 | D60: FALSE | E60: 13 | F60: 13 | G60: 1926.15 | H60: 275 | I60: 1151.369345
C61: 27 | D61: TRUE | E61: 14 | F61: 13 | G61: 1926.15 | H61: 334.0909091 | I61: 1151.369345
C62: 28 | D62: FALSE | E62: 14 | F62: 14 | G62: 3826.15 | H62: 334.0909091 | I62: 1151.369345
A66: DEMAND AND SUPPLY
C67: ='Hourly Loads'!C1 -> GHANA CONSUMPTION | G67: 30 | H67: =INDEX(C69:C236,G67) -> 1151.369345
C68: ='Hourly Loads'!C2 -> HOURLY_AVERAGE(MW) | D68: =W6 -> 44293.13011
C69: ='Hourly Loads'!C3 -> 1323.357341 | D69: 58566.38685 | E69: ='Hourly Loads'!E3 -> 1
C70: ='Hourly Loads'!C4 -> 1325.932964 | D70: 58790.4532 | E70: ='Hourly Loads'!E4 -> 2
C71: ='Hourly Loads'!C5 -> 1322.826543 | D71: 58520.21008 | E71: ='Hourly Loads'!E5 -> 3
C72: ='Hourly Loads'!C6 -> 1286.293522 | D72: 55342.01996 | E72: ='Hourly Loads'!E6 -> 4
C73: ='Hourly Loads'!C7 -> 1306.365008 | D73: 57088.13891 | E73: ='Hourly Loads'!E7 -> 5
C74: ='Hourly Loads'!C8 -> 1302.636851 | D74: 56763.80784 | E74: ='Hourly Loads'!E8 -> 6
C75: ='Hourly Loads'!C9 -> 1210.816174 | D75: 48775.86803 | E75: ='Hourly Loads'!E9 -> 7
C76: ='Hourly Loads'!C10 -> 1194.151857 | D76: 47460.31946 | E76: ='Hourly Loads'!E10 -> 8
C77: ='Hourly Loads'!C11 -> 1215.502005 | D77: 49183.51189 | E77: ='Hourly Loads'!E11 -> 9
C78: ='Hourly Loads'!C12 -> 1209.783964 | D78: 48686.07093 | E78: ='Hourly Loads'!E12 -> 10
C79: ='Hourly Loads'!C13 -> 1290.064538 | D79: 55670.07951 | E79: ='Hourly Loads'!E13 -> 11
C80: ='Hourly Loads'!C14 -> 1230.760514 | D80: 50510.92588 | E80: ='Hourly Loads'!E14 -> 12
C81: ='Hourly Loads'!C15 -> 1156.456818 | D81: 44669.75571 | E81: ='Hourly Loads'!E15 -> 13
C82: ='Hourly Loads'!C16 -> 1203.149232 | D82: 48126.39512 | E82: ='Hourly Loads'!E16 -> 14
C83: ='Hourly Loads'!C17 -> 1256.534844 | D83: 52753.16371 | E83: ='Hourly Loads'!E17 -> 15
C84: ='Hourly Loads'!C18 -> 1240.441469 | D84: 51353.12063 | E84: ='Hourly Loads'!E18 -> 16
C85: ='Hourly Loads'!C19 -> 1153.767267 | D85: 44470.64824 | E85: ='Hourly Loads'!E19 -> 17
C86: ='Hourly Loads'!C20 -> 1128.458281 | D86: 42597.02402 | E86: ='Hourly Loads'!E20 -> 18
C87: ='Hourly Loads'!C21 -> 1361.270261 | D87: 61864.62136 | E87: ='Hourly Loads'!E21 -> 19
C88: ='Hourly Loads'!C22 -> 1495.083605 | D88: 73610.28788 | E88: ='Hourly Loads'!E22 -> 20
C89: ='Hourly Loads'!C23 -> 1515.449243 | D89: 75422.11689 | E89: ='Hourly Loads'!E23 -> 21
C90: ='Hourly Loads'!C24 -> 1499.591607 | D90: 74011.34232 | E90: ='Hourly Loads'!E24 -> 22
C91: ='Hourly Loads'!C25 -> 1413.025111 | D91: 66367.03453 | E91: ='Hourly Loads'!E25 -> 23
C92: ='Hourly Loads'!C26 -> 1384.225023 | D92: 63861.57085 | E92: ='Hourly Loads'!E26 -> 24
C93: ='Hourly Loads'!C27 -> 1290.33632 | D93: 55693.72316 | E93: ='Hourly Loads'!E27 -> 25
C94: ='Hourly Loads'!C28 -> 1199.231653 | D94: 47836.37679 | E94: ='Hourly Loads'!E28 -> 26
C95: ='Hourly Loads'!C29 -> 1158.344211 | D95: 44809.47942 | E95: ='Hourly Loads'!E29 -> 27
C96: ='Hourly Loads'!C30 -> 1110.595583 | D96: 41274.6485 | E96: ='Hourly Loads'!E30 -> 28
C97: ='Hourly Loads'!C31 -> 1125.810885 | D97: 42401.03734 | E97: ='Hourly Loads'!E31 -> 29
C98: ='Hourly Loads'!C32 -> 1151.369345 | D98: 44293.13011 | E98: ='Hourly Loads'!E32 -> 30
C99: ='Hourly Loads'!C33 -> 1103.010865 | D99: 40713.15184 | E99: ='Hourly Loads'!E33 -> 31
C100: ='Hourly Loads'!C34 -> 1161.887241 | D100: 45071.76994 | E100: ='Hourly Loads'!E34 -> 32
C101: ='Hourly Loads'!C35 -> 1185.90838 | D101: 46850.05485 | E101: ='Hourly Loads'!E35 -> 33
C102: ='Hourly Loads'!C36 -> 1242.049966 | D102: 51493.05179 | E102: ='Hourly Loads'!E36 -> 34
C103: ='Hourly Loads'!C37 -> 1235.078761 | D103: 50886.5918 | E103: ='Hourly Loads'!E37 -> 35
C104: ='Hourly Loads'!C38 -> 1234.263135 | D104: 50815.63643 | E104: ='Hourly Loads'!E38 -> 36
C105: ='Hourly Loads'!C39 -> 1277.840663 | D105: 54606.6635 | E105: ='Hourly Loads'!E39 -> 37
C106: ='Hourly Loads'!C40 -> 1261.890152 | D106: 53219.04881 | E106: ='Hourly Loads'!E40 -> 38
C107: ='Hourly Loads'!C41 -> 1169.888301 | D107: 45664.08844 | E107: ='Hourly Loads'!E41 -> 39
C108: ='Hourly Loads'!C42 -> 1148.041192 | D108: 44046.74696 | E108: ='Hourly Loads'!E42 -> 40
C109: ='Hourly Loads'!C43 -> 1244.208369 | D109: 51680.82202 | E109: ='Hourly Loads'!E43 -> 41
C110: ='Hourly Loads'!C44 -> 1202.507255 | D110: 48078.86958 | E110: ='Hourly Loads'!E44 -> 42
C111: ='Hourly Loads'!C45 -> 1451.472847 | D111: 69730.45687 | E111: ='Hourly Loads'!E45 -> 43
C112: ='Hourly Loads'!C46 -> 1562.875167 | D112: 79825.02622 | E112: ='Hourly Loads'!E46 -> 44
C113: ='Hourly Loads'!C47 -> 1588.275977 | D113: 82198.38558 | E113: ='Hourly Loads'!E47 -> 45
C114: ='Hourly Loads'!C48 -> 1579.920998 | D114: 81417.72672 | E114: ='Hourly Loads'!E48 -> 46
C115: ='Hourly Loads'!C49 -> 1508.131334 | D115: 74771.07916 | E115: ='Hourly Loads'!E49 -> 47
C116: ='Hourly Loads'!C50 -> 1418.610195 | D116: 66852.9089 | E116: ='Hourly Loads'!E50 -> 48
C117: ='Hourly Loads'!C51 -> 1397.714652 | D117: 65035.10119 | E117: ='Hourly Loads'!E51 -> 49
C118: ='Hourly Loads'!C52 -> 1360.531826 | D118: 61800.38121 | E118: ='Hourly Loads'!E52 -> 50
C119: ='Hourly Loads'!C53 -> 1348.847732 | D119: 60783.92341 | E119: ='Hourly Loads'!E53 -> 51
C120: ='Hourly Loads'!C54 -> 1291.913155 | D120: 55830.89994 | E120: ='Hourly Loads'!E54 -> 52
C121: ='Hourly Loads'!C55 -> 1296.081965 | D121: 56193.56556 | E121: ='Hourly Loads'!E55 -> 53
C122: ='Hourly Loads'!C56 -> 1331.443974 | D122: 59269.88349 | E122: ='Hourly Loads'!E56 -> 54
C123: ='Hourly Loads'!C57 -> 1290.253883 | D123: 55686.55157 | E123: ='Hourly Loads'!E57 -> 55
C124: ='Hourly Loads'!C58 -> 1283.039342 | D124: 55058.9226 | E124: ='Hourly Loads'!E58 -> 56
C125: ='Hourly Loads'!C59 -> 1290.431564 | D125: 55702.00892 | E125: ='Hourly Loads'!E59 -> 57
C126: ='Hourly Loads'!C60 -> 1308.710734 | D126: 57292.2053 | E126: ='Hourly Loads'!E60 -> 58
C127: ='Hourly Loads'!C61 -> 1277.962588 | D127: 54617.2703 | E127: ='Hourly Loads'!E61 -> 59
C128: ='Hourly Loads'!C62 -> 1280.736697 | D128: 54858.60399 | E128: ='Hourly Loads'!E62 -> 60
C129: ='Hourly Loads'!C63 -> 1290.31516 | D129: 55691.88231 | E129: ='Hourly Loads'!E63 -> 61
C130: ='Hourly Loads'!C64 -> 1284.194419 | D130: 55159.40847 | E130: ='Hourly Loads'!E64 -> 62
C131: ='Hourly Loads'!C65 -> 1324.889639 | D131: 58699.68911 | E131: ='Hourly Loads'!E65 -> 63
C132: ='Hourly Loads'!C66 -> 1279.592231 | D132: 54759.04115 | E132: ='Hourly Loads'!E66 -> 64
C133: ='Hourly Loads'!C67 -> 1285.345096 | D133: 55259.51159 | E133: ='Hourly Loads'!E67 -> 65
C134: ='Hourly Loads'!C68 -> 1273.955595 | D134: 54268.682 | E134: ='Hourly Loads'!E68 -> 66
C135: ='Hourly Loads'!C69 -> 1432.475114 | D135: 68059.08752 | E135: ='Hourly Loads'!E69 -> 67
C136: ='Hourly Loads'!C70 -> 1570.331619 | D136: 80521.73002 | E136: ='Hourly Loads'!E70 -> 68
C137: ='Hourly Loads'!C71 -> 1623.057381 | D137: 85448.23344 | E137: ='Hourly Loads'!E71 -> 69
C138: ='Hourly Loads'!C72 -> 1588.206718 | D138: 82191.91425 | E138: ='Hourly Loads'!E72 -> 70
C139: ='Hourly Loads'!C73 -> 1497.897892 | D139: 73860.661 | E139: ='Hourly Loads'!E73 -> 71
C140: ='Hourly Loads'!C74 -> 1400.830819 | D140: 65306.19209 | E140: ='Hourly Loads'!E74 -> 72
C141: ='Hourly Loads'!C75 -> 1378.833962 | D141: 63392.5755 | E141: ='Hourly Loads'!E75 -> 73
C142: ='Hourly Loads'!C76 -> 1358.684347 | D142: 61639.65976 | E142: ='Hourly Loads'!E76 -> 74
C143: ='Hourly Loads'!C77 -> 1266.104491 | D143: 53585.6752 | E143: ='Hourly Loads'!E77 -> 75
C144: ='Hourly Loads'!C78 -> 1243.941303 | D144: 51657.58864 | E144: ='Hourly Loads'!E78 -> 76
C145: ='Hourly Loads'!C79 -> 1263.130763 | D145: 53326.97576 | E145: ='Hourly Loads'!E79 -> 77
C146: ='Hourly Loads'!C80 -> 1343.930329 | D146: 60356.13396 | E146: ='Hourly Loads'!E80 -> 78
C147: ='Hourly Loads'!C81 -> 1299.1248 | D147: 56458.27698 | E147: ='Hourly Loads'!E81 -> 79
C148: ='Hourly Loads'!C82 -> 1350.756607 | D148: 60949.98604 | E148: ='Hourly Loads'!E82 -> 80
C149: ='Hourly Loads'!C83 -> 1387.700061 | D149: 64163.88184 | E149: ='Hourly Loads'!E83 -> 81
C150: ='Hourly Loads'!C84 -> 1379.796615 | D150: 63476.32149 | E150: ='Hourly Loads'!E84 -> 82
C151: ='Hourly Loads'!C85 -> 1420.617495 | D151: 67027.53396 | E151: ='Hourly Loads'!E85 -> 83
C152: ='Hourly Loads'!C86 -> 1466.194343 | D152: 71040.15469 | E152: ='Hourly Loads'!E86 -> 84
C153: ='Hourly Loads'!C87 -> 1442.831764 | D153: 68961.70286 | E153: ='Hourly Loads'!E87 -> 85
C154: ='Hourly Loads'!C88 -> 1454.678792 | D154: 70015.67374 | E154: ='Hourly Loads'!E88 -> 86
C155: ='Hourly Loads'!C89 -> 1465.389401 | D155: 70968.54309 | E155: ='Hourly Loads'!E89 -> 87
C156: ='Hourly Loads'!C90 -> 1451.706361 | D156: 69751.23137 | E156: ='Hourly Loads'!E90 -> 88
C157: ='Hourly Loads'!C91 -> 1423.518087 | D157: 67279.87098 | E157: ='Hourly Loads'!E91 -> 89
C158: ='Hourly Loads'!C92 -> 1385.280108 | D158: 63953.35799 | E158: ='Hourly Loads'!E92 -> 90
C159: ='Hourly Loads'!C93 -> 1607.892612 | D159: 84031.29265 | E159: ='Hourly Loads'!E93 -> 91
C160: ='Hourly Loads'!C94 -> 1718.399783 | D160: 94356.68079 | E160: ='Hourly Loads'!E94 -> 92
C161: ='Hourly Loads'!C95 -> 1761.563961 | D161: 98389.78465 | E161: ='Hourly Loads'!E95 -> 93
C162: ='Hourly Loads'!C96 -> 1672.9432 | D162: 90109.38301 | E162: ='Hourly Loads'!E96 -> 94
C163: ='Hourly Loads'!C97 -> 1590.57856 | D163: 82413.53057 | E163: ='Hourly Loads'!E97 -> 95
C164: ='Hourly Loads'!C98 -> 1461.281301 | D164: 70603.06594 | E164: ='Hourly Loads'!E98 -> 96
C165: ='Hourly Loads'!C99 -> 1460.23668 | D165: 70510.13125 | E165: ='Hourly Loads'!E99 -> 97
C166: ='Hourly Loads'!C100 -> 1399.546117 | D166: 65194.42943 | E166: ='Hourly Loads'!E100 -> 98
C167: ='Hourly Loads'!C101 -> 1437.65635 | D167: 68509.8292 | E167: ='Hourly Loads'!E101 -> 99
C168: ='Hourly Loads'!C102 -> 1411.54679 | D168: 66238.42801 | E168: ='Hourly Loads'!E102 -> 100
C169: ='Hourly Loads'!C103 -> 1381.586259 | D169: 63632.01159 | E169: ='Hourly Loads'!E103 -> 101
C170: ='Hourly Loads'!C104 -> 1431.57192 | D170: 67980.51417 | E170: ='Hourly Loads'!E104 -> 102
C171: ='Hourly Loads'!C105 -> 1402.955716 | D171: 65491.04748 | E171: ='Hourly Loads'!E105 -> 103
C172: ='Hourly Loads'!C106 -> 1380.108658 | D172: 63503.46768 | E172: ='Hourly Loads'!E106 -> 104
C173: ='Hourly Loads'!C107 -> 1339.702433 | D173: 59988.32816 | E173: ='Hourly Loads'!E107 -> 105
C174: ='Hourly Loads'!C108 -> 1434.12996 | D174: 68203.05091 | E174: ='Hourly Loads'!E108 -> 106
C175: ='Hourly Loads'!C109 -> 1466.521434 | D175: 71069.25433 | E175: ='Hourly Loads'!E109 -> 107
C176: ='Hourly Loads'!C110 -> 1466.471174 | D176: 71064.783 | E176: ='Hourly Loads'!E110 -> 108
C177: ='Hourly Loads'!C111 -> 1485.928646 | D177: 72795.81696 | E177: ='Hourly Loads'!E111 -> 109
C178: ='Hourly Loads'!C112 -> 1471.734518 | D178: 71533.03637 | E178: ='Hourly Loads'!E112 -> 110
C179: ='Hourly Loads'!C113 -> 1487.657064 | D179: 72949.58571 | E179: ='Hourly Loads'!E113 -> 111
C180: ='Hourly Loads'!C114 -> 1484.726979 | D180: 72688.91068 | E180: ='Hourly Loads'!E114 -> 112
C181: ='Hourly Loads'!C115 -> 1497.119849 | D181: 73791.44234 | E181: ='Hourly Loads'!E115 -> 113
C182: ='Hourly Loads'!C116 -> 1466.692679 | D182: 71084.48917 | E182: ='Hourly Loads'!E116 -> 114
C183: ='Hourly Loads'!C117 -> 1638.211774 | D183: 86864.20481 | E183: ='Hourly Loads'!E117 -> 115
C184: ='Hourly Loads'!C118 -> 1739.203271 | D184: 96300.48312 | E184: ='Hourly Loads'!E118 -> 116
C185: ='Hourly Loads'!C119 -> 1763.9152 | D185: 98609.4759 | E185: ='Hourly Loads'!E119 -> 117
C186: ='Hourly Loads'!C120 -> 1704.152343 | D186: 93025.45187 | E186: ='Hourly Loads'!E120 -> 118
C187: ='Hourly Loads'!C121 -> 1646.704143 | D187: 87657.70094 | E187: ='Hourly Loads'!E121 -> 119
C188: ='Hourly Loads'!C122 -> 1554.257076 | D188: 79019.78311 | E188: ='Hourly Loads'!E122 -> 120
C189: ='Hourly Loads'!C123 -> 1456.776792 | D189: 70202.32227 | E189: ='Hourly Loads'!E123 -> 121
C190: ='Hourly Loads'!C124 -> 1401.155581 | D190: 65334.44478 | E190: ='Hourly Loads'!E124 -> 122
C191: ='Hourly Loads'!C125 -> 1401.349372 | D191: 65351.30366 | E191: ='Hourly Loads'!E125 -> 123
C192: ='Hourly Loads'!C126 -> 1362.103143 | D192: 61937.07794 | E192: ='Hourly Loads'!E126 -> 124
C193: ='Hourly Loads'!C127 -> 1355.910738 | D193: 61398.36966 | E193: ='Hourly Loads'!E127 -> 125
C194: ='Hourly Loads'!C128 -> 1389.415108 | D194: 64313.08234 | E194: ='Hourly Loads'!E128 -> 126
C195: ='Hourly Loads'!C129 -> 1333.897553 | D195: 59483.33265 | E195: ='Hourly Loads'!E129 -> 127
C196: ='Hourly Loads'!C130 -> 1331.166951 | D196: 59245.78392 | E196: ='Hourly Loads'!E130 -> 128
C197: ='Hourly Loads'!C131 -> 1297.136984 | D197: 56285.34696 | E197: ='Hourly Loads'!E131 -> 129
C198: ='Hourly Loads'!C132 -> 1232.487988 | D198: 50661.20756 | E198: ='Hourly Loads'!E132 -> 130
C199: ='Hourly Loads'!C133 -> 1187.48404 | D199: 46966.70094 | E199: ='Hourly Loads'!E133 -> 131
C200: ='Hourly Loads'!C134 -> 1278.686116 | D200: 54680.21363 | E200: ='Hourly Loads'!E134 -> 132
C201: ='Hourly Loads'!C135 -> 1292.819768 | D201: 55909.77074 | E201: ='Hourly Loads'!E135 -> 133
C202: ='Hourly Loads'!C136 -> 1312.564799 | D202: 57627.48969 | E202: ='Hourly Loads'!E136 -> 134
C203: ='Hourly Loads'!C137 -> 1315.213177 | D203: 57857.8853 | E203: ='Hourly Loads'!E137 -> 135
C204: ='Hourly Loads'!C138 -> 1241.252516 | D204: 51423.6776 | E204: ='Hourly Loads'!E138 -> 136
C205: ='Hourly Loads'!C139 -> 1310.812755 | D205: 57475.07059 | E205: ='Hourly Loads'!E139 -> 137
C206: ='Hourly Loads'!C140 -> 1281.229666 | D206: 54901.48981 | E206: ='Hourly Loads'!E140 -> 138
C207: ='Hourly Loads'!C141 -> 1518.830075 | D207: 75722.89259 | E207: ='Hourly Loads'!E141 -> 139
C208: ='Hourly Loads'!C142 -> 1603.693024 | D208: 83638.89841 | E208: ='Hourly Loads'!E142 -> 140
... 28 more rows

Sheet Marginal Cost with Coal
A1: FUEL COST ASSUMPTIONS | I1: NB
I2: CC = steam + simple turbine
D3: FUEL YEAR | E3: ='Cost Benefit Analysis'!D2 -> 2018 | F3: =MATCH(E3,E5:G5) -> 3
C5: Row | D5: USD/ MMBTU | E5: 2014 | F5: 2016 | G5: 2018
C6: 1 | D6: Heavy Oil | E6: =100/5.5 -> 18.18181818 | F6: =28/5.5 -> 5.090909091 | G6: =AVERAGE(E6:F6) -> 11.63636364 | O6: Demand | Q6: =H67 -> 1151.369345 | T6: Marginal Cost | U6: =INDEX(Q16:Q29,$S$13) -> 73.145 | V6: Total Cost/ Hour | W6: =SUM($U$16:$U$29) -> 26213.51074 | X6: Fuel Year | Y6: =E3 -> 2018
C7: 2 | D7: Natural Gas | E7: 8.6 | F7: 9.1 | G7: =AVERAGE(E7:F7) -> 8.85 | O7: Hydro Release | Q7: 520
C8: 3 | D8: Diesel Oil | E8: =140/5.5 -> 25.45454545 | F8: =120/5.5 -> 21.81818182 | G8: 23.63636364 | O8: Solar | Q8: 5
C9: 4 | D9: Coal | E9: 4 | F9: 4 | G9: =AVERAGE(E9:F9) -> 4 | O9: Net Demand for Thermal | Q9: =Q6-SUM(Q7:Q8) -> 626.369345
C10: 5 | D10: Option | E10: =MIN(E6,E7) -> 8.6 | F10: =MIN(F6,F7) -> 5.090909091 | G10: 8.85
A13: SUPPLY CURVE | S13: =IFERROR(MATCH(Q9,P16:P29)+1,1) -> 2
B14: PLANTS | C14: Capacity | D14: Availability | E14: Net Capacity | F14: Fuel Code | G14: Fuel Cost | H14: Heat Rate | I14: Variable O+M | J14: Total Marginal Cost | K14: Plant Code | L14: Sorted Costs | M14: Plant Code | N14: Plant Name | O14: Capacity | P14: Accumlated Capacity (MW) | Q14: Duplicate Sorted Costs | R14: Full Dispatch | S14: Partial Dispatch | T14: Total Cost (Full Dispatch) | U14: Total Cost (Full+Partial)
B15: Units | C15: MW | D15: % | E15: MW | G15: USD/ mmBTU | H15: mmBTU/MW | I15: USD/MWh | J15: USD/MWh | L15: USD/MWh | O15: MW | Q15: =L15 -> USD/MWh
B16: TICO | C16: 330 | D16: ='Cost Benefit Analysis'!D3 -> 0.85 | E16: =D16*C16 -> 280.5 | F16: 1 | G16: =INDEX($E$6:$G$10,F16,$F$3) -> 11.63636364 | H16: 7.6 | I16: 5 | J16: =(G16*H16)+I16 -> 93.43636364 | K16: 1 | L16: =SMALL($J$16:$J$29,K16) -> 40.2 | M16: =MATCH(L16,$J$16:$J$29,0) -> 13 | N16: =INDEX($B$16:$B$29,M16) -> New Coal Plant | O16: =INDEX($E$16:$E$29,M16) -> 595 | P16: =O16 -> 595 | Q16: =L16 -> 40.2 | R16: =P16<$Q$9 -> TRUE | S16: =K16=$S$13 -> FALSE | T16: =Q16*R16*O16 -> 23919 | U16: =(O16*Q16*R16)+(S16*($Q$9-P15)*Q16) -> 23919
B17: TAPCo | C17: 330 | D17: =D16 -> 0.85 | E17: =D17*C17 -> 280.5 | F17: 2 | G17: 8.85 | H17: 7.7 | I17: 5 | J17: =(G17*H17)+I17 -> 73.145 | K17: 2 | L17: =SMALL($J$16:$J$29,K17) -> 73.145 | M17: =MATCH(L17,$J$16:$J$29,0) -> 2 | N17: =INDEX($B$16:$B$29,M17) -> TAPCo | O17: =INDEX($E$16:$E$29,M17) -> 280.5 | P17: =P16+O17 -> 875.5 | Q17: =L17 -> 73.145 | R17: FALSE | S17: =K17=$S$13 -> TRUE | T17: =Q17*R17*O17 -> 0 | U17: 2294.510742
B18: CENIT | C18: 110 | D18: =D17 -> 0.85 | E18: 93.5 | F18: 5 | G18: 8.85 | H18: 10.2 | I18: 10 | J18: 100.27 | K18: 3 | L18: 74.03 | M18: 4 | N18: SAP | O18: 170 | P18: =P17+O18 -> 1045.5 | Q18: 74.03 | R18: FALSE | S18: FALSE | T18: 0 | U18: 0
B19: SAP | C19: 200 | D19: 0.85 | E19: 170 | F19: 2 | G19: 8.85 | H19: 7.8 | I19: 5 | J19: 74.03 | K19: 4 | L19: 84.12727273 | M19: 14 | N19: New Combined Cycle Plant | O19: 0 | P19: 1045.5 | Q19: 84.12727273 | R19: FALSE | S19: FALSE | T19: 0 | U19: 0
B20: KTPP | C20: 220 | D20: 0.85 | E20: 187 | F20: 2 | G20: 8.85 | H20: 10.2 | I20: 9.95 | J20: 100.22 | K20: 5 | L20: 86.995 | M20: 8 | N20: AMERI | O20: 212.5 | P20: 1258 | Q20: 86.995 | R20: FALSE | S20: FALSE | T20: 0 | U20: 0
B21: TT1PP | C21: 110 | D21: 0.85 | E21: 93.5 | F21: 1 | G21: 11.63636364 | H21: 10.2 | I21: 9.9 | J21: 128.5909091 | K21: 6 | L21: 88.965 | M21: 7 | N21: TT2PP | O21: 71.4 | P21: 1329.4 | Q21: 88.965 | R21: FALSE | S21: FALSE | T21: 0 | U21: 0
B22: TT2PP | C22: 84 | D22: 0.85 | E22: 71.4 | F22: 2 | G22: 8.85 | H22: 8.9 | I22: 10.2 | J22: 88.965 | K22: 7 | L22: 93.43636364 | M22: 1 | N22: TICO | O22: 280.5 | P22: 1609.9 | Q22: 93.43636364 | R22: FALSE | S22: FALSE | T22: 0 | U22: 0
B23: AMERI | C23: 250 | D23: 0.85 | E23: 212.5 | F23: 2 | G23: 8.85 | H23: 8.7 | I23: 10 | J23: 86.995 | K23: 8 | L23: 100.22 | M23: 5 | N23: KTPP | O23: 187 | P23: 1796.9 | Q23: 100.22 | R23: FALSE | S23: FALSE | T23: 0 | U23: 0
B24: Kaypower | C24: 250 | D24: 0.85 | E24: 212.5 | F24: 1 | G24: 11.63636364 | H24: 9 | I24: 12 | J24: 116.7272727 | K24: 9 | L24: 100.27 | M24: 3 | N24: CENIT | O24: 93.5 | P24: 1890.4 | Q24: 100.27 | R24: FALSE | S24: FALSE | T24: 0 | U24: 0
B25: Trojan | C25: 23 | D25: 0.85 | E25: 19.55 | F25: 3 | G25: 23.63636364 | H25: 11 | I25: 15 | J25: 275 | K25: 10 | L25: 116.7272727 | M25: 9 | N25: Kaypower | O25: 212.5 | P25: 2102.9 | Q25: 116.7272727 | R25: FALSE | S25: FALSE | T25: 0 | U25: 0
B26: Consumer Diesel Plant | C26: 2000 | D26: 0.85 | E26: 1700 | F26: 3 | G26: 23.63636364 | H26: 13.5 | I26: 15 | J26: 334.0909091 | K26: 11 | L26: 120.625 | M26: 12 | N26: MRP | O26: 68 | P26: 2170.9 | Q26: 120.625 | R26: FALSE | S26: FALSE | T26: 0 | U26: 0
B27: MRP | C27: 80 | D27: 0.85 | E27: 68 | F27: 2 | G27: 8.85 | H27: 12.5 | I27: 10 | J27: 120.625 | K27: 12 | L27: 128.5909091 | M27: 6 | N27: TT1PP | O27: 93.5 | P27: 2264.4 | Q27: 128.5909091 | R27: FALSE | S27: FALSE | T27: 0 | U27: 0
B28: New Coal Plant | C28: 700 | D28: 0.85 | E28: 595 | F28: 4 | G28: 4 | H28: 8.8 | I28: 5 | J28: 40.2 | K28: 13 | L28: 275 | M28: 10 | N28: Trojan | O28: 19.55 | P28: 2283.95 | Q28: 275 | R28: FALSE | S28: FALSE | T28: 0 | U28: 0
B29: New Combined Cycle Plant | C29: 0 | D29: 0.85 | E29: 0 | F29: 1 | G29: 11.63636364 | H29: 6.8 | I29: 5 | J29: 84.12727273 | K29: 14 | L29: 334.0909091 | M29: 11 | N29: Consumer Diesel Plant | O29: 1700 | P29: 3983.95 | Q29: 334.0909091 | R29: FALSE | S29: FALSE | T29: 0 | U29: 0
C32: SUPPLY CURVE GRAPH INFO
C33: no. of plants x 2 | D33: logical argument to get stepped graph | E33: Variable Cost Code | F33: Capacity Code | G33: Capacity | H33: =Q14 -> Duplicate Sorted Costs | I33: Demand
H34: =Q15 -> USD/MWh
C35: 1 | D35: TRUE | E35: 1 | G35: 0 | H35: =INDEX($Q$16:$Q$29,E35) -> 40.2 | I35: =Q6 -> 1151.369345
C36: 2 | D36: =NOT(D35) -> FALSE | E36: =E35+D36 -> 1 | F36: =E35 -> 1 | G36: =INDEX($P$16:$P$29,F36) -> 595 | H36: =INDEX($Q$16:$Q$29,E36) -> 40.2 | I36: =I35 -> 1151.369345
C37: 3 | D37: =NOT(D36) -> TRUE | E37: =E36+D37 -> 2 | F37: =E36 -> 1 | G37: =INDEX($P$16:$P$29,F37) -> 595 | H37: 73.145 | I37: =I36 -> 1151.369345
C38: 4 | D38: FALSE | E38: 2 | F38: 2 | G38: 875.5 | H38: 73.145 | I38: 1151.369345
C39: 5 | D39: TRUE | E39: 3 | F39: 2 | G39: 875.5 | H39: 74.03 | I39: 1151.369345
C40: 6 | D40: FALSE | E40: 3 | F40: 3 | G40: 1045.5 | H40: 74.03 | I40: 1151.369345
C41: 7 | D41: TRUE | E41: 4 | F41: 3 | G41: 1045.5 | H41: 84.12727273 | I41: 1151.369345
C42: 8 | D42: FALSE | E42: 4 | F42: 4 | G42: 1045.5 | H42: 84.12727273 | I42: 1151.369345
C43: 9 | D43: TRUE | E43: 5 | F43: 4 | G43: 1045.5 | H43: 86.995 | I43: 1151.369345
C44: 10 | D44: FALSE | E44: 5 | F44: 5 | G44: 1258 | H44: 86.995 | I44: 1151.369345
C45: 11 | D45: TRUE | E45: 6 | F45: 5 | G45: 1258 | H45: 88.965 | I45: 1151.369345
C46: 12 | D46: FALSE | E46: 6 | F46: 6 | G46: 1329.4 | H46: 88.965 | I46: 1151.369345
C47: 13 | D47: TRUE | E47: 7 | F47: 6 | G47: 1329.4 | H47: 93.43636364 | I47: 1151.369345
C48: 14 | D48: FALSE | E48: 7 | F48: 7 | G48: 1609.9 | H48: 93.43636364 | I48: 1151.369345
C49: 15 | D49: TRUE | E49: 8 | F49: 7 | G49: 1609.9 | H49: 100.22 | I49: 1151.369345
C50: 16 | D50: FALSE | E50: 8 | F50: 8 | G50: 1796.9 | H50: 100.22 | I50: 1151.369345
C51: 17 | D51: TRUE | E51: 9 | F51: 8 | G51: 1796.9 | H51: 100.27 | I51: 1151.369345
C52: 18 | D52: FALSE | E52: 9 | F52: 9 | G52: 1890.4 | H52: 100.27 | I52: 1151.369345
C53: 19 | D53: TRUE | E53: 10 | F53: 9 | G53: 1890.4 | H53: 116.7272727 | I53: 1151.369345
C54: 20 | D54: FALSE | E54: 10 | F54: 10 | G54: 2102.9 | H54: 116.7272727 | I54: 1151.369345
C55: 21 | D55: TRUE | E55: 11 | F55: 10 | G55: 2102.9 | H55: 120.625 | I55: 1151.369345
C56: 22 | D56: FALSE | E56: 11 | F56: 11 | G56: 2170.9 | H56: 120.625 | I56: 1151.369345
C57: 23 | D57: TRUE | E57: 12 | F57: 11 | G57: 2170.9 | H57: 128.5909091 | I57: 1151.369345
C58: 24 | D58: FALSE | E58: 12 | F58: 12 | G58: 2264.4 | H58: 128.5909091 | I58: 1151.369345
C59: 25 | D59: TRUE | E59: 13 | F59: 12 | G59: 2264.4 | H59: 275 | I59: 1151.369345
C60: 26 | D60: FALSE | E60: 13 | F60: 13 | G60: 2283.95 | H60: 275 | I60: 1151.369345
C61: 27 | D61: TRUE | E61: 14 | F61: 13 | G61: 2283.95 | H61: 334.0909091 | I61: 1151.369345
C62: 28 | D62: FALSE | E62: 14 | F62: 14 | G62: 3983.95 | H62: 334.0909091 | I62: 1151.369345
A66: DEMAND AND SUPPLY
C67: ='Hourly Loads'!C1 -> GHANA CONSUMPTION | G67: 30 | H67: =INDEX(C69:C236,G67) -> 1151.369345
C68: ='Hourly Loads'!C2 -> HOURLY_AVERAGE(MW) | D68: =W6 -> 26213.51074
C69: ='Hourly Loads'!C3 -> 1323.357341 | D69: 38793.57268 | E69: ='Hourly Loads'!E3 -> 1
C70: ='Hourly Loads'!C4 -> 1325.932964 | D70: 38981.96665 | E70: ='Hourly Loads'!E4 -> 2
C71: ='Hourly Loads'!C5 -> 1322.826543 | D71: 38754.74747 | E71: ='Hourly Loads'!E5 -> 3
C72: ='Hourly Loads'!C6 -> 1286.293522 | D72: 36082.53968 | E72: ='Hourly Loads'!E6 -> 4
C73: ='Hourly Loads'!C7 -> 1306.365008 | D73: 37550.66854 | E73: ='Hourly Loads'!E7 -> 5
C74: ='Hourly Loads'!C8 -> 1302.636851 | D74: 37277.97246 | E74: ='Hourly Loads'!E8 -> 6
C75: ='Hourly Loads'!C9 -> 1210.816174 | D75: 30561.74903 | E75: ='Hourly Loads'!E9 -> 7
C76: ='Hourly Loads'!C10 -> 1194.151857 | D76: 29342.83756 | E76: ='Hourly Loads'!E10 -> 8
C77: ='Hourly Loads'!C11 -> 1215.502005 | D77: 30904.49412 | E77: ='Hourly Loads'!E11 -> 9
C78: ='Hourly Loads'!C12 -> 1209.783964 | D78: 30486.24803 | E78: ='Hourly Loads'!E12 -> 10
C79: ='Hourly Loads'!C13 -> 1290.064538 | D79: 36358.37065 | E79: ='Hourly Loads'!E13 -> 11
C80: ='Hourly Loads'!C14 -> 1230.760514 | D80: 32020.57777 | E80: ='Hourly Loads'!E14 -> 12
C81: ='Hourly Loads'!C15 -> 1156.456818 | D81: 26585.63393 | E81: ='Hourly Loads'!E15 -> 13
C82: ='Hourly Loads'!C16 -> 1203.149232 | D82: 30000.95055 | E82: ='Hourly Loads'!E16 -> 14
C83: ='Hourly Loads'!C17 -> 1256.534844 | D83: 33905.84113 | E83: ='Hourly Loads'!E17 -> 15
C84: ='Hourly Loads'!C18 -> 1240.441469 | D84: 32728.69128 | E84: ='Hourly Loads'!E18 -> 16
C85: ='Hourly Loads'!C19 -> 1153.767267 | D85: 26388.90671 | E85: ='Hourly Loads'!E19 -> 17
C86: ='Hourly Loads'!C20 -> 1128.458281 | D86: 24537.68094 | E86: ='Hourly Loads'!E20 -> 18
C87: ='Hourly Loads'!C21 -> 1361.270261 | D87: 41566.71325 | E87: ='Hourly Loads'!E21 -> 19
C88: ='Hourly Loads'!C22 -> 1495.083605 | D88: 51438.19675 | E88: ='Hourly Loads'!E22 -> 20
C89: ='Hourly Loads'!C23 -> 1515.449243 | D89: 52945.86495 | E89: ='Hourly Loads'!E23 -> 21
C90: ='Hourly Loads'!C24 -> 1499.591607 | D90: 51771.92417 | E90: ='Hourly Loads'!E24 -> 22
C91: ='Hourly Loads'!C25 -> 1413.025111 | D91: 45363.40647 | E91: ='Hourly Loads'!E25 -> 23
C92: ='Hourly Loads'!C26 -> 1384.225023 | D92: 43245.73929 | E92: ='Hourly Loads'!E26 -> 24
C93: ='Hourly Loads'!C27 -> 1290.33632 | D93: 36378.25012 | E93: ='Hourly Loads'!E27 -> 25
C94: ='Hourly Loads'!C28 -> 1199.231653 | D94: 29714.39927 | E94: ='Hourly Loads'!E28 -> 26
C95: ='Hourly Loads'!C29 -> 1158.344211 | D95: 26723.68729 | E95: ='Hourly Loads'!E29 -> 27
C96: ='Hourly Loads'!C30 -> 1110.595583 | D96: 23540.94243 | E96: ='Hourly Loads'!E30 -> 28
C97: ='Hourly Loads'!C31 -> 1125.810885 | D97: 24344.0372 | E97: ='Hourly Loads'!E31 -> 29
C98: ='Hourly Loads'!C32 -> 1151.369345 | D98: 26213.51074 | E98: ='Hourly Loads'!E32 -> 30
C99: ='Hourly Loads'!C33 -> 1103.010865 | D99: 23236.03677 | E99: ='Hourly Loads'!E33 -> 31
C100: ='Hourly Loads'!C34 -> 1161.887241 | D100: 26982.84223 | E100: ='Hourly Loads'!E34 -> 32
C101: ='Hourly Loads'!C35 -> 1185.90838 | D101: 28739.86844 | E101: ='Hourly Loads'!E35 -> 33
C102: ='Hourly Loads'!C36 -> 1242.049966 | D102: 32846.34476 | E102: ='Hourly Loads'!E36 -> 34
C103: ='Hourly Loads'!C37 -> 1235.078761 | D103: 32336.43596 | E103: ='Hourly Loads'!E37 -> 35
C104: ='Hourly Loads'!C38 -> 1234.263135 | D104: 32276.77701 | E104: ='Hourly Loads'!E38 -> 36
C105: ='Hourly Loads'!C39 -> 1277.840663 | D105: 35464.25532 | E105: ='Hourly Loads'!E39 -> 37
C106: ='Hourly Loads'!C40 -> 1261.890152 | D106: 34297.5552 | E106: ='Hourly Loads'!E40 -> 38
C107: ='Hourly Loads'!C41 -> 1169.888301 | D107: 27568.0798 | E107: ='Hourly Loads'!E41 -> 39
C108: ='Hourly Loads'!C42 -> 1148.041192 | D108: 25970.07301 | E108: ='Hourly Loads'!E42 -> 40
C109: ='Hourly Loads'!C43 -> 1244.208369 | D109: 33004.22111 | E109: ='Hourly Loads'!E43 -> 41
C110: ='Hourly Loads'!C44 -> 1202.507255 | D110: 29953.99316 | E110: ='Hourly Loads'!E44 -> 42
C111: ='Hourly Loads'!C45 -> 1451.472847 | D111: 48209.69239 | E111: ='Hourly Loads'!E45 -> 43
C112: ='Hourly Loads'!C46 -> 1562.875167 | D112: 56456.8061 | E112: ='Hourly Loads'!E46 -> 44
C113: ='Hourly Loads'!C47 -> 1588.275977 | D113: 58567.69363 | E113: ='Hourly Loads'!E47 -> 45
C114: ='Hourly Loads'!C48 -> 1579.920998 | D114: 57840.85224 | E114: ='Hourly Loads'!E48 -> 46
C115: ='Hourly Loads'!C49 -> 1508.131334 | D115: 52404.12019 | E115: ='Hourly Loads'!E49 -> 47
C116: ='Hourly Loads'!C50 -> 1418.610195 | D116: 45776.87022 | E116: ='Hourly Loads'!E50 -> 48
C117: ='Hourly Loads'!C51 -> 1397.714652 | D117: 44232.43826 | E117: ='Hourly Loads'!E51 -> 49
C118: ='Hourly Loads'!C52 -> 1360.531826 | D118: 41512.70042 | E118: ='Hourly Loads'!E52 -> 50
C119: ='Hourly Loads'!C53 -> 1348.847732 | D119: 40658.06733 | E119: ='Hourly Loads'!E53 -> 51
C120: ='Hourly Loads'!C54 -> 1291.913155 | D120: 36493.58774 | E120: ='Hourly Loads'!E54 -> 52
C121: ='Hourly Loads'!C55 -> 1296.081965 | D121: 36798.51534 | E121: ='Hourly Loads'!E55 -> 53
C122: ='Hourly Loads'!C56 -> 1331.443974 | D122: 39385.06945 | E122: ='Hourly Loads'!E56 -> 54
C123: ='Hourly Loads'!C57 -> 1290.253883 | D123: 36372.22029 | E123: ='Hourly Loads'!E57 -> 55
C124: ='Hourly Loads'!C58 -> 1283.039342 | D124: 35844.51271 | E124: ='Hourly Loads'!E58 -> 56
C125: ='Hourly Loads'!C59 -> 1290.431564 | D125: 36385.21676 | E125: ='Hourly Loads'!E59 -> 57
C126: ='Hourly Loads'!C60 -> 1308.710734 | D126: 37722.24663 | E126: ='Hourly Loads'!E60 -> 58
C127: ='Hourly Loads'!C61 -> 1277.962588 | D127: 35473.17346 | E127: ='Hourly Loads'!E61 -> 59
C128: ='Hourly Loads'!C62 -> 1280.736697 | D128: 35676.08573 | E128: ='Hourly Loads'!E62 -> 60
C129: ='Hourly Loads'!C63 -> 1290.31516 | D129: 36376.70235 | E129: ='Hourly Loads'!E63 -> 61
C130: ='Hourly Loads'!C64 -> 1284.194419 | D130: 35929.00077 | E130: ='Hourly Loads'!E64 -> 62
C131: ='Hourly Loads'!C65 -> 1324.889639 | D131: 38905.65261 | E131: ='Hourly Loads'!E65 -> 63
C132: ='Hourly Loads'!C66 -> 1279.592231 | D132: 35592.37375 | E132: ='Hourly Loads'!E66 -> 64
C133: ='Hourly Loads'!C67 -> 1285.345096 | D133: 36013.16702 | E133: ='Hourly Loads'!E67 -> 65
C134: ='Hourly Loads'!C68 -> 1273.955595 | D134: 35180.08201 | E134: ='Hourly Loads'!E68 -> 66
C135: ='Hourly Loads'!C69 -> 1432.475114 | D135: 46803.29017 | E135: ='Hourly Loads'!E69 -> 67
C136: ='Hourly Loads'!C70 -> 1570.331619 | D136: 57008.80727 | E136: ='Hourly Loads'!E70 -> 68
C137: ='Hourly Loads'!C71 -> 1623.057381 | D137: 61593.50183 | E137: ='Hourly Loads'!E71 -> 69
C138: ='Hourly Loads'!C72 -> 1588.206718 | D138: 58561.66843 | E138: ='Hourly Loads'!E72 -> 70
C139: ='Hourly Loads'!C73 -> 1497.897892 | D139: 51646.53847 | E139: ='Hourly Loads'!E73 -> 71
C140: ='Hourly Loads'!C74 -> 1400.830819 | D140: 44460.66302 | E140: ='Hourly Loads'!E74 -> 72
C141: ='Hourly Loads'!C75 -> 1378.833962 | D141: 42851.41013 | E141: ='Hourly Loads'!E75 -> 73
C142: ='Hourly Loads'!C76 -> 1358.684347 | D142: 41377.56655 | E142: ='Hourly Loads'!E76 -> 74
C143: ='Hourly Loads'!C77 -> 1266.104491 | D143: 34605.813 | E143: ='Hourly Loads'!E77 -> 75
C144: ='Hourly Loads'!C78 -> 1243.941303 | D144: 32984.68659 | E144: ='Hourly Loads'!E78 -> 76
C145: ='Hourly Loads'!C79 -> 1263.130763 | D145: 34388.29968 | E145: ='Hourly Loads'!E79 -> 77
C146: ='Hourly Loads'!C80 -> 1343.930329 | D146: 40298.3839 | E146: ='Hourly Loads'!E80 -> 78
C147: ='Hourly Loads'!C81 -> 1299.1248 | D147: 37021.0835 | E147: ='Hourly Loads'!E81 -> 79
C148: ='Hourly Loads'!C82 -> 1350.756607 | D148: 40797.69203 | E148: ='Hourly Loads'!E82 -> 80
C149: ='Hourly Loads'!C83 -> 1387.700061 | D149: 43499.92099 | E149: ='Hourly Loads'!E83 -> 81
C150: ='Hourly Loads'!C84 -> 1379.796615 | D150: 42921.82337 | E150: ='Hourly Loads'!E84 -> 82
C151: ='Hourly Loads'!C85 -> 1420.617495 | D151: 45925.47064 | E151: ='Hourly Loads'!E85 -> 83
C152: ='Hourly Loads'!C86 -> 1466.194343 | D152: 49299.52469 | E152: ='Hourly Loads'!E86 -> 84
C153: ='Hourly Loads'!C87 -> 1442.831764 | D153: 47569.99297 | E153: ='Hourly Loads'!E87 -> 85
C154: ='Hourly Loads'!C88 -> 1454.678792 | D154: 48447.02848 | E154: ='Hourly Loads'!E88 -> 86
C155: ='Hourly Loads'!C89 -> 1465.389401 | D155: 49239.93488 | E155: ='Hourly Loads'!E89 -> 87
C156: ='Hourly Loads'!C90 -> 1451.706361 | D156: 48226.97938 | E156: ='Hourly Loads'!E90 -> 88
C157: ='Hourly Loads'!C91 -> 1423.518087 | D157: 46140.20148 | E157: ='Hourly Loads'!E91 -> 89
C158: ='Hourly Loads'!C92 -> 1385.280108 | D158: 43322.91349 | E158: ='Hourly Loads'!E92 -> 90
C159: ='Hourly Loads'!C93 -> 1607.892612 | D159: 60274.24282 | E159: ='Hourly Loads'!E93 -> 91
C160: ='Hourly Loads'!C94 -> 1718.399783 | D160: 69887.8141 | E160: ='Hourly Loads'!E94 -> 92
C161: ='Hourly Loads'!C95 -> 1761.563961 | D161: 73642.88179 | E161: ='Hourly Loads'!E95 -> 93
C162: ='Hourly Loads'!C96 -> 1672.9432 | D162: 65933.3187 | E162: ='Hourly Loads'!E96 -> 94
C163: ='Hourly Loads'!C97 -> 1590.57856 | D163: 58768.00686 | E163: ='Hourly Loads'!E97 -> 95
C164: ='Hourly Loads'!C98 -> 1461.281301 | D164: 48935.81221 | E164: ='Hourly Loads'!E98 -> 96
C165: ='Hourly Loads'!C99 -> 1460.23668 | D165: 48858.47893 | E165: ='Hourly Loads'!E99 -> 97
C166: ='Hourly Loads'!C100 -> 1399.546117 | D166: 44366.40071 | E166: ='Hourly Loads'!E100 -> 98
C167: ='Hourly Loads'!C101 -> 1437.65635 | D167: 47186.85712 | E167: ='Hourly Loads'!E101 -> 99
C168: ='Hourly Loads'!C102 -> 1411.54679 | D168: 45253.96638 | E168: ='Hourly Loads'!E102 -> 100
C169: ='Hourly Loads'!C103 -> 1381.586259 | D169: 43052.7269 | E169: ='Hourly Loads'!E103 -> 101
C170: ='Hourly Loads'!C104 -> 1431.57192 | D170: 46736.42673 | E170: ='Hourly Loads'!E104 -> 102
C171: ='Hourly Loads'!C105 -> 1402.955716 | D171: 44617.96912 | E171: ='Hourly Loads'!E105 -> 103
C172: ='Hourly Loads'!C106 -> 1380.108658 | D172: 42944.64777 | E172: ='Hourly Loads'!E106 -> 104
C173: ='Hourly Loads'!C107 -> 1339.702433 | D173: 39989.13447 | E173: ='Hourly Loads'!E107 -> 105
C174: ='Hourly Loads'!C108 -> 1434.12996 | D174: 46925.79847 | E174: ='Hourly Loads'!E108 -> 106
C175: ='Hourly Loads'!C109 -> 1466.521434 | D175: 49323.73922 | E175: ='Hourly Loads'!E109 -> 107
C176: ='Hourly Loads'!C110 -> 1466.471174 | D176: 49320.01852 | E176: ='Hourly Loads'!E110 -> 108
C177: ='Hourly Loads'!C111 -> 1485.928646 | D177: 50760.45514 | E177: ='Hourly Loads'!E111 -> 109
C178: ='Hourly Loads'!C112 -> 1471.734518 | D178: 49709.66385 | E178: ='Hourly Loads'!E112 -> 110
C179: ='Hourly Loads'!C113 -> 1487.657064 | D179: 50888.40996 | E179: ='Hourly Loads'!E113 -> 111
C180: ='Hourly Loads'!C114 -> 1484.726979 | D180: 50671.49575 | E180: ='Hourly Loads'!E114 -> 112
C181: ='Hourly Loads'!C115 -> 1497.119849 | D181: 51588.9399 | E181: ='Hourly Loads'!E115 -> 113
C182: ='Hourly Loads'!C116 -> 1466.692679 | D182: 49336.41651 | E182: ='Hourly Loads'!E116 -> 114
C183: ='Hourly Loads'!C117 -> 1638.211774 | D183: 62911.85824 | E183: ='Hourly Loads'!E117 -> 115
C184: ='Hourly Loads'!C118 -> 1739.203271 | D184: 71697.6136 | E184: ='Hourly Loads'!E118 -> 116
C185: ='Hourly Loads'!C119 -> 1763.9152 | D185: 73847.42785 | E185: ='Hourly Loads'!E119 -> 117
C186: ='Hourly Loads'!C120 -> 1704.152343 | D186: 68648.35812 | E186: ='Hourly Loads'!E120 -> 118
C187: ='Hourly Loads'!C121 -> 1646.704143 | D187: 63650.65193 | E187: ='Hourly Loads'!E121 -> 119
C188: ='Hourly Loads'!C122 -> 1554.257076 | D188: 55818.8088 | E188: ='Hourly Loads'!E122 -> 120
C189: ='Hourly Loads'!C123 -> 1456.776792 | D189: 48602.34339 | E189: ='Hourly Loads'!E123 -> 121
C190: ='Hourly Loads'!C124 -> 1401.155581 | D190: 44484.70517 | E190: ='Hourly Loads'!E124 -> 122
C191: ='Hourly Loads'!C125 -> 1401.349372 | D191: 44499.05154 | E191: ='Hourly Loads'!E125 -> 123
C192: ='Hourly Loads'!C126 -> 1362.103143 | D192: 41627.6344 | E192: ='Hourly Loads'!E126 -> 124
C193: ='Hourly Loads'!C127 -> 1355.910738 | D193: 41174.69094 | E193: ='Hourly Loads'!E127 -> 125
C194: ='Hourly Loads'!C128 -> 1389.415108 | D194: 43625.36809 | E194: ='Hourly Loads'!E128 -> 126
C195: ='Hourly Loads'!C129 -> 1333.897553 | D195: 39564.53654 | E195: ='Hourly Loads'!E129 -> 127
C196: ='Hourly Loads'!C130 -> 1331.166951 | D196: 39364.80665 | E196: ='Hourly Loads'!E130 -> 128
C197: ='Hourly Loads'!C131 -> 1297.136984 | D197: 36875.68473 | E197: ='Hourly Loads'!E131 -> 129
C198: ='Hourly Loads'!C132 -> 1232.487988 | D198: 32146.93392 | E198: ='Hourly Loads'!E132 -> 130
C199: ='Hourly Loads'!C133 -> 1187.48404 | D199: 28855.12007 | E199: ='Hourly Loads'!E133 -> 131
C200: ='Hourly Loads'!C134 -> 1278.686116 | D200: 35526.09593 | E200: ='Hourly Loads'!E134 -> 132
C201: ='Hourly Loads'!C135 -> 1292.819768 | D201: 36559.90195 | E201: ='Hourly Loads'!E135 -> 133
C202: ='Hourly Loads'!C136 -> 1312.564799 | D202: 38004.15222 | E202: ='Hourly Loads'!E136 -> 134
C203: ='Hourly Loads'!C137 -> 1315.213177 | D203: 38197.8678 | E203: ='Hourly Loads'!E137 -> 135
C204: ='Hourly Loads'!C138 -> 1241.252516 | D204: 32788.01526 | E204: ='Hourly Loads'!E138 -> 136
C205: ='Hourly Loads'!C139 -> 1310.812755 | D205: 37875.99894 | E205: ='Hourly Loads'!E139 -> 137
C206: ='Hourly Loads'!C140 -> 1281.229666 | D206: 35712.14393 | E206: ='Hourly Loads'!E140 -> 138
C207: ='Hourly Loads'!C141 -> 1518.830075 | D207: 53196.14792 | E207: ='Hourly Loads'!E141 -> 139
C208: ='Hourly Loads'!C142 -> 1603.693024 | D208: 59908.89966 | E208: ='Hourly Loads'!E142 -> 140
... 28 more rows

Sheet Hourly Loads
C1: GHANA CONSUMPTION | M1: 2016-01-01 | N1: 1 | O1: =MATCH($K$11,B:B,0)+N1-1 -> 147 | P1: =INDEX(F:F,O1) -> 1341.197235 | T1: Load Factor | U1: Average | V1: Maximum
A2: Time | C2: HOURLY_AVERAGE(MW) | F2: HOURLY_MAXIMUM(MW) | G2: DAY | H2: DAY OF WEEK | I2: Generic Days | J2: Average | M2: =M1+1 -> 2016-01-02 | N2: 2 | O2: 148 | P2: =INDEX(F:F,O2) -> 1354.188232 | S2: Load Factor | T2: =U2/V2 -> 0.7875084 | U2: =AVERAGE(C:C) -> 1438.07096 | V2: =MAX(C:C) -> 1826.102375
A3: 2016-01-01 00:00:00.0 | B3: =DATE(YEAR(A3),MONTH(A3),DAY(A3)) -> 2016-01-01 | C3: 1323.357341 | E3: 1 | F3: 1368.676338 | G3: =DAY(A3) -> 1 | H3: =TEXT(A3,"DDDD") -> DDDD | I3: Monday | J3: =AVERAGEIF($H:$H,I3,$C:$C) ->  | M3: =M2+1 -> 2016-01-03 | N3: 3 | O3: 149 | P3: 1325.02906
A4: 2016-01-01 01:00:00.0 | B4: =DATE(YEAR(A4),MONTH(A4),DAY(A4)) -> 2016-01-01 | C4: 1325.932964 | E4: 2 | F4: 1349.074974 | G4: =DAY(A4) -> 1 | H4: =TEXT(A4,"DDDD") -> DDDD | I4: Tuesday | J4: =AVERAGEIF($H:$H,I4,$C:$C) ->  | M4: 2016-01-04 | N4: 4 | O4: 150 | P4: 1233.685081
A5: 2016-01-01 02:00:00.0 | B5: 2016-01-01 | C5: 1322.826543 | E5: 3 | F5: 1343.373131 | G5: 1 | H5: DDDD | I5: Wednesday | M5: 2016-01-05 | N5: 5 | O5: 151 | P5: 1223.215538
A6: 2016-01-01 03:00:00.0 | B6: 2016-01-01 | C6: 1286.293522 | E6: 4 | F6: 1326.319031 | G6: 1 | H6: DDDD | I6: Thursday | M6: 2016-01-06 | N6: 6 | O6: 152 | P6: 1313.686592
A7: 2016-01-01 04:00:00.0 | B7: 2016-01-01 | C7: 1306.365008 | E7: 5 | F7: 1326.415733 | G7: 1 | H7: DDDD | I7: Friday | M7: 2016-01-07 | N7: 7 | O7: 153 | P7: 1336.932968
A8: 2016-01-01 05:00:00.0 | B8: 2016-01-01 | C8: 1302.636851 | E8: 6 | F8: 1324.495918 | G8: 1 | H8: DDDD | I8: Saturday | M8: 2016-01-08 | N8: 8 | O8: 154 | P8: 1272.771667
A9: 2016-01-01 06:00:00.0 | B9: 2016-01-01 | C9: 1210.816174 | E9: 7 | F9: 1328.419403 | G9: 1 | H9: DDDD | I9: Sunday | M9: 2016-01-09 | N9: 9 | O9: 155 | P9: 1301.017159
A10: 2016-01-01 07:00:00.0 | B10: 2016-01-01 | C10: 1194.151857 | E10: 8 | F10: 1242.017853 | G10: 1 | H10: DDDD | M10: 2016-01-10 | N10: 10 | O10: 156 | P10: 1312.51223
A11: 2016-01-01 08:00:00.0 | B11: 2016-01-01 | C11: 1215.502005 | E11: 9 | F11: 1251.363014 | G11: 1 | H11: DDDD | J11: 7 | K11: =INDEX(M:M,J11) -> 2016-01-07 | M11: 2016-01-11 | N11: 11 | O11: 157 | P11: 1311.455162
A12: 2016-01-01 09:00:00.0 | B12: 2016-01-01 | C12: 1209.783964 | E12: 10 | F12: 1266.627113 | G12: 1 | H12: DDDD | M12: 2016-01-12 | N12: 12 | O12: 158 | P12: 1333.013084
A13: 2016-01-01 10:00:00.0 | B13: 2016-01-01 | C13: 1290.064538 | E13: 11 | F13: 1335.601692 | G13: 1 | H13: DDDD | M13: 2016-01-13 | N13: 13 | O13: 159 | P13: 1278.897736
A14: 2016-01-01 11:00:00.0 | B14: 2016-01-01 | C14: 1230.760514 | E14: 12 | F14: 1327.553413 | G14: 1 | H14: DDDD | M14: 2016-01-14 | N14: 14 | O14: 160 | P14: 1347.402573
A15: 2016-01-01 12:00:00.0 | B15: 2016-01-01 | C15: 1156.456818 | E15: 13 | F15: 1244.512161 | G15: 1 | H15: DDDD | M15: 2016-01-15 | N15: 15 | O15: 161 | P15: 1429.077538
A16: 2016-01-01 13:00:00.0 | B16: 2016-01-01 | C16: 1203.149232 | E16: 14 | F16: 1306.005295 | G16: 1 | H16: DDDD | M16: 2016-01-16 | N16: 16 | O16: 162 | P16: 1432.307518
A17: 2016-01-01 14:00:00.0 | B17: 2016-01-01 | C17: 1256.534844 | E17: 15 | F17: 1278.348267 | G17: 1 | H17: DDDD | M17: 2016-01-17 | N17: 17 | O17: 163 | P17: 1419.744637
A18: 2016-01-01 15:00:00.0 | B18: 2016-01-01 | C18: 1240.441469 | E18: 16 | F18: 1291.597633 | G18: 1 | H18: DDDD | M18: 2016-01-18 | N18: 18 | O18: 164 | P18: 1460.124336
A19: 2016-01-01 16:00:00.0 | B19: 2016-01-01 | C19: 1153.767267 | E19: 17 | F19: 1232.221687 | G19: 1 | H19: DDDD | M19: 2016-01-19 | N19: 19 | O19: 165 | P19: 1675.481865
A20: 2016-01-01 17:00:00.0 | B20: 2016-01-01 | C20: 1128.458281 | E20: 18 | F20: 1201.600151 | G20: 1 | H20: DDDD | M20: 2016-01-20 | N20: 20 | O20: 166 | P20: 1692.941765
A21: 2016-01-01 18:00:00.0 | B21: 2016-01-01 | C21: 1361.270261 | E21: 19 | F21: 1502.622543 | G21: 1 | H21: DDDD | M21: 2016-01-21 | N21: 21 | O21: 167 | P21: 1668.761841
A22: 2016-01-01 19:00:00.0 | B22: 2016-01-01 | C22: 1495.083605 | E22: 20 | F22: 1545.719543 | G22: 1 | H22: DDDD | M22: 2016-01-22 | N22: 22 | O22: 168 | P22: 1662.318382
A23: 2016-01-01 20:00:00.0 | B23: 2016-01-01 | C23: 1515.449243 | E23: 21 | F23: 1532.599869 | G23: 1 | H23: DDDD | M23: 2016-01-23 | N23: 23 | O23: 169 | P23: 1601.834023
A24: 2016-01-01 21:00:00.0 | B24: 2016-01-01 | C24: 1499.591607 | E24: 22 | F24: 1536.54409 | G24: 1 | H24: DDDD | M24: =M23+1 -> 2016-01-24 | N24: 24 | O24: 170 | P24: 1507.671906
A25: 2016-01-01 22:00:00.0 | B25: 2016-01-01 | C25: 1413.025111 | E25: 23 | F25: 1513.175674 | G25: 1 | H25: DDDD | M25: 2016-01-25 | O25: 146 | P25: 1470.009499
A26: 2016-01-01 23:00:00.0 | B26: 2016-01-01 | C26: 1384.225023 | E26: 24 | F26: 1419.939049 | G26: 1 | H26: DDDD | M26: 2016-01-26 | O26: 146 | P26: 1470.009499
A27: 2016-01-02 00:00:00.0 | B27: 2016-01-02 | C27: 1290.33632 | E27: 25 | F27: 1453.18045 | G27: 2 | H27: DDDD | M27: 2016-01-27 | O27: 146 | P27: 1470.009499
A28: 2016-01-02 01:00:00.0 | B28: 2016-01-02 | C28: 1199.231653 | E28: 26 | F28: 1240.80838 | G28: 2 | H28: DDDD | M28: 2016-01-28 | O28: 146 | P28: 1470.009499
A29: 2016-01-02 02:00:00.0 | B29: 2016-01-02 | C29: 1158.344211 | E29: 27 | F29: 1238.101151 | G29: 2 | H29: DDDD | M29: 2016-01-29 | O29: 146 | P29: 1470.009499
A30: 2016-01-02 03:00:00.0 | B30: 2016-01-02 | C30: 1110.595583 | E30: 28 | F30: 1141.884048 | G30: 2 | H30: DDDD | M30: 2016-01-30 | O30: 146 | P30: 1470.009499
A31: 2016-01-02 04:00:00.0 | B31: 2016-01-02 | C31: 1125.810885 | E31: 29 | F31: 1161.689987 | G31: 2 | H31: DDDD | M31: 2016-01-31 | O31: 146 | P31: 1470.009499
A32: 2016-01-02 05:00:00.0 | B32: 2016-01-02 | C32: 1151.369345 | E32: 30 | F32: 1171.565102 | G32: 2 | H32: DDDD
A33: 2016-01-02 06:00:00.0 | B33: 2016-01-02 | C33: 1103.010865 | E33: 31 | F33: 1215.114975 | G33: 2 | H33: DDDD
A34: 2016-01-02 07:00:00.0 | B34: 2016-01-02 | C34: 1161.887241 | E34: 32 | F34: 1199.634659 | G34: 2 | H34: DDDD
A35: 2016-01-02 08:00:00.0 | B35: 2016-01-02 | C35: 1185.90838 | E35: 33 | F35: 1219.421295 | G35: 2 | H35: DDDD
A36: 2016-01-02 09:00:00.0 | B36: 2016-01-02 | C36: 1242.049966 | E36: 34 | F36: 1318.851692 | G36: 2 | H36: DDDD
A37: 2016-01-02 10:00:00.0 | B37: 2016-01-02 | C37: 1235.078761 | E37: 35 | F37: 1291.64257 | G37: 2 | H37: DDDD
A38: 2016-01-02 11:00:00.0 | B38: 2016-01-02 | C38: 1234.263135 | E38: 36 | F38: 1277.994843 | G38: 2 | H38: DDDD
A39: 2016-01-02 12:00:00.0 | B39: 2016-01-02 | C39: 1277.840663 | E39: 37 | F39: 1316.437691 | G39: 2 | H39: DDDD
A40: 2016-01-02 13:00:00.0 | B40: 2016-01-02 | C40: 1261.890152 | E40: 38 | F40: 1310.512337 | G40: 2 | H40: DDDD
A41: 2016-01-02 14:00:00.0 | B41: 2016-01-02 | C41: 1169.888301 | E41: 39 | F41: 1243.276955 | G41: 2 | H41: DDDD
A42: 2016-01-02 15:00:00.0 | B42: 2016-01-02 | C42: 1148.041192 | E42: 40 | F42: 1192.723564 | G42: 2 | H42: DDDD
A43: 2016-01-02 16:00:00.0 | B43: 2016-01-02 | C43: 1244.208369 | E43: 41 | F43: 1195.201073 | G43: 2 | H43: DDDD
A44: 2016-01-02 17:00:00.0 | B44: 2016-01-02 | C44: 1202.507255 | E44: 42 | F44: 1272.844284 | G44: 2 | H44: DDDD
A45: 2016-01-02 18:00:00.0 | B45: 2016-01-02 | C45: 1451.472847 | E45: 43 | F45: 1603.325668 | G45: 2 | H45: DDDD
A46: 2016-01-02 19:00:00.0 | B46: 2016-01-02 | C46: 1562.875167 | E46: 44 | F46: 1616.757507 | G46: 2 | H46: DDDD
A47: 2016-01-02 20:00:00.0 | B47: 2016-01-02 | C47: 1588.275977 | E47: 45 | F47: 1632.45845 | G47: 2 | H47: DDDD
A48: 2016-01-02 21:00:00.0 | B48: 2016-01-02 | C48: 1579.920998 | E48: 46 | F48: 1619.100609 | G48: 2 | H48: DDDD
A49: 2016-01-02 22:00:00.0 | B49: 2016-01-02 | C49: 1508.131334 | E49: 47 | F49: 1594.220978 | G49: 2 | H49: DDDD
A50: 2016-01-02 23:00:00.0 | B50: 2016-01-02 | C50: 1418.610195 | E50: 48 | F50: 1506.440292 | G50: 2 | H50: DDDD
A51: 2016-01-03 00:00:00.0 | B51: 2016-01-03 | C51: 1397.714652 | E51: 49 | F51: 1459.354271 | G51: 3 | H51: DDDD
A52: 2016-01-03 01:00:00.0 | B52: 2016-01-03 | C52: 1360.531826 | E52: 50 | F52: 1424.686058 | G52: 3 | H52: DDDD
A53: 2016-01-03 02:00:00.0 | B53: 2016-01-03 | C53: 1348.847732 | E53: 51 | F53: 1375.559456 | G53: 3 | H53: DDDD
A54: 2016-01-03 03:00:00.0 | B54: 2016-01-03 | C54: 1291.913155 | E54: 52 | F54: 1333.697144 | G54: 3 | H54: DDDD
A55: 2016-01-03 04:00:00.0 | B55: 2016-01-03 | C55: 1296.081965 | E55: 53 | F55: 1337.907135 | G55: 3 | H55: DDDD
A56: 2016-01-03 05:00:00.0 | B56: 2016-01-03 | C56: 1331.443974 | E56: 54 | F56: 1375.297241 | G56: 3 | H56: DDDD
A57: 2016-01-03 06:00:00.0 | B57: 2016-01-03 | C57: 1290.253883 | E57: 55 | F57: 1376.335625 | G57: 3 | H57: DDDD
A58: 2016-01-03 07:00:00.0 | B58: 2016-01-03 | C58: 1283.039342 | E58: 56 | F58: 1306.075661 | G58: 3 | H58: DDDD
A59: 2016-01-03 08:00:00.0 | B59: 2016-01-03 | C59: 1290.431564 | E59: 57 | F59: 1336.749763 | G59: 3 | H59: DDDD
A60: 2016-01-03 09:00:00.0 | B60: 2016-01-03 | C60: 1308.710734 | E60: 58 | F60: 1290.220482 | G60: 3 | H60: DDDD
A61: 2016-01-03 10:00:00.0 | B61: 2016-01-03 | C61: 1277.962588 | E61: 59 | F61: 1230.549133 | G61: 3 | H61: DDDD
A62: 2016-01-03 11:00:00.0 | B62: 2016-01-03 | C62: 1280.736697 | E62: 60 | F62: 1219.261719 | G62: 3 | H62: DDDD
A63: 2016-01-03 12:00:00.0 | B63: 2016-01-03 | C63: 1290.31516 | E63: 61 | F63: 1230.198311 | G63: 3 | H63: DDDD
A64: 2016-01-03 13:00:00.0 | B64: 2016-01-03 | C64: 1284.194419 | E64: 62 | F64: 1207.843735 | G64: 3 | H64: DDDD
A65: 2016-01-03 14:00:00.0 | B65: 2016-01-03 | C65: 1324.889639 | E65: 63 | F65: 1263.556206 | G65: 3 | H65: DDDD
A66: 2016-01-03 15:00:00.0 | B66: 2016-01-03 | C66: 1279.592231 | E66: 64 | F66: 1295.146172 | G66: 3 | H66: DDDD
A67: 2016-01-03 16:00:00.0 | B67: 2016-01-03 | C67: 1285.345096 | E67: 65 | F67: 1335.251823 | G67: 3 | H67: DDDD
A68: 2016-01-03 17:00:00.0 | B68: =DATE(YEAR(A68),MONTH(A68),DAY(A68)) -> 2016-01-03 | C68: 1273.955595 | E68: 66 | F68: 1305.725792 | G68: =DAY(A68) -> 3 | H68: =TEXT(A68,"DDDD") -> DDDD
A69: 2016-01-03 18:00:00.0 | B69: 2016-01-03 | C69: 1432.475114 | E69: 67 | F69: 1589.463142 | G69: 3 | H69: DDDD
A70: 2016-01-03 19:00:00.0 | B70: 2016-01-03 | C70: 1570.331619 | E70: 68 | F70: 1638.855202 | G70: 3 | H70: DDDD
A71: 2016-01-03 20:00:00.0 | B71: 2016-01-03 | C71: 1623.057381 | E71: 69 | F71: 1615.082169 | G71: 3 | H71: DDDD
A72: 2016-01-03 21:00:00.0 | B72: 2016-01-03 | C72: 1588.206718 | E72: 70 | F72: 1614.024391 | G72: 3 | H72: DDDD
A73: 2016-01-03 22:00:00.0 | B73: 2016-01-03 | C73: 1497.897892 | E73: 71 | F73: 1571.725739 | G73: 3 | H73: DDDD
A74: 2016-01-03 23:00:00.0 | B74: 2016-01-03 | C74: 1400.830819 | E74: 72 | F74: 1447.985519 | G74: 3 | H74: DDDD
A75: 2016-01-04 00:00:00.0 | B75: 2016-01-04 | C75: 1378.833962 | E75: 73 | F75: 1394.12809 | G75: 4 | H75: DDDD
A76: 2016-01-04 01:00:00.0 | B76: 2016-01-04 | C76: 1358.684347 | E76: 74 | F76: 1387.290344 | G76: 4 | H76: DDDD
A77: 2016-01-04 02:00:00.0 | B77: 2016-01-04 | C77: 1266.104491 | E77: 75 | F77: 1310.647469 | G77: 4 | H77: DDDD
A78: 2016-01-04 03:00:00.0 | B78: 2016-01-04 | C78: 1243.941303 | E78: 76 | F78: 1268.049805 | G78: 4 | H78: DDDD
A79: 2016-01-04 04:00:00.0 | B79: 2016-01-04 | C79: 1263.130763 | E79: 77 | F79: 1306.177727 | G79: 4 | H79: DDDD
A80: 2016-01-04 05:00:00.0 | B80: 2016-01-04 | C80: 1343.930329 | E80: 78 | F80: 1378.051353 | G80: 4 | H80: DDDD
A81: 2016-01-04 06:00:00.0 | B81: 2016-01-04 | C81: 1299.1248 | E81: 79 | F81: 1372.947601 | G81: 4 | H81: DDDD
A82: 2016-01-04 07:00:00.0 | B82: 2016-01-04 | C82: 1350.756607 | E82: 80 | F82: 1359.610947 | G82: 4 | H82: DDDD
A83: 2016-01-04 08:00:00.0 | B83: 2016-01-04 | C83: 1387.700061 | E83: 81 | F83: 1406.981766 | G83: 4 | H83: DDDD
A84: 2016-01-04 09:00:00.0 | B84: 2016-01-04 | C84: 1379.796615 | E84: 82 | F84: 1460.348343 | G84: 4 | H84: DDDD
A85: 2016-01-04 10:00:00.0 | B85: 2016-01-04 | C85: 1420.617495 | E85: 83 | F85: 1472.668053 | G85: 4 | H85: DDDD
A86: 2016-01-04 11:00:00.0 | B86: 2016-01-04 | C86: 1466.194343 | E86: 84 | F86: 1482.887444 | G86: 4 | H86: DDDD
A87: 2016-01-04 12:00:00.0 | B87: 2016-01-04 | C87: 1442.831764 | E87: 85 | F87: 1481.136101 | G87: 4 | H87: DDDD
A88: 2016-01-04 13:00:00.0 | B88: 2016-01-04 | C88: 1454.678792 | E88: 86 | F88: 1485.55648 | G88: 4 | H88: DDDD
A89: 2016-01-04 14:00:00.0 | B89: 2016-01-04 | C89: 1465.389401 | E89: 87 | F89: 1492.256706 | G89: 4 | H89: DDDD
A90: 2016-01-04 15:00:00.0 | B90: 2016-01-04 | C90: 1451.706361 | E90: 88 | F90: 1466.58432 | G90: 4 | H90: DDDD
A91: 2016-01-04 16:00:00.0 | B91: 2016-01-04 | C91: 1423.518087 | E91: 89 | F91: 1469.44268 | G91: 4 | H91: DDDD
A92: 2016-01-04 17:00:00.0 | B92: 2016-01-04 | C92: 1385.280108 | E92: 90 | F92: 1471.062569 | G92: 4 | H92: DDDD
A93: 2016-01-04 18:00:00.0 | B93: 2016-01-04 | C93: 1607.892612 | E93: 91 | F93: 1705.705086 | G93: 4 | H93: DDDD
A94: 2016-01-04 19:00:00.0 | B94: 2016-01-04 | C94: 1718.399783 | E94: 92 | F94: 1770.491005 | G94: 4 | H94: DDDD
A95: 2016-01-04 20:00:00.0 | B95: 2016-01-04 | C95: 1761.563961 | E95: 93 | F95: 1761.396133 | G95: 4 | H95: DDDD
A96: 2016-01-04 21:00:00.0 | B96: 2016-01-04 | C96: 1672.9432 | E96: 94 | F96: 1760.654015 | G96: 4 | H96: DDDD
A97: 2016-01-04 22:00:00.0 | B97: 2016-01-04 | C97: 1590.57856 | E97: 95 | F97: 1658.950142 | G97: 4 | H97: DDDD
A98: 2016-01-04 23:00:00.0 | B98: 2016-01-04 | C98: 1461.281301 | E98: 96 | F98: 1539.706223 | G98: 4 | H98: DDDD
A99: 2016-01-05 00:00:00.0 | B99: 2016-01-05 | C99: 1460.23668 | E99: 97 | F99: 1499.03038 | G99: 5 | H99: DDDD
A100: 2016-01-05 01:00:00.0 | B100: 2016-01-05 | C100: 1399.546117 | E100: 98 | F100: 1465.370316 | G100: 5 | H100: DDDD
A101: 2016-01-05 02:00:00.0 | B101: 2016-01-05 | C101: 1437.65635 | E101: 99 | F101: 1446.614487 | G101: 5 | H101: DDDD
A102: 2016-01-05 03:00:00.0 | B102: 2016-01-05 | C102: 1411.54679 | E102: 100 | F102: 1443.919991 | G102: 5 | H102: DDDD
A103: 2016-01-05 04:00:00.0 | B103: 2016-01-05 | C103: 1381.586259 | E103: 101 | F103: 1429.795265 | G103: 5 | H103: DDDD
A104: 2016-01-05 05:00:00.0 | B104: 2016-01-05 | C104: 1431.57192 | E104: 102 | F104: 1472.369392 | G104: 5 | H104: DDDD
A105: 2016-01-05 06:00:00.0 | B105: 2016-01-05 | C105: 1402.955716 | E105: 103 | F105: 1465.130524 | G105: 5 | H105: DDDD
A106: 2016-01-05 07:00:00.0 | B106: 2016-01-05 | C106: 1380.108658 | E106: 104 | F106: 1413.031914 | G106: 5 | H106: DDDD
A107: 2016-01-05 08:00:00.0 | B107: 2016-01-05 | C107: 1339.702433 | E107: 105 | F107: 1432.845482 | G107: 5 | H107: DDDD
A108: 2016-01-05 09:00:00.0 | B108: 2016-01-05 | C108: 1434.12996 | E108: 106 | F108: 1472.358925 | G108: 5 | H108: DDDD
A109: 2016-01-05 10:00:00.0 | B109: 2016-01-05 | C109: 1466.521434 | E109: 107 | F109: 1466.011551 | G109: 5 | H109: DDDD
A110: 2016-01-05 11:00:00.0 | B110: 2016-01-05 | C110: 1466.471174 | E110: 108 | F110: 1475.281113 | G110: 5 | H110: DDDD
A111: 2016-01-05 12:00:00.0 | B111: 2016-01-05 | C111: 1485.928646 | E111: 109 | F111: 1297.096382 | G111: 5 | H111: DDDD
A112: 2016-01-05 13:00:00.0 | B112: 2016-01-05 | C112: 1471.734518 | E112: 110 | F112: 1444.771996 | G112: 5 | H112: DDDD
A113: 2016-01-05 14:00:00.0 | B113: 2016-01-05 | C113: 1487.657064 | E113: 111 | F113: 1451.655342 | G113: 5 | H113: DDDD
A114: 2016-01-05 15:00:00.0 | B114: 2016-01-05 | C114: 1484.726979 | E114: 112 | F114: 1535.77565 | G114: 5 | H114: DDDD
A115: 2016-01-05 16:00:00.0 | B115: 2016-01-05 | C115: 1497.119849 | E115: 113 | F115: 1534.451073 | G115: 5 | H115: DDDD
A116: 2016-01-05 17:00:00.0 | B116: 2016-01-05 | C116: 1466.692679 | E116: 114 | F116: 1511.087006 | G116: 5 | H116: DDDD
A117: 2016-01-05 18:00:00.0 | B117: 2016-01-05 | C117: 1638.211774 | E117: 115 | F117: 1739.017487 | G117: 5 | H117: DDDD
A118: 2016-01-05 19:00:00.0 | B118: 2016-01-05 | C118: 1739.203271 | E118: 116 | F118: 1794.557983 | G118: 5 | H118: DDDD
A119: 2016-01-05 20:00:00.0 | B119: 2016-01-05 | C119: 1763.9152 | E119: 117 | F119: 1803.429108 | G119: 5 | H119: DDDD
A120: 2016-01-05 21:00:00.0 | B120: 2016-01-05 | C120: 1704.152343 | E120: 118 | F120: 1779.356873 | G120: 5 | H120: DDDD
A121: 2016-01-05 22:00:00.0 | B121: 2016-01-05 | C121: 1646.704143 | E121: 119 | F121: 1683.049927 | G121: 5 | H121: DDDD
A122: 2016-01-05 23:00:00.0 | B122: 2016-01-05 | C122: 1554.257076 | E122: 120 | F122: 1599.686317 | G122: 5 | H122: DDDD
A123: 2016-01-06 00:00:00.0 | B123: 2016-01-06 | C123: 1456.776792 | E123: 121 | F123: 1520.159645 | G123: 6 | H123: DDDD
A124: 2016-01-06 01:00:00.0 | B124: 2016-01-06 | C124: 1401.155581 | E124: 122 | F124: 1438.292801 | G124: 6 | H124: DDDD
A125: 2016-01-06 02:00:00.0 | B125: 2016-01-06 | C125: 1401.349372 | E125: 123 | F125: 1456.556252 | G125: 6 | H125: DDDD
A126: 2016-01-06 03:00:00.0 | B126: 2016-01-06 | C126: 1362.103143 | E126: 124 | F126: 1403.41748 | G126: 6 | H126: DDDD
A127: 2016-01-06 04:00:00.0 | B127: 2016-01-06 | C127: 1355.910738 | E127: 125 | F127: 1398.301247 | G127: 6 | H127: DDDD
A128: 2016-01-06 05:00:00.0 | B128: 2016-01-06 | C128: 1389.415108 | E128: 126 | F128: 1422.609924 | G128: 6 | H128: DDDD
A129: 2016-01-06 06:00:00.0 | B129: 2016-01-06 | C129: 1333.897553 | E129: 127 | F129: 1410.997894 | G129: 6 | H129: DDDD
A130: 2016-01-06 07:00:00.0 | B130: 2016-01-06 | C130: 1331.166951 | E130: 128 | F130: 1344.333977 | G130: 6 | H130: DDDD
A131: 2016-01-06 08:00:00.0 | B131: 2016-01-06 | C131: 1297.136984 | E131: 129 | F131: 1345.915558 | G131: 6 | H131: DDDD
A132: 2016-01-06 09:00:00.0 | B132: =DATE(YEAR(A132),MONTH(A132),DAY(A132)) -> 2016-01-06 | C132: 1232.487988 | E132: 130 | F132: 1311.659653 | G132: =DAY(A132) -> 6 | H132: =TEXT(A132,"DDDD") -> DDDD
A133: 2016-01-06 10:00:00.0 | B133: 2016-01-06 | C133: 1187.48404 | E133: 131 | F133: 1236.831825 | G133: 6 | H133: DDDD
A134: 2016-01-06 11:00:00.0 | B134: 2016-01-06 | C134: 1278.686116 | E134: 132 | F134: 1207.15976 | G134: 6 | H134: DDDD
A135: 2016-01-06 12:00:00.0 | B135: 2016-01-06 | C135: 1292.819768 | E135: 133 | F135: 1191.528625 | G135: 6 | H135: DDDD
A136: 2016-01-06 13:00:00.0 | B136: 2016-01-06 | C136: 1312.564799 | E136: 134 | F136: 1239.754868 | G136: 6 | H136: DDDD
A137: 2016-01-06 14:00:00.0 | B137: 2016-01-06 | C137: 1315.213177 | E137: 135 | F137: 1210.087662 | G137: 6 | H137: DDDD
A138: 2016-01-06 15:00:00.0 | B138: 2016-01-06 | C138: 1241.252516 | E138: 136 | F138: 1285.703247 | G138: 6 | H138: DDDD
A139: 2016-01-06 16:00:00.0 | B139: 2016-01-06 | C139: 1310.812755 | E139: 137 | F139: 1347.768311 | G139: 6 | H139: DDDD
A140: 2016-01-06 17:00:00.0 | B140: 2016-01-06 | C140: 1281.229666 | E140: 138 | F140: 1356.959648 | G140: 6 | H140: DDDD
A141: 2016-01-06 18:00:00.0 | B141: 2016-01-06 | C141: 1518.830075 | E141: 139 | F141: 1614.291229 | G141: 6 | H141: DDDD
A142: 2016-01-06 19:00:00.0 | B142: 2016-01-06 | C142: 1603.693024 | E142: 140 | F142: 1634.736557 | G142: 6 | H142: DDDD
A143: 2016-01-06 20:00:00.0 | B143: 2016-01-06 | C143: 1555.932496 | E143: 141 | F143: 1594.676819 | G143: 6 | H143: DDDD
A144: 2016-01-06 21:00:00.0 | B144: 2016-01-06 | C144: 1517.695308 | E144: 142 | F144: 1571.810486 | G144: 6 | H144: DDDD
A145: 2016-01-06 22:00:00.0 | B145: 2016-01-06 | C145: 1434.921268 | E145: 143 | F145: 1517.036728 | G145: 6 | H145: DDDD
A146: 2016-01-06 23:00:00.0 | B146: 2016-01-06 | C146: 1398.323877 | E146: 144 | F146: 1470.009499 | G146: 6 | H146: DDDD
A147: 2016-01-07 00:00:00.0 | B147: 2016-01-07 | C147: 1283.321395 | E147: 145 | F147: 1341.197235 | G147: 7 | H147: DDDD
A148: 2016-01-07 01:00:00.0 | B148: 2016-01-07 | C148: 1269.936566 | E148: 146 | F148: 1354.188232 | G148: 7 | H148: DDDD
A149: 2016-01-07 02:00:00.0 | B149: 2016-01-07 | C149: 1254.471671 | E149: 147 | F149: 1325.02906 | G149: 7 | H149: DDDD
A150: 2016-01-07 03:00:00.0 | B150: 2016-01-07 | C150: 1197.546894 | E150: 148 | F150: 1233.685081 | G150: 7 | H150: DDDD
A151: 2016-01-07 04:00:00.0 | B151: 2016-01-07 | C151: 1159.41269 | E151: 149 | F151: 1223.215538 | G151: 7 | H151: DDDD
A152: 2016-01-07 05:00:00.0 | B152: 2016-01-07 | C152: 1268.274336 | E152: 150 | F152: 1313.686592 | G152: 7 | H152: DDDD
A153: 2016-01-07 06:00:00.0 | B153: 2016-01-07 | C153: 1280.049593 | E153: 151 | F153: 1336.932968 | G153: 7 | H153: DDDD
A154: 2016-01-07 07:00:00.0 | B154: 2016-01-07 | C154: 1244.408838 | E154: 152 | F154: 1272.771667 | G154: 7 | H154: DDDD
A155: 2016-01-07 08:00:00.0 | B155: 2016-01-07 | C155: 1267.234549 | E155: 153 | F155: 1301.017159 | G155: 7 | H155: DDDD
A156: 2016-01-07 09:00:00.0 | B156: 2016-01-07 | C156: 1152.948819 | E156: 154 | F156: 1312.51223 | G156: 7 | H156: DDDD
A157: 2016-01-07 10:00:00.0 | B157: 2016-01-07 | C157: 1232.881341 | E157: 155 | F157: 1311.455162 | G157: 7 | H157: DDDD
A158: 2016-01-07 11:00:00.0 | B158: 2016-01-07 | C158: 1282.178187 | E158: 156 | F158: 1333.013084 | G158: 7 | H158: DDDD
A159: 2016-01-07 12:00:00.0 | B159: 2016-01-07 | C159: 1233.141695 | E159: 157 | F159: 1278.897736 | G159: 7 | H159: DDDD
A160: 2016-01-07 13:00:00.0 | B160: 2016-01-07 | C160: 1298.309737 | E160: 158 | F160: 1347.402573 | G160: 7 | H160: DDDD
A161: 2016-01-07 14:00:00.0 | B161: 2016-01-07 | C161: 1348.77931 | E161: 159 | F161: 1429.077538 | G161: 7 | H161: DDDD
A162: 2016-01-07 15:00:00.0 | B162: 2016-01-07 | C162: 1422.634435 | E162: 160 | F162: 1432.307518 | G162: 7 | H162: DDDD
A163: 2016-01-07 16:00:00.0 | B163: 2016-01-07 | C163: 1380.47923 | E163: 161 | F163: 1419.744637 | G163: 7 | H163: DDDD
A164: 2016-01-07 17:00:00.0 | B164: 2016-01-07 | C164: 1370.931149 | E164: 162 | F164: 1460.124336 | G164: 7 | H164: DDDD
A165: 2016-01-07 18:00:00.0 | B165: 2016-01-07 | C165: 1592.299124 | E165: 163 | F165: 1675.481865 | G165: 7 | H165: DDDD
A166: 2016-01-07 19:00:00.0 | B166: 2016-01-07 | C166: 1656.396354 | E166: 164 | F166: 1692.941765 | G166: 7 | H166: DDDD
A167: 2016-01-07 20:00:00.0 | B167: 2016-01-07 | C167: 1614.814745 | E167: 165 | F167: 1668.761841 | G167: 7 | H167: DDDD
A168: 2016-01-07 21:00:00.0 | B168: 2016-01-07 | C168: 1608.700285 | E168: 166 | F168: 1662.318382 | G168: 7 | H168: DDDD
A169: 2016-01-07 22:00:00.0 | B169: 2016-01-07 | C169: 1524.94396 | E169: 167 | F169: 1601.834023 | G169: 7 | H169: DDDD
A170: 2016-01-07 23:00:00.0 | B170: 2016-01-07 | C170: 1433.969678 | E170: 168 | F170: 1507.671906 | G170: 7 | H170: DDDD
A171: 2016-01-08 00:00:00.0 | B171: 2016-01-08 | C171: 1375.971828 | F171: 1431.367821 | G171: 8 | H171: DDDD
A172: 2016-01-08 01:00:00.0 | B172: 2016-01-08 | C172: 1329.646939 | F172: 1401.134605 | G172: 8 | H172: DDDD
A173: 2016-01-08 02:00:00.0 | B173: 2016-01-08 | C173: 1276.939331 | F173: 1313.64386 | G173: 8 | H173: DDDD
A174: 2016-01-08 03:00:00.0 | B174: 2016-01-08 | C174: 1215.791444 | F174: 1254.227524 | G174: 8 | H174: DDDD
A175: 2016-01-08 04:00:00.0 | B175: 2016-01-08 | C175: 1264.887842 | F175: 1323.497383 | G175: 8 | H175: DDDD
A176: 2016-01-08 05:00:00.0 | B176: 2016-01-08 | C176: 1301.100305 | F176: 1356.115311 | G176: 8 | H176: DDDD
A177: 2016-01-08 06:00:00.0 | B177: 2016-01-08 | C177: 1233.471347 | F177: 1347.493011 | G177: 8 | H177: DDDD
A178: 2016-01-08 07:00:00.0 | B178: 2016-01-08 | C178: 1212.092108 | F178: 1252.397942 | G178: 8 | H178: DDDD
A179: 2016-01-08 08:00:00.0 | B179: 2016-01-08 | C179: 1301.667758 | F179: 1362.921616 | G179: 8 | H179: DDDD
A180: 2016-01-08 09:00:00.0 | B180: 2016-01-08 | C180: 1311.858501 | F180: 1362.589226 | G180: 8 | H180: DDDD
A181: 2016-01-08 10:00:00.0 | B181: 2016-01-08 | C181: 1356.651846 | F181: 1394.011436 | G181: 8 | H181: DDDD
A182: 2016-01-08 11:00:00.0 | B182: 2016-01-08 | C182: 1365.883817 | F182: 1382.633644 | G182: 8 | H182: DDDD
A183: 2016-01-08 12:00:00.0 | B183: 2016-01-08 | C183: 1294.472094 | F183: 1380.37529 | G183: 8 | H183: DDDD
A184: 2016-01-08 13:00:00.0 | B184: 2016-01-08 | C184: 1288.924404 | F184: 1336.050552 | G184: 8 | H184: DDDD
A185: 2016-01-08 14:00:00.0 | B185: 2016-01-08 | C185: 1294.799061 | F185: 1362.395859 | G185: 8 | H185: DDDD
A186: 2016-01-08 15:00:00.0 | B186: 2016-01-08 | C186: 1243.604706 | F186: 1315.567535 | G186: 8 | H186: DDDD
A187: 2016-01-08 16:00:00.0 | B187: 2016-01-08 | C187: 1293.323292 | F187: 1341.130051 | G187: 8 | H187: DDDD
A188: 2016-01-08 17:00:00.0 | B188: 2016-01-08 | C188: 1260.339964 | F188: 1345.059662 | G188: 8 | H188: DDDD
A189: 2016-01-08 18:00:00.0 | B189: 2016-01-08 | C189: 1526.978607 | F189: 1640.421608 | G189: 8 | H189: DDDD
A190: 2016-01-08 19:00:00.0 | B190: 2016-01-08 | C190: 1637.833113 | F190: 1686.702881 | G190: 8 | H190: DDDD
A191: 2016-01-08 20:00:00.0 | B191: 2016-01-08 | C191: 1644.125213 | F191: 1672.056145 | G191: 8 | H191: DDDD
A192: 2016-01-08 21:00:00.0 | B192: 2016-01-08 | C192: 1624.46941 | F192: 1672.941612 | G192: 8 | H192: DDDD
A193: 2016-01-08 22:00:00.0 | B193: 2016-01-08 | C193: 1577.549431 | F193: 1625.794952 | G193: 8 | H193: DDDD
A194: 2016-01-08 23:00:00.0 | B194: 2016-01-08 | C194: 1503.983405 | F194: 1603.711243 | G194: 8 | H194: DDDD
A195: 2016-01-09 00:00:00.0 | B195: 2016-01-09 | C195: 1425.980837 | F195: 1481.60434 | G195: 9 | H195: DDDD
A196: 2016-01-09 01:00:00.0 | B196: =DATE(YEAR(A196),MONTH(A196),DAY(A196)) -> 2016-01-09 | C196: 1338.382816 | F196: 1384.322678 | G196: =DAY(A196) -> 9 | H196: =TEXT(A196,"DDDD") -> DDDD
A197: 2016-01-09 02:00:00.0 | B197: 2016-01-09 | C197: 1334.002478 | F197: 1399.035728 | G197: 9 | H197: DDDD
A198: 2016-01-09 03:00:00.0 | B198: 2016-01-09 | C198: 1332.192297 | F198: 1403.068726 | G198: 9 | H198: DDDD
A199: 2016-01-09 04:00:00.0 | B199: 2016-01-09 | C199: 1315.679912 | F199: 1361.836433 | G199: 9 | H199: DDDD
A200: 2016-01-09 05:00:00.0 | B200: 2016-01-09 | C200: 1352.407412 | F200: 1377.445915 | G200: 9 | H200: DDDD
... 217 more rows

Sheet Case Study
I3: Original | J3: 100
D4: Months in Year | E4: 12 | I4: Extra | J4: 100
D5: Capacity | E5: 270 | F5: MW | J5: =SUM(J3:J4) -> 200
D7: Carrying Charge | E7: 19.6 | F7: KW-Month
D8: Carrying Charge | E8: =E7*E4 -> 235.2 | F8: KW-Year
G10: Carrying Charge
D11: Cost | E11: 1800 | F11: USD/KW | G11: =$E$8/E11 -> 0.1306666667
E12: 1000 | F12: USD/KW | G12: =$E$8/E12 -> 0.2352
E13: 500 | F13: USD/KW | G13: 0.4704
E16: 0 | F16: 1 | G16: 2 | H16: 3 | I16: 4 | J16: 5 | K16: 6 | L16: 7 | M16: 8 | N16: 9 | O16: 10 | P16: 11 | Q16: 12 | R16: 13 | S16: 14 | T16: 15
D17: Cost of Capacity | E17: =E13 -> 500
D18: Capacity Charge | F18: =$E$7*$E$4 -> 235.2 | G18: =$E$7*$E$4 -> 235.2 | H18: 235.2 | I18: 235.2 | J18: 235.2 | K18: 235.2 | L18: 235.2 | M18: 235.2 | N18: 235.2 | O18: 235.2 | P18: 235.2 | Q18: 235.2 | R18: 235.2 | S18: 235.2 | T18: 235.2
D19: Net Cash Flow | E19: =E18-E17 -> -500 | F19: =F18-F17 -> 235.2 | G19: =G18-G17 -> 235.2 | H19: 235.2 | I19: 235.2 | J19: 235.2 | K19: 235.2 | L19: 235.2 | M19: 235.2 | N19: 235.2 | O19: 235.2 | P19: 235.2 | Q19: 235.2 | R19: 235.2 | S19: 235.2 | T19: 235.2
D20: Project IRR | E20: =IRR(E19:T19) -> 0.4689295413
D21: Carrying Charge | E21: =F18/E17 -> 0.4704

Sheet Comparison
E1: Open Cycle | F1: Solar
C2: Capacity | D2: MW | E2: 110 | I2: Energy Charge | J2: (fuel price x heat rate) | K2: USD/ MWh | L2: =L4*L5 -> 47.6
C3: EPC Cost | D3: USD | E3: 1000 | F3: 1000 | I3: Oil Price | L3: 28
C4: Variable O+M | D4: USD/MWH | E4: 10 | F4: 0 | I4: Fuel Price | K4: USD/ MMBTU | L4: =L3/6 -> 4.666666667
C5: Fixed O+M | D5: USD/KW-Year | E5: 14.5 | F5: 10 | I5: Heat Rate | J5: Open Cycle | K5: MMBTU/MWh | L5: 10.2
C6: Capacity Factor | E6: 0.85 | F6: 0.21
C7: Fixed O+M | D7: USD/MW-Hour | E7: =E5*1000/(8760*E6) -> 1.947354284 | F7: =F5*1000/(8760*F6) -> 5.43596434
C8: Carrying Charge | E8: 0.15 | F8: 0.12
C10: HOURS IN Year | D10: hrs | E10: 8760
D11: USD/MWH | E11: =E3/$E$10/E6*E8*1000 -> 20.14504432 | F11: =F3/$E$10/F6*F8*1000 -> 65.23157208
C13: TARIFF MAKE-UP | D13: USD/MWH
C14: EPC/ MWH | E14: =E11 -> 20.14504432 | F14: =F11 -> 65.23157208
C15: VARIABLE O+M | E15: =E4 -> 10 | F15: =F4 -> 0
C16: FIXED O+M | E16: =E7 -> 1.947354284 | F16: =F7 -> 5.43596434
C17: ENERGY COST | E17: =L2 -> 47.6 | F17: 0
C18: LCOE | E18: =SUM(E14:E17) -> 79.6923986 | F18: =SUM(F14:F17) -> 70.66753642

Sheet Raw Read
A1: Total Energy Generation at Akosombo GS 6,726.692 GWh 6,508.606 GWh -3.2
A2: B Total Energy Generation at Kpong GS 1,144.452 GWh 1,147.645 GWh 0.3
A3: Bi Bui Power Station 361.630 GWh 730.367 GWh
A4: C Total Energy Generation at Takoradi 1 Thermal GS 1,782.973 GWh 890.195 GWh -50.1
A5: Ci Total Energy Generation at Takoradi 3 Thermal GS 102.428 GWh 87.284 GWh
A6: D Total Energy Generation at Takoradi (2) Thermal GS (TICO) 1,031.960 GWh 711.890 GWh -31.0
A7: E Total Energy Generation at Mines Reserve Power Station .000 GWh 194.887 GWh 3897685432403850
A8: F Total Energy Generation at Tema Thermal 1 Power Station 475.020 GWh 697.110 GWh 46.8
A9: G Total Energy Generation at Tema Thermal 2 Power Station 94.295 GWh 222.952 GWh 136.4
A10: H Total Energy Generation at CENIT Power Station an IPP 454.345 GWh 512.839 GWh 12.9
A11: I Total Energy Generation at Sunon-Asogli Power Station an IPP 693.505 GWh 1,254.604 GWh 80.9
A12: J Total Energy Generated at all Generating stations (A+B+Bi+C+Ci+D+E+F+G+H+I) 12,867.300 GWh 12,958.379 GWh 0.7
A13: K Energy imported from CIE for VRA use 15.119 GWh 33.195 GWh 119.6
A14: Ki Inadvertent Import from CIE 11.828 GWh 17.522 GWh 48.1
A15: L Energy imported from CEB for VRA use - -
A16: M Total Energy Imported From CEB and CIE (K+L) 26.947 GWh 50.717 GWh 88.2
A17: N Total Energy Generated Plus Imports (J+M) 12,894.247 GWh 13,009.096 GWh 0.9
A18: O Total Energy Used at all Generating Stations 61.182 GWh 52.342 GWh -14.4
A19: P Energy Input to Transmission Systems (N-O) 12,833.065 GWh 12,956.754 GWh 1.0
A20: Q Energy used in the Substations 5.495 GWh 5.755 GWh 4.7
A21: R Energy Exported & Sold to CEB From VRA 481.952 GWh 557.147 GWh 15.6
A22: S *** Energy Exported & Sold to SONABEL From VRA 48.361 GWh 53.194 GWh 10.0
A23: T Energy wheeled to CEB From CIE 93.958 GWh 114.528 GWh 21.9
A24: U Energy Exported to CIE From VRA 122.313 GWh 19.639 GWh -83.9
A25: V Total Energy Exported and wheeled (R+S+T+U) 746.584 GWh 744.508 GWh -0.3
A26: W Total Consumption within Ghana (incl. VALCO) 11,688.621 GWh 11,870.456 GWh 1.6
A27: X Total External Sales (CEB,CIE & SONABEL) (R+S+U) 652.625 GWh 629.980 GWh -3.5
A28: Y Total Energy Billed (W+X-E) 12,341.246 GWh 12,305.549 GWh -0.3
A29: Z Transmission Losses (P+T-Q-V-W+E) 486.324 GWh 450.564 GWh -7.4
A30: AA Percentage of Transmisson Losses Z/(P-Q)*100 3.8 3.5 -8.2
A31: AB Maximum Peak Generated (MW) 1,942.9 MW 1,970.0 MW 1.4
A32: AC Average Demand (N/8.76) (MW) 1,471.9 MW 1,485.1 MW 0.9
A33: AD Load Factor (AC/AB) 75.8 75.4 -0.5
A34: AE Average plant discharge at Akosombo GS 1,370.58 cu.m/sec 1,389.67 cu.m/sec 1.4
A35: (48,430.56 cfs) (49,104.99 cfs)

Sheet Read PDF
A1: A Total Energy Generation at Akosombo GS | B1: 6726.692 | C1: 6508.606 | D1: -3.2 | E1: CODE | F1: 17
A2: B Total Energy Generation at Kpong GS | B2: 1144.452 | C2: 1147.645 | D2: 0.3
A3: Bi Bui Power Station | C3: 361.63 | D3: 730.367
A4: C Total Energy Generation at Takoradi Thermal GS | B4: 1782.973 | C4: 890.195 | D4: -50.1
A5: Ci Total Energy Generation at Takoradi Thermal GS | B5: 3 | C5: 102.428 | D5: 87.284
A6: D Total Energy Generation at Takoradi Thermal GS (TICO) | B6: 1031.96 | C6: 711.89 | D6: -31
A7: E Total Energy Generation at Mines Reserve Power Station | B7: 0 | C7: 194.887 | D7: 3897685432403850
A8: F Total Energy Generation at Tema Thermal Power Station | B8: 475.02 | C8: 697.11 | D8: 46.8
A9: G Total Energy Generation at Tema Thermal Power Station | B9: 94.295 | C9: 222.952 | D9: 136.4
A10: H Total Energy Generation at CENIT Power Station an IPP | B10: 454.345 | C10: 512.839 | D10: 12.9
A11: I Total Energy Generation at Sunon-Asogli Power Station an IPP | B11: 693.505 | C11: 1254.604 | D11: 80.9
A12: J Total Energy Generated at all Generating stations (A+B+Bi+C+Ci+D+E+F+G+H+I) | B12: 12867.3 | C12: 12958.379 | D12: 0.7
A13: K Energy imported from CIE for VRA use | B13: 15.119 | C13: 33.195 | D13: 119.6
A14: Ki Inadvertent Import from CIE | B14: 11.828 | C14: 17.522 | D14: 48.1
A15: L Energy imported from CEB for VRA use | C15: 0 | D15: 0
A16: M Total Energy Imported From CEB and CIE (K+L) | B16: 26.947 | C16: 50.717 | D16: 88.2
A17: N Total Energy Generated Plus Imports (J+M) | B17: 12894.247 | C17: 13009.096 | D17: 0.9
A18: O Total Energy Used at all Generating Stations | B18: 61.182 | C18: 52.342 | D18: -14.4
A19: P Energy Input to Transmission Systems (N-O) | B19: 12833.065 | C19: 12956.754 | D19: 1
A20: Q Energy used in the Substations | B20: 5.495 | C20: 5.755 | D20: 4.7
A21: R Energy Exported & Sold to CEB From VRA | B21: 481.952 | C21: 557.147 | D21: 15.6
A22: S *** Energy Exported & Sold to SONABEL From VRA | B22: 48.361 | C22: 53.194 | D22: 10
A23: T Energy wheeled to CEB From CIE | B23: 93.958 | C23: 114.528 | D23: 21.9
A24: U Energy Exported to CIE From VRA | B24: 122.313 | C24: 19.639 | D24: -83.9
A25: V Total Energy Exported and wheeled (R+S+T+U) | B25: 746.584 | C25: 744.508 | D25: -0.3
A26: W Total Consumption within Ghana (incl. VALCO) | B26: 11688.621 | C26: 11870.456 | D26: 1.6
A27: X Total External Sales (CEB,CIE & SONABEL) (R+S+U) | B27: 652.625 | C27: 629.98 | D27: -3.5
A28: Y Total Energy Billed (W+X-E) | B28: 12341.246 | C28: 12305.549 | D28: -0.3
A29: Z Transmission Losses (P+T-Q-V-W+E) | B29: 486.324 | C29: 450.564 | D29: -7.4
A30: AA Percentage of Transmisson Losses Z/(P-Q)*100 | B30: 3.8 | C30: 3.5 | D30: -8.2
A31: AB Maximum Peak Generated (MW) MW MW | B31: 1942.9 | C31: 1970 | D31: 1.4
A32: AC Average Demand (N/8.76) (MW) MW MW | B32: 1471.9 | C32: 1485.1 | D32: 0.9
A33: AD Load Factor (AC/AB) | B33: 75.8 | C33: 75.4 | D33: -0.5
A34: AE Average plant discharge at Akosombo GS cu.m/sec cu.m/sec | B34: 1370.58 | C34: 1389.67 | D34: 1.4
A35: (48,430.56 cfs) (49,104.99 cfs)
A38: =INDEX(A:A,$F$1) -> N Total Energy Generated Plus Imports (J+M) | B38: =INDEX(B:B,$F$1) -> 12894.247 | C38: =INDEX(C:C,$F$1) -> 13009.096 | D38: =INDEX(D:D,$F$1) -> 0.9

Sheet Waterfall Chartdata1
A1: BASE 45.66 | B1: 45.66210046 | E1: 9.132420091 | F1: 45.66210046 | M1: 45.66210046 | N1: =M1 -> 45.66210046 | P1: =N1 -> 45.66210046 | Q1: =ABS(O1) -> 0 | AZ1: =waterfall_graph_data1 -> BASE | BA1: 45.66210046 | BB1: =BA1 -> 45.66210046 | BD1: =BB1 -> 45.66210046 | BE1: =ABS(BC1) -> 0 | BF1: 9.132420091 | BG1: =BD1 -> 45.66210046 | BH1: =IF(BC1>=0,0,BF1) -> 0 | BI1: =IF(BC1<0,0,BF1) -> 9.132420091 | BJ1: =BA1 -> 45.66210046 | BQ1: =AZ1 -> BASE | BS1: =BB1 -> 45.66210046 | BT1: =BQ1&BR1&TEXT(BS1,"*,#,##0.00;(*,(#,##0.00);(* ??_);_(@_)") -> BASE 45.66 | BU1: =BG1 -> 45.66210046 | BV1: 0 | BW1: =BE1 -> 0 | BX1: =BI1 -> 9.132420091 | BY1: =BB1 -> 45.66210046
A2: Higher EPC Cost 59.36 | B2: 45.66210046 | D2: 13.69863014 | E2: 9.132420091 | F2: 45.66210046 | G2: 59.36073059 | M2: 13.69863014 | N2: =IF(M2<>0,N1+M2,N1) -> 59.36073059 | O2: =N2-N1 -> 13.69863014 | P2: =IF(O2>=0,N2-O2,N1+O2) -> 45.66210046 | Q2: =ABS(O2) -> 13.69863014 | AZ2: Higher EPC Cost | BA2: 13.69863014 | BB2: =IF(BA2<>0,BB1+BA2,BB1) -> 59.36073059 | BC2: =BB2-BB1 -> 13.69863014 | BD2: =IF(BC2>=0,BB2-BC2,BB1+BC2) -> 45.66210046 | BE2: =ABS(BC2) -> 13.69863014 | BF2: 9.132420091 | BG2: =IF(BC2>=0,BD2,BD2-BF2) -> 45.66210046 | BH2: =IF(BC2>=0,0,BF2) -> 0 | BI2: =IF(BC2<0,0,BF2) -> 9.132420091 | BJ2: =IF(BC2<>0,BC2,BB2) -> 13.69863014 | BQ2: =AZ2 -> Higher EPC Cost | BS2: =BB2 -> 59.36073059 | BT2: =BQ2&BR2&TEXT(BS2,"*,#,##0.00;(*,(#,##0.00);(* ??_);_(@_)") -> Higher EPC Cost 59.36 | BU2: 45.66210046 | BV2: 0 | BW2: =BE2 -> 13.69863014 | BX2: =BI2 -> 9.132420091 | BY2: =BB1 -> 45.66210046 | BZ2: =BB2 -> 59.36073059
A3: Higher O+M Cost 61.64 | B3: 59.36073059 | D3: 2.283105023 | E3: 9.132420091 | G3: 59.36073059 | H3: 61.64383562 | M3: 2.283105023 | N3: =IF(M3<>0,N2+M3,N2) -> 61.64383562 | O3: =N3-N2 -> 2.283105023 | P3: =IF(O3>=0,N3-O3,N2+O3) -> 59.36073059 | Q3: =ABS(O3) -> 2.283105023 | AZ3: Higher O+M Cost | BA3: 2.283105023 | BB3: =IF(BA3<>0,BB2+BA3,BB2) -> 61.64383562 | BC3: =BB3-BB2 -> 2.283105023 | BD3: =IF(BC3>=0,BB3-BC3,BB2+BC3) -> 59.36073059 | BE3: =ABS(BC3) -> 2.283105023 | BF3: 9.132420091 | BG3: =IF(BC3>=0,BD3,BD3-BF3) -> 59.36073059 | BH3: =IF(BC3>=0,0,BF3) -> 0 | BI3: =IF(BC3<0,0,BF3) -> 9.132420091 | BJ3: =IF(BC3<>0,BC3,BB3) -> 2.283105023 | BQ3: =AZ3 -> Higher O+M Cost | BS3: =BB3 -> 61.64383562 | BT3: =BQ3&BR3&TEXT(BS3,"*,#,##0.00;(*,(#,##0.00);(* ??_);_(@_)") -> Higher O+M Cost 61.64 | BU3: 59.36073059 | BV3: 0 | BW3: =BE3 -> 2.283105023 | BX3: =BI3 -> 9.132420091 | BZ3: =BB2 -> 59.36073059 | CA3: =BB3 -> 61.64383562
A4: Higher Carrying Charge 92.47 | B4: 61.64383562 | D4: 30.82191781 | E4: 9.132420091 | H4: 61.64383562 | I4: 92.46575342 | M4: 30.82191781 | N4: =IF(M4<>0,N3+M4,N3) -> 92.46575342 | O4: =N4-N3 -> 30.82191781 | P4: =IF(O4>=0,N4-O4,N3+O4) -> 61.64383562 | Q4: =ABS(O4) -> 30.82191781 | AZ4: Higher Carrying Charge | BA4: 30.82191781 | BB4: =IF(BA4<>0,BB3+BA4,BB3) -> 92.46575342 | BC4: =BB4-BB3 -> 30.82191781 | BD4: =IF(BC4>=0,BB4-BC4,BB3+BC4) -> 61.64383562 | BE4: =ABS(BC4) -> 30.82191781 | BF4: 9.132420091 | BG4: =IF(BC4>=0,BD4,BD4-BF4) -> 61.64383562 | BH4: =IF(BC4>=0,0,BF4) -> 0 | BI4: =IF(BC4<0,0,BF4) -> 9.132420091 | BJ4: =IF(BC4<>0,BC4,BB4) -> 30.82191781 | BQ4: =AZ4 -> Higher Carrying Charge | BS4: =BB4 -> 92.46575342 | BT4: =BQ4&BR4&TEXT(BS4,"*,#,##0.00;(*,(#,##0.00);(* ??_);_(@_)") -> Higher Carrying Charge 92.47 | BU4: 61.64383562 | BV4: 0 | BW4: =BE4 -> 30.82191781 | BX4: =BI4 -> 9.132420091 | CA4: =BB3 -> 61.64383562 | CB4: =BB4 -> 92.46575342
A5: Final Number 92.47 | B5: 92.46575342 | D5: 0 | E5: 9.132420091 | I5: 92.46575342 | J5: 92.46575342 | M5: 0 | N5: =IF(M5<>0,N4+M5,N4) -> 92.46575342 | O5: =N5-N4 -> 0 | P5: =IF(O5>=0,N5-O5,N4+O5) -> 92.46575342 | Q5: =ABS(O5) -> 0 | AZ5: Final Number | BA5: 0 | BB5: =IF(BA5<>0,BB4+BA5,BB4) -> 92.46575342 | BC5: =BB5-BB4 -> 0 | BD5: =IF(BC5>=0,BB5-BC5,BB4+BC5) -> 92.46575342 | BE5: =ABS(BC5) -> 0 | BF5: 9.132420091 | BG5: =IF(BC5>=0,BD5,BD5-BF5) -> 92.46575342 | BH5: =IF(BC5>=0,0,BF5) -> 0 | BI5: =IF(BC5<0,0,BF5) -> 9.132420091 | BJ5: =IF(BC5<>0,BC5,BB5) -> 92.46575342 | BQ5: =AZ5 -> Final Number | BS5: =BB5 -> 92.46575342 | BT5: =BQ5&BR5&TEXT(BS5,"*,#,##0.00;(*,(#,##0.00);(* ??_);_(@_)") -> Final Number 92.47 | BU5: 92.46575342 | BV5: 0 | BW5: =BE5 -> 0 | BX5: =BI5 -> 9.132420091 | CB5: =BB4 -> 92.46575342
A6: =COLUMN() -> 1 | B6: =COLUMN() -> 2 | C6: =COLUMN() -> 3 | D6: =COLUMN() -> 4 | E6: =COLUMN() -> 5 | F6: =COLUMN() -> 6 | G6: =COLUMN() -> 7 | H6: =COLUMN() -> 8 | I6: =COLUMN() -> 9 | J6: =COLUMN() -> 10 | K6: =COLUMN() -> 11 | L6: =COLUMN() -> 12 | M6: =COLUMN() -> 13 | N6: =COLUMN() -> 14 | O6: =COLUMN() -> 15 | P6: =COLUMN() -> 16 | Q6: =COLUMN() -> 17 | BB6: =COLUMN() -> 54 | BC6: =COLUMN() -> 55 | BD6: =COLUMN() -> 56 | BE6: =COLUMN() -> 57 | BF6: =COLUMN() -> 58 | BG6: =COLUMN() -> 59 | BH6: =COLUMN() -> 60 | BI6: =COLUMN() -> 61 | BJ6: =COLUMN() -> 62 | BK6: =COLUMN() -> 63 | BL6: =COLUMN() -> 64 | BM6: =COLUMN() -> 65 | BN6: =COLUMN() -> 66 | BO6: =COLUMN() -> 67 | BP6: =COLUMN() -> 68 | BQ6: =COLUMN() -> 69 | BR6: =COLUMN() -> 70 | BS6: =COLUMN() -> 71 | BT6: =COLUMN() -> 72 | BU6: =COLUMN() -> 73 | BV6: =COLUMN() -> 74 | BW6: =COLUMN() -> 75 | BX6: =COLUMN() -> 76 | BY6: =COLUMN() -> 77 | BZ6: =COLUMN() -> 78 | CA6: =COLUMN() -> 79 | CB6: =COLUMN() -> 80 | CC6: =COLUMN() -> 81
A7: Fixed Graph: Graph Titles | D7: Fixed Graph: Increment (absolute Value) | F7: Fixed Graph: Connectors | BB7: CALCULATION: BASE VALUE: If not zero accumulate; if zero Last Value | BT7: GRAPH: Link to the Title
B8: Fixed Graph: Base of Stacked Bar | E8: Fixed Graph: Space for Increment | BB8: CALCULATION: ACCUMULATED VALUE: Formula is accumulation | BU8: GRAPH: Adjusted Base of Stack from calculation
C9: Fixed Graph: Space for Negative Label (Not Graphed | BC9: CALCULATION: INCREMENT: Formula is difference between accumulated value | BV9: GRAPH: Space for Value in Negative Case
A10: TO MAKE GRAPH BY YOURSELF | L10: Chart Title | M10: =AZ1 -> BASE | N10: =TEXT(BB1,"*,#,##0.00;(*,(#,##0.00);(* ??_);_(@_)") -> 45.66 | O10: Bulid-up Chart | BD10: CALCULATION: BASE OF STACK BAR WITHOUT ADJUSTMENT: Base of Stacked Bar: Formula depends on the increment. If positive then ACC - Incr if negative Last ACC + Incr | BW10: GRAPH: Absolute Value of Increment
A11: 1. PRESS ALT F1 on the yellow AREA | BE11: CALCULATION: ABS VALUE OF INCREMENT: This is enough to make graph without fancy stuff | BX11: GRAPH: Space for Value in Positive Case
A12: 2. CHANGE TO STACKED BAR AND SWITCH AROUND ROW AND COLUMN | BF12: INPUT: LABEL SPACE: This is enough to make graph without fancy stuff
A13: 3. SELECT DATA SERIES AND NO FILL EVERYTHING EXCEPT INCREMENTS | BG13: CALCULATION: ADJUSTED BASE VALUE: This is base of the stacked bar minus the label space if the increment is negative
A14: 4. SELECT DATA PONTS FOR BASE BAR AND FILL STARTING, ENDING AND SUBTOTALS | BH14: CALCULATION: NEGATIVE SPACE: This is the label space if the increment is negative
A15: 5. CHANGE THE CHART TYPE OF THE CONNECTOR LINES | BI15: CALCULATION: POSITIVE SPACE: This is label space if the increment is positive

Sheet AES Sample
A1: Lal Pir (Pakistan) Contract Generation
A2: Income | C2: 2004 | D2: 2005 | E2: 2006 | F2: 2007 | G2: 2008 | H2: 2009 | I2: 2010 | J2: 2011 | K2: 2012 | L2: 2013 | M2: 2014 | N2: 2015 | O2: 2016 | P2: 2017 | Q2: 2018 | R2: 2019 | S2: 2020 | T2: 2021 | U2: 2022 | V2: 2023
A3: Revenue | C3: 312.5 | D3: 313.6 | E3: 314.7 | F3: 315.8 | G3: 316.9 | H3: 318 | I3: 319.1 | J3: 320.2 | K3: 321.4 | L3: 322.5 | M3: 323.6 | N3: 324.7 | O3: 325.9 | P3: 327 | Q3: 328.2 | R3: 329.3 | S3: 330.5 | T3: 331.6 | U3: 332.8 | V3: 333.9
A4: EBITDA | B4: =-C35 -> -604.3 | C4: 100 | D4: 100.4 | E4: 100.7 | F4: 101.1 | G4: 101.4 | H4: 101.8 | I4: 102.1 | J4: 102.5 | K4: 102.8 | L4: 103.2 | M4: 103.6 | N4: 103.9 | O4: 104.3 | P4: 104.6 | Q4: 105 | R4: 105.4 | S4: 105.7 | T4: 106.1 | U4: 106.5 | V4: 106.9
A5: Pre-tax Project IRR | B5: =IRR(4:4) -> 0.1598567107
A6: Depreciation | C6: -30.6 | D6: -31.3 | E6: -31.9 | F6: -32.5 | G6: -33.1 | H6: -33.8 | I6: -34.4 | J6: -35.1 | K6: -35.7 | L6: -36.3 | M6: -37 | N6: -37.6 | O6: -38.3 | P6: -39 | Q6: -39.6 | R6: -40.3 | S6: -40.9 | T6: -41.6 | U6: -42.3 | V6: -42.9
A7: Operating Profit (EBIT) | C7: =SUM(C4:C6) -> 69.4 | D7: 69.1 | E7: 68.8 | F7: 68.5 | G7: 68.3 | H7: 68 | I7: 67.7 | J7: 67.4 | K7: 67.1 | L7: 66.8 | M7: 66.6 | N7: 66.3 | O7: 66 | P7: 65.7 | Q7: 65.4 | R7: 65.1 | S7: 64.8 | T7: 64.5 | U7: 64.2 | V7: 63.9
A8: Interest | C8: -44.1 | D8: -42.7 | E8: -41.1 | F8: -39.4 | G8: -37.5 | H8: -35.4 | I8: -33.2 | J8: -30.7 | K8: -28 | L8: -25 | M8: -21.8 | N8: -18.2 | O8: -14.3 | P8: -9.9 | Q8: -5.2 | R8: 0 | S8: 0 | T8: 0 | U8: 0 | V8: 0
A9: Taxes | C9: -8.8 | D9: -9.2 | E9: -9.7 | F9: -10.2 | G9: -10.8 | H9: -11.4 | I9: -12.1 | J9: -12.9 | K9: -13.7 | L9: -14.6 | M9: -15.7 | N9: -16.8 | O9: -18.1 | P9: -19.5 | Q9: -21.1 | R9: -22.8 | S9: -22.7 | T9: -22.6 | U9: -22.5 | V9: -22.4
A10: Net Profit | C10: =SUM(C7:C9) -> 16.5 | D10: =SUM(D7:D9) -> 17.2 | E10: 18 | F10: 18.9 | G10: 20 | H10: 21.2 | I10: 22.4 | J10: 23.8 | K10: 25.4 | L10: 27.2 | M10: 29.1 | N10: 31.3 | O10: 33.6 | P10: 36.3 | Q10: 39.1 | R10: 42.3 | S10: 42.1 | T10: 41.9 | U10: 41.7 | V10: 41.5
A11: Cash Flow
A12: Operating Profit | C12: =C7 -> 69.4 | D12: 69.1 | E12: 68.8 | F12: 68.5 | G12: 68.3 | H12: 68 | I12: 67.7 | J12: 67.4 | K12: 67.1 | L12: 66.8 | M12: 66.6 | N12: 66.3 | O12: 66 | P12: 65.7 | Q12: 65.4 | R12: 65.1 | S12: 64.8 | T12: 64.5 | U12: 64.2 | V12: 63.9
A13: Addback Depreciation | C13: =-C6 -> 30.6 | D13: =-D6 -> 31.3 | E13: 31.9 | F13: 32.5 | G13: 33.1 | H13: 33.8 | I13: 34.4 | J13: 35.1 | K13: 35.7 | L13: 36.3 | M13: 37 | N13: 37.6 | O13: 38.3 | P13: 39 | Q13: 39.6 | R13: 40.3 | S13: 40.9 | T13: 41.6 | U13: 42.3 | V13: 42.9
A14: Maintenance CapEx | C14: -12.5 | D14: -12.5 | E14: -12.6 | F14: -12.6 | G14: -12.7 | H14: -12.7 | I14: -12.8 | J14: -12.8 | K14: -12.9 | L14: -12.9 | M14: -12.9 | N14: -13 | O14: -13 | P14: -13.1 | Q14: -13.1 | R14: -13.2 | S14: -13.2 | T14: -13.3 | U14: -13.3 | V14: -13.4
A15: Pre-Tax, Pre-Finance Cash Flow | C15: =SUM(C12:C14) -> 87.5 | D15: =SUM(D12:D14) -> 87.9 | E15: 88.1 | F15: 88.4 | G15: 88.7 | H15: 89.1 | I15: 89.3 | J15: 89.7 | K15: 89.9 | L15: 90.2 | M15: 90.7 | N15: 90.9 | O15: 91.3 | P15: 91.6 | Q15: 91.9 | R15: 92.2 | S15: 92.5 | T15: 92.8 | U15: 93.2 | V15: 93.4
A16: Interest | C16: -44.1 | D16: -42.7 | E16: -41.1 | F16: -39.4 | G16: -37.5 | H16: -35.4 | I16: -33.2 | J16: -30.7 | K16: -28 | L16: -25 | M16: -21.8 | N16: -18.2 | O16: -14.3 | P16: -9.9 | Q16: -5.2 | R16: 0 | S16: 0 | T16: 0 | U16: 0 | V16: 0
A17: Principal | C17: -14.2 | D17: -15.5 | E17: -16.9 | F17: -18.4 | G17: -20.1 | H17: -22 | I17: -24.1 | J17: -26.4 | K17: -29 | L17: -31.8 | M17: -34.9 | N17: -38.3 | O17: -42.1 | P17: -46.2 | Q17: -50.8 | R17: 0 | S17: 0 | T17: 0 | U17: 0 | V17: 0
A18: Debt Service (interest+principal) | C18: =-(C16+C17) -> 58.3 | D18: =-(D16+D17) -> 58.2 | E18: 58 | F18: 57.8 | G18: 57.6 | H18: 57.4 | I18: 57.3 | J18: 57.1 | K18: 57 | L18: 56.8 | M18: 56.7 | N18: 56.5 | O18: 56.4 | P18: 56.1 | Q18: 56 | R18: 0 | S18: 0 | T18: 0 | U18: 0 | V18: 0
A19: Debt Cash-flow | B19: =-C36 -> -416.5 | C19: =C18 -> 58.3 | D19: =D18 -> 58.2 | E19: 58 | F19: 57.8 | G19: 57.6 | H19: 57.4 | I19: 57.3 | J19: 57.1 | K19: 57 | L19: 56.8 | M19: 56.7 | N19: 56.5 | O19: 56.4 | P19: 56.1 | Q19: 56 | R19: 0 | S19: 0 | T19: 0 | U19: 0 | V19: 0
A20: Debt IRR | B20: =IRR(19:19) -> 0.1085334846
A21: New Debt | C21: 0 | D21: 0 | E21: 0 | F21: 0 | G21: 0 | H21: 0 | I21: 0 | J21: 0 | K21: 0 | L21: 0 | M21: 0 | N21: 0 | O21: 0 | P21: 0 | Q21: 0 | R21: 0 | S21: 0 | T21: 0 | U21: 0 | V21: 0
A22: Taxes | C22: -8.8 | D22: -9.2 | E22: -9.7 | F22: -10.2 | G22: -10.8 | H22: -11.4 | I22: -12.1 | J22: -12.9 | K22: -13.7 | L22: -14.6 | M22: -15.7 | N22: -16.8 | O22: -18.1 | P22: -19.5 | Q22: -21.1 | R22: -22.8 | S22: -22.7 | T22: -22.6 | U22: -22.5 | V22: -22.4
A23: Dividends (ebidta-taxes-debt service) | B23: =-C37 -> -187.8 | C23: =C4+C9-C18 -> 32.9 | D23: =D4+D9-D18 -> 33 | E23: 33 | F23: 33.1 | G23: 33 | H23: 33 | I23: 32.7 | J23: 32.5 | K23: 32.1 | L23: 31.8 | M23: 31.2 | N23: 30.6 | O23: 29.8 | P23: 29 | Q23: 27.9 | R23: 82.6 | S23: 83 | T23: 83.5 | U23: 84 | V23: 84.5
A24: Equity IRR | B24: =IRR(23:23) -> 0.1795093304
A25: Equity Growth | B25: =-B23 -> 187.8 | C25: =B25*(1+$B$24) -> 221.5118522 | D25: =C25*(1+$B$24) -> 261.2752965 | E25: 308.17665 | F25: 363.4972341 | G25: 428.7483792 | H25: 505.7127136 | I25: 596.4928642 | J25: 703.5688988 | K25: 829.8660807 | L25: 978.8347852 | M25: 1154.544762 | N25: 1361.796319 | O25: 1606.251464 | P25: 1894.588589 | Q25: 2234.684918 | R25: 2635.831711 | S25: 3108.988097 | T25: 3667.080468 | U25: 4325.355628 | V25: 5101.79732
A27: Levered Equity Cash Flow | C27: =SUM(C15:C17,C21:C22) -> 20.4 | D27: =SUM(D15:D17,D21:D22) -> 20.5 | E27: 20.4 | F27: 20.4 | G27: 20.3 | H27: 20.3 | I27: 19.9 | J27: 19.7 | K27: 19.2 | L27: 18.8 | M27: 18.3 | N27: 17.6 | O27: 16.8 | P27: 16 | Q27: 14.8 | R27: 69.4 | S27: 69.8 | T27: 70.2 | U27: 70.7 | V27: 71
A28: Lev Equity Cash Flow with TV | C28: 20.3 | D28: 20.4 | E28: 20.4 | F28: 20.4 | G28: 20.3 | H28: 20.2 | I28: 20 | J28: 19.7 | K28: 19.3 | L28: 18.9 | M28: 18.3 | N28: 17.6 | O28: 16.8 | P28: 15.9 | Q28: 14.8 | R28: 69.4 | S28: 69.8 | T28: 70.3 | U28: 70.7 | V28: 71.1
A29: Unlevered Cash Flow | C29: =C15-C27 -> 67.1 | D29: =D15-D27 -> 67.4 | E29: 67.7 | F29: 68 | G29: 68.4 | H29: 68.8 | I29: 69.4 | J29: 70 | K29: 70.7 | L29: 71.4 | M29: 72.4 | N29: 73.3 | O29: 74.5 | P29: 75.6 | Q29: 77.1 | R29: 22.8 | S29: 22.7 | T29: 22.6 | U29: 22.5 | V29: 22.4
A30: Unlevered Cash Flow with TV | C30: 63.2 | D30: 63.6 | E30: 64 | F30: 64.4 | G30: 64.8 | H30: 65.2 | I30: 65.7 | J30: 66.1 | K30: 66.5 | L30: 66.9 | M30: 67.3 | N30: 67.7 | O30: 68.2 | P30: 68.6 | Q30: 69 | R30: 69.4 | S30: 69.8 | T30: 70.3 | U30: 70.7 | V30: 71.1
A31: Capitalization
A32: Initial PP&E | C32: 612.5 | D32: 625 | E32: 637.6 | F32: 650.3 | G32: 662.9 | H32: 675.7 | I32: 688.4 | J32: 701.2 | K32: 714.1 | L32: 727 | M32: 739.9 | N32: 752.9 | O32: 766 | P32: 779 | Q32: 792.2 | R32: 805.3 | S32: 818.6 | T32: 831.8 | U32: 845.1 | V32: 858.5
A33: Goodwill | C33: 22.4 | D33: 22.4 | E33: 22.4 | F33: 22.4 | G33: 22.4 | H33: 22.4 | I33: 22.4 | J33: 22.4 | K33: 22.4 | L33: 22.4 | M33: 22.4 | N33: 22.4 | O33: 22.4 | P33: 22.4 | Q33: 22.4 | R33: 22.4 | S33: 22.4 | T33: 22.4 | U33: 22.4 | V33: 22.4
A34: Accum Depreciation | C34: -30.6 | D34: -61.9 | E34: -93.8 | F34: -126.3 | G34: -159.4 | H34: -193.2 | I34: -227.6 | J34: -262.7 | K34: -298.4 | L34: -334.7 | M34: -371.7 | N34: -409.4 | O34: -447.7 | P34: -486.6 | Q34: -526.2 | R34: -566.5 | S34: -607.4 | T34: -649 | U34: -691.3 | V34: -734.2
A35: Total Assets | C35: 604.3 | D35: 585.6 | E35: 566.3 | F35: 546.4 | G35: 525.9 | H35: 504.9 | I35: 483.2 | J35: 461 | K35: 438.1 | L35: 414.7 | M35: 390.6 | N35: 365.9 | O35: 340.7 | P35: 314.8 | Q35: 288.3 | R35: 261.2 | S35: 233.5 | T35: 205.2 | U35: 176.3 | V35: 146.7
A36: Debt | C36: 416.5 | D36: 401 | E36: 384.1 | F36: 365.7 | G36: 345.6 | H36: 323.6 | I36: 299.4 | J36: 273 | K36: 244.1 | L36: 212.3 | M36: 177.4 | N36: 139.1 | O36: 97 | P36: 50.8 | Q36: (0.0) | R36: (0.0) | S36: (0.0) | T36: (0.0) | U36: (0.0) | V36: (0.0)
A37: Equity | C37: 187.8 | D37: 184.6 | E37: 182.1 | F37: 180.7 | G37: 180.3 | H37: 181.3 | I37: 183.8 | J37: 187.9 | K37: 194.1 | L37: 202.4 | M37: 213.2 | N37: 226.8 | O37: 243.6 | P37: 264 | Q37: 288.3 | R37: 261.2 | S37: 233.5 | T37: 205.2 | U37: 176.3 | V37: 146.7
A38: Total Capital | C38: 604.3 | D38: 585.6 | E38: 566.3 | F38: 546.4 | G38: 525.9 | H38: 504.9 | I38: 483.2 | J38: 461 | K38: 438.1 | L38: 414.7 | M38: 390.6 | N38: 365.9 | O38: 340.7 | P38: 314.8 | Q38: 288.3 | R38: 261.2 | S38: 233.5 | T38: 205.2 | U38: 176.3 | V38: 146.7
A39: note: values disguised

Sheet Waterfall Chartdata2
A1: Actual Cost | B1: 142992540 | E1: 28598508 | F1: 142992540 | M1: 142992540 | N1: =M1 -> 142992540 | P1: =N1 -> 142992540 | Q1: =ABS(O1) -> 0 | AZ1: =waterfall_graph_data2 -> Actual Cost | BA1: 142992540 | BB1: =BA1 -> 142992540 | BD1: =BB1 -> 142992540 | BE1: =ABS(BC1) -> 0 | BF1: 28598508 | BG1: =BD1 -> 142992540 | BH1: =IF(BC1>=0,0,BF1) -> 0 | BI1: =IF(BC1<0,0,BF1) -> 28598508 | BJ1: =BA1 -> 142992540 | BQ1: =AZ1 -> Actual Cost | BS1: =BB1 -> 142992540 | BT1: =BQ1&BR1 -> Actual Cost | BU1: =BG1 -> 142992540 | BV1: 0 | BW1: =BE1 -> 0 | BX1: =BI1 -> 28598508 | BY1: =BB1 -> 142992540
A2: Benchmark CT | B2: 64898022.19 | C2: 28598508 | D2: 49496009.81 | F2: 142992540 | G2: 93496530.19 | M2: -49496009.81 | N2: =IF(M2<>0,N1+M2,N1) -> 93496530.19 | O2: =N2-N1 -> -49496009.81 | P2: =IF(O2>=0,N2-O2,N1+O2) -> 93496530.19 | Q2: 49496009.81 | AZ2: Benchmark CT | BA2: -49496009.81 | BB2: =IF(BA2<>0,BB1+BA2,BB1) -> 93496530.19 | BC2: =BB2-BB1 -> -49496009.81 | BD2: =IF(BC2>=0,BB2-BC2,BB1+BC2) -> 93496530.19 | BE2: 49496009.81 | BF2: 28598508 | BG2: =IF(BC2>=0,BD2,BD2-BF2) -> 64898022.19 | BH2: 28598508 | BI2: 0 | BJ2: =IF(BC2<>0,BC2,BB2) -> -49496009.81 | BQ2: Benchmark CT | BS2: 93496530.19 | BT2: Benchmark CT | BU2: 64898022.19 | BV2: 28598508 | BW2: 49496009.81 | BX2: 0 | BY2: =BB1 -> 142992540 | BZ2: =BB2 -> 93496530.19
A3: Subtotol CT | B3: 93496530.19 | D3: 93496530.19 | E3: 28598508 | G3: 93496530.19 | H3: 186993060.4 | M3: 93496530.19 | N3: =IF(M3<>0,N2+M3,N2) -> 186993060.4 | O3: =N3-N2 -> 93496530.19 | P3: =IF(O3>=0,N3-O3,N2+O3) -> 93496530.19 | Q3: 93496530.19 | AZ3: Subtotol CT | BA3: 93496530.19 | BB3: =IF(BA3<>0,BB2+BA3,BB2) -> 186993060.4 | BC3: =BB3-BB2 -> 93496530.19 | BD3: =IF(BC3>=0,BB3-BC3,BB2+BC3) -> 93496530.19 | BE3: 93496530.19 | BF3: 28598508 | BG3: =IF(BC3>=0,BD3,BD3-BF3) -> 93496530.19 | BH3: 0 | BI3: 28598508 | BJ3: =IF(BC3<>0,BC3,BB3) -> 93496530.19 | BQ3: Subtotol CT | BS3: 186993060.4 | BT3: Subtotol CT | BU3: 93496530.19 | BV3: 0 | BW3: 93496530.19 | BX3: 28598508 | BZ3: =BB2 -> 93496530.19 | CA3: =BB3 -> 186993060.4
B4: 186993060.4 | D4: 0 | E4: 28598508 | H4: 186993060.4 | I4: 186993060.4 | N4: =IF(M4<>0,N3+M4,N3) -> 186993060.4 | O4: =N4-N3 -> 0 | P4: =IF(O4>=0,N4-O4,N3+O4) -> 186993060.4 | Q4: 0 | AZ4: 0 | BA4: 0 | BB4: =IF(BA4<>0,BB3+BA4,BB3) -> 186993060.4 | BC4: =BB4-BB3 -> 0 | BD4: =IF(BC4>=0,BB4-BC4,BB3+BC4) -> 186993060.4 | BE4: 0 | BF4: 28598508 | BG4: =IF(BC4>=0,BD4,BD4-BF4) -> 186993060.4 | BH4: 0 | BI4: 28598508 | BJ4: =IF(BC4<>0,BC4,BB4) -> 186993060.4 | BQ4: 0 | BS4: 186993060.4 | BT4: 0 | BU4: 186993060.4 | BV4: 0 | BW4: 0 | BX4: 28598508 | CA4: =BB3 -> 186993060.4 | CB4: =BB4 -> 186993060.4
A5: Benchmark NGCC | B5: 137495435.8 | C5: 28598508 | D5: 20899116.58 | I5: 186993060.4 | J5: 166093943.8 | M5: -20899116.58 | N5: =IF(M5<>0,N4+M5,N4) -> 166093943.8 | O5: =N5-N4 -> -20899116.58 | P5: =IF(O5>=0,N5-O5,N4+O5) -> 166093943.8 | Q5: 20899116.58 | AZ5: Benchmark NGCC | BA5: -20899116.58 | BB5: =IF(BA5<>0,BB4+BA5,BB4) -> 166093943.8 | BC5: =BB5-BB4 -> -20899116.58 | BD5: =IF(BC5>=0,BB5-BC5,BB4+BC5) -> 166093943.8 | BE5: 20899116.58 | BF5: 28598508 | BG5: =IF(BC5>=0,BD5,BD5-BF5) -> 137495435.8 | BH5: 28598508 | BI5: 0 | BJ5: =IF(BC5<>0,BC5,BB5) -> -20899116.58 | BQ5: Benchmark NGCC | BS5: 166093943.8 | BT5: Benchmark NGCC | BU5: 137495435.8 | BV5: 28598508 | BW5: 20899116.58 | BX5: 0 | CB5: =BB4 -> 186993060.4 | CC5: =BB5 -> 166093943.8
A6: Cost of NGCC | B6: 166093943.8 | D6: 0 | E6: 28598508 | J6: 166093943.8 | K6: 166093943.8 | M6: 0 | N6: =IF(M6<>0,N5+M6,N5) -> 166093943.8 | O6: =N6-N5 -> 0 | P6: =IF(O6>=0,N6-O6,N5+O6) -> 166093943.8 | Q6: 0 | AZ6: Cost of NGCC | BA6: 0 | BB6: =IF(BA6<>0,BB5+BA6,BB5) -> 166093943.8 | BC6: =BB6-BB5 -> 0 | BD6: =IF(BC6>=0,BB6-BC6,BB5+BC6) -> 166093943.8 | BE6: 0 | BF6: 28598508 | BG6: =IF(BC6>=0,BD6,BD6-BF6) -> 166093943.8 | BH6: 0 | BI6: 28598508 | BJ6: =IF(BC6<>0,BC6,BB6) -> 166093943.8 | BQ6: Cost of NGCC | BS6: 166093943.8 | BT6: Cost of NGCC | BU6: 166093943.8 | BV6: 0 | BW6: 0 | BX6: 28598508 | CC6: =BB5 -> 166093943.8
A7: =COLUMN() -> 1 | B7: =COLUMN() -> 2 | C7: =COLUMN() -> 3 | D7: =COLUMN() -> 4 | E7: =COLUMN() -> 5 | F7: =COLUMN() -> 6 | G7: =COLUMN() -> 7 | H7: =COLUMN() -> 8 | I7: =COLUMN() -> 9 | J7: =COLUMN() -> 10 | K7: =COLUMN() -> 11 | L7: =COLUMN() -> 12 | M7: =COLUMN() -> 13 | N7: =COLUMN() -> 14 | O7: =COLUMN() -> 15 | P7: =COLUMN() -> 16 | Q7: =COLUMN() -> 17 | BB7: =COLUMN() -> 54 | BC7: =COLUMN() -> 55 | BD7: =COLUMN() -> 56 | BE7: =COLUMN() -> 57 | BF7: =COLUMN() -> 58 | BG7: =COLUMN() -> 59 | BH7: =COLUMN() -> 60 | BI7: =COLUMN() -> 61 | BJ7: =COLUMN() -> 62 | BK7: =COLUMN() -> 63 | BL7: =COLUMN() -> 64 | BM7: =COLUMN() -> 65 | BN7: =COLUMN() -> 66 | BO7: =COLUMN() -> 67 | BP7: =COLUMN() -> 68 | BQ7: =COLUMN() -> 69 | BR7: =COLUMN() -> 70 | BS7: =COLUMN() -> 71 | BT7: =COLUMN() -> 72 | BU7: =COLUMN() -> 73 | BV7: =COLUMN() -> 74 | BW7: =COLUMN() -> 75 | BX7: =COLUMN() -> 76 | BY7: =COLUMN() -> 77 | BZ7: =COLUMN() -> 78 | CA7: =COLUMN() -> 79 | CB7: =COLUMN() -> 80 | CC7: =COLUMN() -> 81 | CD7: =COLUMN() -> 82
A8: Fixed Graph: Graph Titles | D8: Fixed Graph: Increment (absolute Value) | F8: Fixed Graph: Connectors | BB8: CALCULATION: BASE VALUE: If not zero accumulate; if zero Last Value | BT8: GRAPH: Link to the Title
B9: Fixed Graph: Base of Stacked Bar | E9: Fixed Graph: Space for Increment | BB9: CALCULATION: ACCUMULATED VALUE: Formula is accumulation | BU9: GRAPH: Adjusted Base of Stack from calculation
C10: Fixed Graph: Space for Negative Label (Not Graphed | BC10: CALCULATION: INCREMENT: Formula is difference between accumulated value | BV10: GRAPH: Space for Value in Negative Case
A11: TO MAKE GRAPH BY YOURSELF | L11: Chart Title | M11: =AZ1 -> Actual Cost | N11: =TEXT(BB1,"*,#,##0.00;(*,(#,##0.00);(* ??_);_(@_)") -> 142,992,540.00 | O11: Bulid-up Chart | BD11: CALCULATION: BASE OF STACK BAR WITHOUT ADJUSTMENT: Base of Stacked Bar: Formula depends on the increment. If positive then ACC - Incr if negative Last ACC + Incr | BW11: GRAPH: Absolute Value of Increment
A12: 1. PRESS ALT F1 on the yellow AREA | BE12: CALCULATION: ABS VALUE OF INCREMENT: This is enough to make graph without fancy stuff | BX12: GRAPH: Space for Value in Positive Case
A13: 2. CHANGE TO STACKED BAR AND SWITCH AROUND ROW AND COLUMN | BF13: INPUT: LABEL SPACE: This is enough to make graph without fancy stuff
A14: 3. SELECT DATA SERIES AND NO FILL EVERYTHING EXCEPT INCREMENTS | BG14: CALCULATION: ADJUSTED BASE VALUE: This is base of the stacked bar minus the label space if the increment is negative
A15: 4. SELECT DATA PONTS FOR BASE BAR AND FILL STARTING, ENDING AND SUBTOTALS | BH15: CALCULATION: NEGATIVE SPACE: This is the label space if the increment is negative
A16: 5. CHANGE THE CHART TYPE OF THE CONNECTOR LINES | BI16: CALCULATION: POSITIVE SPACE: This is label space if the increment is positive
